﻿OrganisationName,OrganisationalUnit,BeneficiaryName,PaymentDate,Amount,Purpose,CategoryInternal,OrganisationURI
Staffordshire County Council,Through Care -Stafford/SStaffs,A1 Wolves Taxis,01/06/2021,864.00,S17 TRANSPORT,S17 TRANSPORT,http://opendatacommunities.org/id/county-council/staffordshire  
Staffordshire County Council,Moorlands VASP,Achieve Inspire and Motivate CIC,01/06/2021,1034.35,OTHER HIRED SERVICES,OTHER HIRED SERVICES,http://opendatacommunities.org/id/county-council/staffordshire  
Staffordshire County Council,Moorlands VASP,Achieve Inspire and Motivate CIC,01/06/2021,685.00,OTHER HIRED SERVICES,OTHER HIRED SERVICES,http://opendatacommunities.org/id/county-council/staffordshire  
Staffordshire County Council,Moorlands VASP,Achieve Inspire and Motivate CIC,01/06/2021,699.83,OTHER HIRED SERVICES,OTHER HIRED SERVICES,http://opendatacommunities.org/id/county-council/staffordshire  
Staffordshire County Council,Moorlands VASP,Achieve Inspire and Motivate CIC,01/06/2021,589.10,OTHER HIRED SERVICES,OTHER HIRED SERVICES,http://opendatacommunities.org/id/county-council/staffordshire  
Staffordshire County Council,Specialist Assessment,ACPAS LTD,01/06/2021,764.04,Prev Supp Legal Costs,Prev Supp Legal Costs,http://opendatacommunities.org/id/county-council/staffordshire  
Staffordshire County Council,Cannock Chase LD Team,Affinity Trust,01/06/2021,6492.64,Supported Group Care,Supported Group Care,http://opendatacommunities.org/id/county-council/staffordshire  
Staffordshire County Council,Cannock Chase LD Team,Affinity Trust,01/06/2021,3560.82,Supported Group Care,Supported Group Care,http://opendatacommunities.org/id/county-council/staffordshire  
Staffordshire County Council,Staffordshire Wood Fuel,AMP Clean Energy,01/06/2021,2840.74,Wood Chip,Wood Chip,http://opendatacommunities.org/id/county-council/staffordshire  
Staffordshire County Council,Stat-OOC transport,,01/06/2021,580.36,Personal Travel Budgets,Personal Travel Budgets,http://opendatacommunities.org/id/county-council/staffordshire  
Staffordshire County Council,Stafford LD Team,Aspire (Stafford) Ltd,01/06/2021,942.72,Day Care,Day Care,http://opendatacommunities.org/id/county-council/staffordshire  
Staffordshire County Council,Stafford LD Team,Aspire (Stafford) Ltd,01/06/2021,668.00,Day Care,Day Care,http://opendatacommunities.org/id/county-council/staffordshire  
Staffordshire County Council,Stafford LD Team,Aspire (Stafford) Ltd,01/06/2021,668.00,Day Care,Day Care,http://opendatacommunities.org/id/county-council/staffordshire  
Staffordshire County Council,Stafford LD Team,Aspire (Stafford) Ltd,01/06/2021,1113.00,Day Care,Day Care,http://opendatacommunities.org/id/county-council/staffordshire  
Staffordshire County Council,Independent School Fee Special,Aurora ASD Ltd T/A Aurora Hanley Sch,01/06/2021,13362.00,Fees to Independent Schools,Fees to Independent Schools,http://opendatacommunities.org/id/county-council/staffordshire  
Staffordshire County Council,Stat-OOC transport,,01/06/2021,1049.49,Personal Travel Budgets,Personal Travel Budgets,http://opendatacommunities.org/id/county-council/staffordshire  
Staffordshire County Council,COVID 19 CEV Individuals,Beat The Cold,01/06/2021,7500.00,OTHER HIRED SERVICES,OTHER HIRED SERVICES,http://opendatacommunities.org/id/county-council/staffordshire  
Staffordshire County Council,Stat-OOC transport,,01/06/2021,1347.32,Personal Travel Budgets,Personal Travel Budgets,http://opendatacommunities.org/id/county-council/staffordshire  
Staffordshire County Council,"King Edward VI School, Lich",BID Group Ltd,01/06/2021,648.00,Service/Test Controlled Access,Service/Test Controlled Access,http://opendatacommunities.org/id/county-council/staffordshire  
Staffordshire County Council,Castle House (The Hub),BID Group Ltd,01/06/2021,540.00,Service/Test Controlled Access,Service/Test Controlled Access,http://opendatacommunities.org/id/county-council/staffordshire  
Staffordshire County Council,Forsbrook CE(C) Primary School,BID Group Ltd,01/06/2021,540.00,Service/Test Controlled Access,Service/Test Controlled Access,http://opendatacommunities.org/id/county-council/staffordshire  
Staffordshire County Council,Saxon Hill School,,01/06/2021,588.65,Personal Travel Budgets,Personal Travel Budgets,http://opendatacommunities.org/id/county-council/staffordshire  
Staffordshire County Council,County Fleet Care Purchase Of ,BRISTOL STREET MOTORS,01/06/2021,17183.94,Vehicle Purchase,Vehicle Purchase,http://opendatacommunities.org/id/county-council/staffordshire  
Staffordshire County Council,Blackfriars School,,01/06/2021,909.09,Personal Travel Budgets,Personal Travel Budgets,http://opendatacommunities.org/id/county-council/staffordshire  
Staffordshire County Council,Saxon Hill School,,01/06/2021,559.64,Personal Travel Budgets,Personal Travel Budgets,http://opendatacommunities.org/id/county-council/staffordshire  
Staffordshire County Council,Stat-OOC transport,,01/06/2021,1831.45,Personal Travel Budgets,Personal Travel Budgets,http://opendatacommunities.org/id/county-council/staffordshire  
Staffordshire County Council,Stat-OOC transport,,01/06/2021,791.78,Personal Travel Budgets,Personal Travel Budgets,http://opendatacommunities.org/id/county-council/staffordshire  
Staffordshire County Council,Stat-OOC transport,,01/06/2021,675.71,Personal Travel Budgets,Personal Travel Budgets,http://opendatacommunities.org/id/county-council/staffordshire  
Staffordshire County Council,Lichfield LD Team,CHERRY ORCHARD GARDEN SERVICES,01/06/2021,595.00,Day Care,Day Care,http://opendatacommunities.org/id/county-council/staffordshire  
Staffordshire County Council,Lichfield LD Team,CHERRY ORCHARD GARDEN SERVICES,01/06/2021,1020.00,Day Care,Day Care,http://opendatacommunities.org/id/county-council/staffordshire  
Staffordshire County Council,Complaints Team,CORAM VOICE,01/06/2021,1699.06,Independent Investigations,Independent Investigations,http://opendatacommunities.org/id/county-council/staffordshire  
Staffordshire County Council,Stat-OOC transport,,01/06/2021,1636.95,Personal Travel Budgets,Personal Travel Budgets,http://opendatacommunities.org/id/county-council/staffordshire  
Staffordshire County Council,Rugeley SU14,,01/06/2021,521.10,S17-SUPP TO RELATIVE,S17-SUPP TO RELATIVE,http://opendatacommunities.org/id/county-council/staffordshire  
Staffordshire County Council,Cannock Chase,Dove ValleyTimb & Fencing Supp Ltd,01/06/2021,963.30,General Equipment Purchase,General Equipment Purchase,http://opendatacommunities.org/id/county-council/staffordshire  
Staffordshire County Council,Regional Economic Observatory,"EEF Ltd, Trading As Make UK",01/06/2021,30600.00,CONSULTANT FEES,CONSULTANT FEES,http://opendatacommunities.org/id/county-council/staffordshire  
Staffordshire County Council,Rocklands School,,01/06/2021,596.95,Personal Travel Budgets,Personal Travel Budgets,http://opendatacommunities.org/id/county-council/staffordshire  
Staffordshire County Council,Saxon Hill School,,01/06/2021,750.33,Personal Travel Budgets,Personal Travel Budgets,http://opendatacommunities.org/id/county-council/staffordshire  
Staffordshire County Council,Stat-OOC transport,,01/06/2021,659.13,Personal Travel Budgets,Personal Travel Budgets,http://opendatacommunities.org/id/county-council/staffordshire  
Staffordshire County Council,COVID 19 F&C,FGH Security Limited,01/06/2021,1176.58,Premises Services,Premises Services,http://opendatacommunities.org/id/county-council/staffordshire  
Staffordshire County Council,A513 Chetwynd Bridge Upgrade,Fisher German,01/06/2021,960.00,Amey Overheads,Amey Overheads,http://opendatacommunities.org/id/county-council/staffordshire  
Staffordshire County Council,Stat-OOC transport,,01/06/2021,853.96,Personal Travel Budgets,Personal Travel Budgets,http://opendatacommunities.org/id/county-council/staffordshire  
Staffordshire County Council,Moorlands LD Team,Freespirits Day Care Ltd,01/06/2021,1627.50,Day Care,Day Care,http://opendatacommunities.org/id/county-council/staffordshire  
Staffordshire County Council,East Staffs Invoice Led Older ,G & C Healthcare Ltd,01/06/2021,732.04,Practical Care,Practical Care,http://opendatacommunities.org/id/county-council/staffordshire  
Staffordshire County Council,East Staffs Invoice Led Older ,G & C Healthcare Ltd,01/06/2021,2534.47,Practical Care,Practical Care,http://opendatacommunities.org/id/county-council/staffordshire  
Staffordshire County Council,Cherry Trees School,,01/06/2021,725.45,Personal Travel Budgets,Personal Travel Budgets,http://opendatacommunities.org/id/county-council/staffordshire  
Staffordshire County Council,Public Transp Support & Co-ord,Going My Way Ltd T/A Stantons of Stoke,01/06/2021,620.00,Payments to Bus Operators,Payments to Bus Operators,http://opendatacommunities.org/id/county-council/staffordshire  
Staffordshire County Council,Newcastle MH Team U65,Gray Healthcare Ltd,01/06/2021,7700.08,Supported Group Care,Supported Group Care,http://opendatacommunities.org/id/county-council/staffordshire  
Staffordshire County Council,Newcastle MH Team U65,Gray Healthcare Ltd,01/06/2021,7700.08,Supported Group Care,Supported Group Care,http://opendatacommunities.org/id/county-council/staffordshire  
Staffordshire County Council,Transport,Great Wyrley Travel Ltd,01/06/2021,3514.63,Transport,Transport,http://opendatacommunities.org/id/county-council/staffordshire  
Staffordshire County Council,Saxon Hill School,,01/06/2021,580.36,Personal Travel Budgets,Personal Travel Budgets,http://opendatacommunities.org/id/county-council/staffordshire  
Staffordshire County Council,Stat-OOC transport,,01/06/2021,569.15,Personal Travel Budgets,Personal Travel Budgets,http://opendatacommunities.org/id/county-council/staffordshire  
Staffordshire County Council,Moorlands LD Team,HAYFIELD,01/06/2021,1422.41,Day Care,Day Care,http://opendatacommunities.org/id/county-council/staffordshire  
Staffordshire County Council,Newc/Moor Disability Team,Helping Angels Ltd,01/06/2021,2504.00,S17 FAMILY SUPPORT,S17 FAMILY SUPPORT,http://opendatacommunities.org/id/county-council/staffordshire  
Staffordshire County Council,Home to college transport SEN,,01/06/2021,617.67,Personal Travel Budgets,Personal Travel Budgets,http://opendatacommunities.org/id/county-council/staffordshire  
Staffordshire County Council,Stat-OOC transport,,01/06/2021,1152.44,Personal Travel Budgets,Personal Travel Budgets,http://opendatacommunities.org/id/county-council/staffordshire  
Staffordshire County Council,Stat-OOC transport,,01/06/2021,1023.93,Personal Travel Budgets,Personal Travel Budgets,http://opendatacommunities.org/id/county-council/staffordshire  
Staffordshire County Council,Stat-OOC transport,,01/06/2021,754.47,Personal Travel Budgets,Personal Travel Budgets,http://opendatacommunities.org/id/county-council/staffordshire  
Staffordshire County Council,Stat-OOC transport,,01/06/2021,1363.85,Personal Travel Budgets,Personal Travel Budgets,http://opendatacommunities.org/id/county-council/staffordshire  
Staffordshire County Council,Coppice School,,01/06/2021,688.09,Personal Travel Budgets,Personal Travel Budgets,http://opendatacommunities.org/id/county-council/staffordshire  
Staffordshire County Council,Through Care -Stafford/SStaffs,Lachlan Wilson,01/06/2021,1020.00,Legal Costs and Stamp Duty,Legal Costs and Stamp Duty,http://opendatacommunities.org/id/county-council/staffordshire  
Staffordshire County Council,COVID 19 COMF,Lex Leisure,01/06/2021,2000.00,OTHER HIRED SERVICES,OTHER HIRED SERVICES,http://opendatacommunities.org/id/county-council/staffordshire  
Staffordshire County Council,COVID19 - Community Testing,Lichfield City FC,01/06/2021,2200.00,OTHER HIRED SERVICES,OTHER HIRED SERVICES,http://opendatacommunities.org/id/county-council/staffordshire  
Staffordshire County Council,Home to college transport SEN,,01/06/2021,1101.59,Personal Travel Budgets,Personal Travel Budgets,http://opendatacommunities.org/id/county-council/staffordshire  
Staffordshire County Council,Fountains Primary School,,01/06/2021,950.07,Personal Travel Budgets,Personal Travel Budgets,http://opendatacommunities.org/id/county-council/staffordshire  
Staffordshire County Council,Third Car Leasing Scheme,LOOKERS LEASING LTD,01/06/2021,669.22,Car Leasing - Charges Misc,Car Leasing - Charges Misc,http://opendatacommunities.org/id/county-council/staffordshire  
Staffordshire County Council,Third Car Leasing Scheme,LOOKERS LEASING LTD,01/06/2021,4267.21,Staff Car Leasing Recharge,Staff Car Leasing Recharge,http://opendatacommunities.org/id/county-council/staffordshire  
Staffordshire County Council,Third Car Leasing Scheme,LOOKERS LEASING LTD,01/06/2021,958.19,Staff Car Leasing Recharge,Staff Car Leasing Recharge,http://opendatacommunities.org/id/county-council/staffordshire  
Staffordshire County Council,Third Car Leasing Scheme,LOOKERS LEASING LTD,01/06/2021,34253.85,Staff Car Leasing Recharge,Staff Car Leasing Recharge,http://opendatacommunities.org/id/county-council/staffordshire  
Staffordshire County Council,Stat-OOC transport,,01/06/2021,684.00,Personal Travel Budgets,Personal Travel Budgets,http://opendatacommunities.org/id/county-council/staffordshire  
Staffordshire County Council,Stat-OOC transport,,01/06/2021,1160.73,Personal Travel Budgets,Personal Travel Budgets,http://opendatacommunities.org/id/county-council/staffordshire  
Staffordshire County Council,Selling Service,Mark Bradshaw,01/06/2021,810.00,Legal Costs and Stamp Duty,Legal Costs and Stamp Duty,http://opendatacommunities.org/id/county-council/staffordshire  
Staffordshire County Council,Estates,Michael Page International Recruitment,01/06/2021,1056.00,AGENCY STAFF,AGENCY STAFF,http://opendatacommunities.org/id/county-council/staffordshire  
Staffordshire County Council,Transport,Mudasser Ahmed TA Minibus Experts,01/06/2021,3926.84,Transport,Transport,http://opendatacommunities.org/id/county-council/staffordshire  
Staffordshire County Council,Speed Awareness,P GORING,01/06/2021,720.00,DRIVING INSTRUCTION,DRIVING INSTRUCTION,http://opendatacommunities.org/id/county-council/staffordshire  
Staffordshire County Council,COVID 19 COMF,PERTON PARISH COUNCIL,01/06/2021,955.00,OTHER HIRED SERVICES,OTHER HIRED SERVICES,http://opendatacommunities.org/id/county-council/staffordshire  
Staffordshire County Council,Stat-OOC transport,,01/06/2021,851.24,Personal Travel Budgets,Personal Travel Budgets,http://opendatacommunities.org/id/county-council/staffordshire  
Staffordshire County Council,Stat-OOC transport,,01/06/2021,725.45,Personal Travel Budgets,Personal Travel Budgets,http://opendatacommunities.org/id/county-council/staffordshire  
Staffordshire County Council,Stat-OOC transport,,01/06/2021,945.16,Personal Travel Budgets,Personal Travel Budgets,http://opendatacommunities.org/id/county-council/staffordshire  
Staffordshire County Council,Home to college transport SEN,,01/06/2021,1193.89,Personal Travel Budgets,Personal Travel Budgets,http://opendatacommunities.org/id/county-council/staffordshire  
Staffordshire County Council,LD North (LD North Team),Serjeants' Inn Central Fees,01/06/2021,1818.00,Legal Costs and Stamp Duty,Legal Costs and Stamp Duty,http://opendatacommunities.org/id/county-council/staffordshire  
Staffordshire County Council,Castle House (The Hub),Sharpe Pritchard,01/06/2021,1522.80,legal services,legal services,http://opendatacommunities.org/id/county-council/staffordshire  
Staffordshire County Council,Castle House (The Hub),Sharpe Pritchard,01/06/2021,4420.80,legal services,legal services,http://opendatacommunities.org/id/county-council/staffordshire  
Staffordshire County Council,Corporate Accounting,SOCIETY OF COUNTY TREASURERS,01/06/2021,4338.00,Subscriptions General,Subscriptions General,http://opendatacommunities.org/id/county-council/staffordshire  
Staffordshire County Council,Newcastle LD Team,SOLIHULL MET BOROUGH COUNCIL,01/06/2021,82823.40,RCSS Learning Disability,RCSS Learning Disability,http://opendatacommunities.org/id/county-council/staffordshire  
Staffordshire County Council,Client Device Rollout,Specialist Computer Centres Ltd,01/06/2021,16100.50,Purchase of Hardware,Purchase of Hardware,http://opendatacommunities.org/id/county-council/staffordshire  
Staffordshire County Council,Data Centre Network Refresh,Specialist Computer Centres Ltd,01/06/2021,8554.61,Ext Fees Construction,Ext Fees Construction,http://opendatacommunities.org/id/county-council/staffordshire  
Staffordshire County Council,County,STAN ROBINSON (STAFFORD) LTD,01/06/2021,1000.00,Payments TO CONTRACTORS,Payments TO CONTRACTORS,http://opendatacommunities.org/id/county-council/staffordshire  
Staffordshire County Council,Childcare,Suzanne Hodgkiss,01/06/2021,1500.00,Legal Costs and Stamp Duty,Legal Costs and Stamp Duty,http://opendatacommunities.org/id/county-council/staffordshire  
Staffordshire County Council,DIPS EOTAS,Tamworth Amateur Boxing Club,01/06/2021,66666.25, Alternative Education Schemes, Alternative Education Schemes,http://opendatacommunities.org/id/county-council/staffordshire  
Staffordshire County Council,Comms & Marketing Staff,Thrive Creative Ltd,01/06/2021,5244.00,Unallocated Efficiency Savings,Unallocated Efficiency Savings,http://opendatacommunities.org/id/county-council/staffordshire  
Staffordshire County Council,Comms & Marketing Staff,Thrive Creative Ltd,01/06/2021,945.00,Unallocated Efficiency Savings,Unallocated Efficiency Savings,http://opendatacommunities.org/id/county-council/staffordshire  
Staffordshire County Council,"Various - Legal Cost Acad,Free",UNDERHILL LANGLEY & WRIGHT,01/06/2021,1023.00,Ext Fees Construction,Ext Fees Construction,http://opendatacommunities.org/id/county-council/staffordshire  
Staffordshire County Council,Springfield School,,01/06/2021,543.05,Personal Travel Budgets,Personal Travel Budgets,http://opendatacommunities.org/id/county-council/staffordshire  
Staffordshire County Council,Newcastle LD Team,Welmede,01/06/2021,2033.60,Supported Group Care,Supported Group Care,http://opendatacommunities.org/id/county-council/staffordshire  
Staffordshire County Council,Disposal Districts Unallocated,Willshee's Waste & Recycling Ltd,01/06/2021,24449.47,WASTE TRANSPORT,WASTE TRANSPORT,http://opendatacommunities.org/id/county-council/staffordshire  
Staffordshire County Council,Disposal Districts Unallocated,Willshee's Waste & Recycling Ltd,01/06/2021,987.98,WASTE TRANSPORT,WASTE TRANSPORT,http://opendatacommunities.org/id/county-council/staffordshire  
Staffordshire County Council,Transport,A & K TRAVEL,02/06/2021,12440.09,Transport,Transport,http://opendatacommunities.org/id/county-council/staffordshire  
Staffordshire County Council,Moorlands VASP,Achieve Inspire and Motivate CIC,02/06/2021,520.60,OTHER HIRED SERVICES,OTHER HIRED SERVICES,http://opendatacommunities.org/id/county-council/staffordshire  
Staffordshire County Council,Independent School Fee Special,Acorn Care & Education Ltd,02/06/2021,8005.26,Fees to Independent Schools,Fees to Independent Schools,http://opendatacommunities.org/id/county-council/staffordshire  
Staffordshire County Council,Independent School Fee Special,Acorn Care & Education Ltd,02/06/2021,16553.24,Fees to Independent Schools,Fees to Independent Schools,http://opendatacommunities.org/id/county-council/staffordshire  
Staffordshire County Council,Independent School Fee Special,Acorn Care & Education Ltd,02/06/2021,19809.44,Fees to Independent Schools,Fees to Independent Schools,http://opendatacommunities.org/id/county-council/staffordshire  
Staffordshire County Council,Independent School Fee Special,Acorn Care & Education Ltd,02/06/2021,10063.11,Fees to Independent Schools,Fees to Independent Schools,http://opendatacommunities.org/id/county-council/staffordshire  
Staffordshire County Council,Independent School Fee Special,Acorn Care & Education Ltd,02/06/2021,17166.47,Fees to Independent Schools,Fees to Independent Schools,http://opendatacommunities.org/id/county-council/staffordshire  
Staffordshire County Council,Independent School Fee Special,Acorn Care & Education Ltd,02/06/2021,18835.79,Fees to Independent Schools,Fees to Independent Schools,http://opendatacommunities.org/id/county-council/staffordshire  
Staffordshire County Council,Independent School Fee Special,Acorn Care & Education Ltd,02/06/2021,21705.21,Fees to Independent Schools,Fees to Independent Schools,http://opendatacommunities.org/id/county-council/staffordshire  
Staffordshire County Council,Independent School Fee Special,Acorn Care & Education Ltd,02/06/2021,16553.24,Fees to Independent Schools,Fees to Independent Schools,http://opendatacommunities.org/id/county-council/staffordshire  
Staffordshire County Council,Independent School Fee Special,Acorn Care & Education Ltd,02/06/2021,24977.89,Fees to Independent Schools,Fees to Independent Schools,http://opendatacommunities.org/id/county-council/staffordshire  
Staffordshire County Council,Fuel,ALLSTAR BUSINESS SOLUTIONS LTD,02/06/2021,4102.03,Petrol & Oil,Petrol & Oil,http://opendatacommunities.org/id/county-council/staffordshire  
Staffordshire County Council,COVID-19 Response,ARROW COUNTY SUPPLIES,02/06/2021,7656.00,Cleaning Materials supplies,Cleaning Materials supplies,http://opendatacommunities.org/id/county-council/staffordshire  
Staffordshire County Council,AEN Funding Academy Recoupment,Astbury St Mary's Church of England Prim,02/06/2021,4280.00,Grants to third parties,Grants to third parties,http://opendatacommunities.org/id/county-council/staffordshire  
Staffordshire County Council,Older People & Physical Disabi,Baltimore Consulting Ltd,02/06/2021,2880.00,OTHER HIRED SERVICES,OTHER HIRED SERVICES,http://opendatacommunities.org/id/county-council/staffordshire  
Staffordshire County Council,Regional Economic Observatory,Black Country Consortium,02/06/2021,4850.00,CONSULTANT FEES,CONSULTANT FEES,http://opendatacommunities.org/id/county-council/staffordshire  
Staffordshire County Council,Regional Economic Observatory,Black Country Consortium,02/06/2021,6240.00,CONSULTANT FEES,CONSULTANT FEES,http://opendatacommunities.org/id/county-council/staffordshire  
Staffordshire County Council,Greenfields House,BLAKEMORE FOOD SERVICE LTD,02/06/2021,559.28,Catering Provisions,Catering Provisions,http://opendatacommunities.org/id/county-council/staffordshire  
Staffordshire County Council,Stafford Educational Endowment,Blessed William Howard Schl Endwmnts,02/06/2021,3980.00,Discretionary Grants to School,Discretionary Grants to School,http://opendatacommunities.org/id/county-council/staffordshire  
Staffordshire County Council,Eastgate Regeneration,Cadent Gas Ltd,02/06/2021,2382.00,Construction Works,Construction Works,http://opendatacommunities.org/id/county-council/staffordshire  
Staffordshire County Council,Independent Sch Fees Mainstr'm,Cheshire Alternative Provision Schl,02/06/2021,1185.00,Fees to Independent Schools,Fees to Independent Schools,http://opendatacommunities.org/id/county-council/staffordshire  
Staffordshire County Council,Brewood Educational Endowment,CHESLYN HAY ACADEMY,02/06/2021,14537.28,Discretionary Grants to School,Discretionary Grants to School,http://opendatacommunities.org/id/county-council/staffordshire  
Staffordshire County Council,Strategic Property,CIPFA,02/06/2021,1140.00,Conference Fees,Conference Fees,http://opendatacommunities.org/id/county-council/staffordshire  
Staffordshire County Council,Transport,CLOWES COACHES,02/06/2021,2076.60,Transport,Transport,http://opendatacommunities.org/id/county-council/staffordshire  
Staffordshire County Council,Headquarters - I.S.P,Compass Children's Homes Ltd,02/06/2021,33759.63,Specialist Childs Res Services,Specialist Childs Res Services,http://opendatacommunities.org/id/county-council/staffordshire  
Staffordshire County Council,Central,CPD ONLINE COLLEGE,02/06/2021,2760.00,Purch of Equipment Bud Only,Purch of Equipment Bud Only,http://opendatacommunities.org/id/county-council/staffordshire  
Staffordshire County Council,S Staffs LD Team,Craegmoor Bentons Lane 297,02/06/2021,4330.40,Supported Group Care,Supported Group Care,http://opendatacommunities.org/id/county-council/staffordshire  
Staffordshire County Council,S Staffs LD Team,Craegmoor Priory Group,02/06/2021,604.50,Supported Group Care,Supported Group Care,http://opendatacommunities.org/id/county-council/staffordshire  
Staffordshire County Council,P16 top up for Indep Specialis,Craegmoor Strathmore College,02/06/2021,5575.00,Events and Competitions,Events and Competitions,http://opendatacommunities.org/id/county-council/staffordshire  
Staffordshire County Council,P16 top up for Indep Specialis,Craegmoor Strathmore College,02/06/2021,4181.05,Events and Competitions,Events and Competitions,http://opendatacommunities.org/id/county-council/staffordshire  
Staffordshire County Council,P16 top up for Indep Specialis,Craegmoor Strathmore College,02/06/2021,17653.33,Events and Competitions,Events and Competitions,http://opendatacommunities.org/id/county-council/staffordshire  
Staffordshire County Council,Improvements Contracts,CREST SOFTWARE LTD,02/06/2021,3676.86,SOFTWARE LICENCES,SOFTWARE LICENCES,http://opendatacommunities.org/id/county-council/staffordshire  
Staffordshire County Council,Asset Renewal  - Maint Work 04,DAWKES & CO LTD,02/06/2021,9159.77,Construction Works,Construction Works,http://opendatacommunities.org/id/county-council/staffordshire  
Staffordshire County Council,Staff/SStaffs Disability Team,,02/06/2021,684.32,S17 FAMILY SUPPORT,S17 FAMILY SUPPORT,http://opendatacommunities.org/id/county-council/staffordshire  
Staffordshire County Council,Traffic Signal Refurbishment,DYNNIQ UK LTD,02/06/2021,12590.84,Construction Works,Construction Works,http://opendatacommunities.org/id/county-council/staffordshire  
Staffordshire County Council,Lighting & Signals Works,DYNNIQ UK LTD,02/06/2021,25560.00,Traffic Sigs non Routine Maint,Traffic Sigs non Routine Maint,http://opendatacommunities.org/id/county-council/staffordshire  
Staffordshire County Council,Tamworth LD Team,Eden Futures,02/06/2021,2145.64,Supported Group Care,Supported Group Care,http://opendatacommunities.org/id/county-council/staffordshire  
Staffordshire County Council,Stafford LD Team,Eden Futures,02/06/2021,1442.88,Supported Group Care,Supported Group Care,http://opendatacommunities.org/id/county-council/staffordshire  
Staffordshire County Council,COVID 19 F&C,Entrust Support Services Ltd,02/06/2021,9600.00,Specialist Childs Res Services,Specialist Childs Res Services,http://opendatacommunities.org/id/county-council/staffordshire  
Staffordshire County Council,Shire Hall Regeneration Scheme,Environmental Essentials,02/06/2021,2520.00,Construction Works,Construction Works,http://opendatacommunities.org/id/county-council/staffordshire  
Staffordshire County Council,Stafford Invoice Led Phys Disa,Freedom Support Limited,02/06/2021,10080.00,Practical Care,Practical Care,http://opendatacommunities.org/id/county-council/staffordshire  
Staffordshire County Council,Transport,Going My Way Ltd T/A Stantons of Stoke,02/06/2021,9199.15,Transport,Transport,http://opendatacommunities.org/id/county-council/staffordshire  
Staffordshire County Council,Speech and Language/O Therapy,Headstart Speech and Behaviour Clinic Lt,02/06/2021,1616.00,OTHER HIRED SERVICES,OTHER HIRED SERVICES,http://opendatacommunities.org/id/county-council/staffordshire  
Staffordshire County Council,East Staffs Invoice Led Phys D,Helping Hands,02/06/2021,1045.95,Practical Care,Practical Care,http://opendatacommunities.org/id/county-council/staffordshire  
Staffordshire County Council,Independent Fees -Hospital Edu,Huntercombe Hospital Stafford,02/06/2021,750.00,Fees to Independent Schools,Fees to Independent Schools,http://opendatacommunities.org/id/county-council/staffordshire  
Staffordshire County Council,Independent Fees -Hospital Edu,Huntercombe Hospital Stafford,02/06/2021,1650.00,Fees to Independent Schools,Fees to Independent Schools,http://opendatacommunities.org/id/county-council/staffordshire  
Staffordshire County Council,Independent Fees -Hospital Edu,Huntercombe Hospital Stafford,02/06/2021,750.00,Fees to Independent Schools,Fees to Independent Schools,http://opendatacommunities.org/id/county-council/staffordshire  
Staffordshire County Council,Independent Fees -Hospital Edu,Huntercombe Hospital Stafford,02/06/2021,1200.00,Fees to Independent Schools,Fees to Independent Schools,http://opendatacommunities.org/id/county-council/staffordshire  
Staffordshire County Council,Newcastle LD Team,Independent Support,02/06/2021,2996.76,Supported Group Care,Supported Group Care,http://opendatacommunities.org/id/county-council/staffordshire  
Staffordshire County Council,RK24 Security-Server Support,INSIGHT DIRECT (UK) LTD,02/06/2021,34460.96,SOFTWARE LICENCES,SOFTWARE LICENCES,http://opendatacommunities.org/id/county-council/staffordshire  
Staffordshire County Council,Independent School Fee Special,In-Tuition,02/06/2021,12600.00,Fees to Independent Schools,Fees to Independent Schools,http://opendatacommunities.org/id/county-council/staffordshire  
Staffordshire County Council,SBC Tipping Away,J W Cantrell Haulage Contractors Ltd,02/06/2021,720.00,WASTE TRANSPORT,WASTE TRANSPORT,http://opendatacommunities.org/id/county-council/staffordshire  
Staffordshire County Council,Stat-OOC transport,,02/06/2021,612.90,Home School Direct Payment,Home School Direct Payment,http://opendatacommunities.org/id/county-council/staffordshire  
Staffordshire County Council,Newcastle MH Team U65,Jump 2 Independence Ltd,02/06/2021,580.41,Supported Group Care,Supported Group Care,http://opendatacommunities.org/id/county-council/staffordshire  
Staffordshire County Council,Green Lane Whitgreave,K & S Installations (Staffs) Ltd,02/06/2021,2965.20,General Equipment Repair/Maint,General Equipment Repair/Maint,http://opendatacommunities.org/id/county-council/staffordshire  
Staffordshire County Council,Stafford Educational Endowment,King Edward Endowments,02/06/2021,3040.00,Discretionary Grants to School,Discretionary Grants to School,http://opendatacommunities.org/id/county-council/staffordshire  
Staffordshire County Council,COVID 19 COMF,Lex Leisure,02/06/2021,2433.78,OTHER HIRED SERVICES,OTHER HIRED SERVICES,http://opendatacommunities.org/id/county-council/staffordshire  
Staffordshire County Council,Analyst Work,LGC LTD,02/06/2021,830.88,CONSULTANT FEES,CONSULTANT FEES,http://opendatacommunities.org/id/county-council/staffordshire  
Staffordshire County Council,Troubled Families EA,Liberty Jamboree,02/06/2021,11000.00,Project Activities,Project Activities,http://opendatacommunities.org/id/county-council/staffordshire  
Staffordshire County Council,COVID 19 EI&S,Midland Classic Ltd,02/06/2021,19412.25,Home School Contract Vehicles,Home School Contract Vehicles,http://opendatacommunities.org/id/county-council/staffordshire  
Staffordshire County Council,Physical Regeneration,MIDLAND LANDSCAPING LTD,02/06/2021,646.00,Contract Grounds Maintenance,Contract Grounds Maintenance,http://opendatacommunities.org/id/county-council/staffordshire  
Staffordshire County Council,1 STI Test & Treat,Midlands Part NHS FT,02/06/2021,115411.33,PH Core contract element,PH Core contract element,http://opendatacommunities.org/id/county-council/staffordshire  
Staffordshire County Council,KCOM - Contact Centre,Midlands Part NHS FT,02/06/2021,18836.47,HARDWARE MAINTENANCE,HARDWARE MAINTENANCE,http://opendatacommunities.org/id/county-council/staffordshire  
Staffordshire County Council,LTC - Assess & Case Management,Midlands Part NHS FT,02/06/2021,1205416.67,OTHER HIRED SERVICES,OTHER HIRED SERVICES,http://opendatacommunities.org/id/county-council/staffordshire  
Staffordshire County Council,LTC - Occupational Therapy,Midlands Part NHS FT,02/06/2021,105666.67,OTHER HIRED SERVICES,OTHER HIRED SERVICES,http://opendatacommunities.org/id/county-council/staffordshire  
Staffordshire County Council,MH South,Midlands Part NHS FT,02/06/2021,181916.67,OTHER HIRED SERVICES,OTHER HIRED SERVICES,http://opendatacommunities.org/id/county-council/staffordshire  
Staffordshire County Council,MH North,Midlands Part NHS FT,02/06/2021,53333.33,OTHER HIRED SERVICES,OTHER HIRED SERVICES,http://opendatacommunities.org/id/county-council/staffordshire  
Staffordshire County Council,LTC - Overheads,Midlands Part NHS FT,02/06/2021,167250.66,OTHER HIRED SERVICES,OTHER HIRED SERVICES,http://opendatacommunities.org/id/county-council/staffordshire  
Staffordshire County Council,DIPS EOTAS,NATIONAL TEACHING ADVISORY SERVI,02/06/2021,648.00, Alternative Education Schemes, Alternative Education Schemes,http://opendatacommunities.org/id/county-council/staffordshire  
Staffordshire County Council,Burton Railway Station Improve,NETWORK RAIL INFRASTRUCTURE LTD,02/06/2021,286470.48,Network Rail Fees,Network Rail Fees,http://opendatacommunities.org/id/county-council/staffordshire  
Staffordshire County Council,Lichfield Invoice Led Physi Di,Nexus Care Services,02/06/2021,887.88,Practical Care,Practical Care,http://opendatacommunities.org/id/county-council/staffordshire  
Staffordshire County Council,Brewood Educational Endowment,Painsley Catholic Academy,02/06/2021,4845.76,Discretionary Grants to School,Discretionary Grants to School,http://opendatacommunities.org/id/county-council/staffordshire  
Staffordshire County Council,Eastgate Regeneration,Pinnegar Hayward Design,02/06/2021,2700.00,Ext Fees Construction,Ext Fees Construction,http://opendatacommunities.org/id/county-council/staffordshire  
Staffordshire County Council,DIPS EOTAS,Reflective School Support,02/06/2021,1320.00, Alternative Education Schemes, Alternative Education Schemes,http://opendatacommunities.org/id/county-council/staffordshire  
Staffordshire County Council,DIPS EOTAS,Reflective School Support,02/06/2021,2798.40, Alternative Education Schemes, Alternative Education Schemes,http://opendatacommunities.org/id/county-council/staffordshire  
Staffordshire County Council,DIPS EOTAS,Reflective School Support,02/06/2021,588.00, Alternative Education Schemes, Alternative Education Schemes,http://opendatacommunities.org/id/county-council/staffordshire  
Staffordshire County Council,DIPS EOTAS,Reflective School Support,02/06/2021,960.00, Alternative Education Schemes, Alternative Education Schemes,http://opendatacommunities.org/id/county-council/staffordshire  
Staffordshire County Council,DIPS EOTAS,Reflective School Support,02/06/2021,540.00, Alternative Education Schemes, Alternative Education Schemes,http://opendatacommunities.org/id/county-council/staffordshire  
Staffordshire County Council,Newc OP - South,SCC Sundry BACS  1 Company,02/06/2021,691.00,OTHER HIRED SERVICES,OTHER HIRED SERVICES,http://opendatacommunities.org/id/county-council/staffordshire  
Staffordshire County Council,SEND Assessment Planning Serv,SCC Sundry BACS  1 Company,02/06/2021,1966.00,other services external,other services external,http://opendatacommunities.org/id/county-council/staffordshire  
Staffordshire County Council,ERDF Low Carbon Bus Evol Prog,SCC Sundry BACS  1 Company,02/06/2021,20000.00,Grants to third parties,Grants to third parties,http://opendatacommunities.org/id/county-council/staffordshire  
Staffordshire County Council,A513 Chetwynd Bridge Upgrade,SCC Sundry BACS  1 Company,02/06/2021,1136.00,Land Acquistion,Land Acquistion,http://opendatacommunities.org/id/county-council/staffordshire  
Staffordshire County Council,2 Contraception,Silverdale & Ryecroft Practice,02/06/2021,722.68,PH LARC claims - GPs,PH LARC claims - GPs,http://opendatacommunities.org/id/county-council/staffordshire  
Staffordshire County Council,Stafford Educational Endowment,SIR GRAHAM BALFOUR HIGH SCHOOL,02/06/2021,4250.00,Discretionary Grants to School,Discretionary Grants to School,http://opendatacommunities.org/id/county-council/staffordshire  
Staffordshire County Council,12 Drug Misuse - A,Solutions Action Management (SAM),02/06/2021,1908.00,Other payments / claims,Other payments / claims,http://opendatacommunities.org/id/county-council/staffordshire  
Staffordshire County Council,COVID 19 EI&S,Source Design Ltd,02/06/2021,2400.00,General Equipment Purchase,General Equipment Purchase,http://opendatacommunities.org/id/county-council/staffordshire  
Staffordshire County Council,Stafford Educational Endowment,Stafford Manor Endowments,02/06/2021,3100.00,Discretionary Grants to School,Discretionary Grants to School,http://opendatacommunities.org/id/county-council/staffordshire  
Staffordshire County Council,Transport,Star Private Hire Staffs Ltd,02/06/2021,6456.45,Transport,Transport,http://opendatacommunities.org/id/county-council/staffordshire  
Staffordshire County Council,Street Sweeping - Tamworth,SUEZ RECYCLING & RECOVERY UK LTD,02/06/2021,3693.83,Waste Treatment,Waste Treatment,http://opendatacommunities.org/id/county-council/staffordshire  
Staffordshire County Council,Street Sweeping-Cannock Chase,SUEZ RECYCLING & RECOVERY UK LTD,02/06/2021,3662.20,Waste Treatment,Waste Treatment,http://opendatacommunities.org/id/county-council/staffordshire  
Staffordshire County Council,Street Sweeping - Stafford,SUEZ RECYCLING & RECOVERY UK LTD,02/06/2021,7038.91,Waste Treatment,Waste Treatment,http://opendatacommunities.org/id/county-council/staffordshire  
Staffordshire County Council,Street Sweeping - South Staffs,SUEZ RECYCLING & RECOVERY UK LTD,02/06/2021,3640.84,Waste Treatment,Waste Treatment,http://opendatacommunities.org/id/county-council/staffordshire  
Staffordshire County Council,Street Sweeping - Newcastle,SUEZ RECYCLING & RECOVERY UK LTD,02/06/2021,6703.62,Waste Treatment,Waste Treatment,http://opendatacommunities.org/id/county-council/staffordshire  
Staffordshire County Council,Street Sweeping - East Staffs,SUEZ RECYCLING & RECOVERY UK LTD,02/06/2021,3114.18,Waste Treatment,Waste Treatment,http://opendatacommunities.org/id/county-council/staffordshire  
Staffordshire County Council,DIPS EOTAS,Targeted Provision Ltd,02/06/2021,1320.00, Alternative Education Schemes, Alternative Education Schemes,http://opendatacommunities.org/id/county-council/staffordshire  
Staffordshire County Council,Stafford Educational Endowment,Walton High Sch-Staffs Educ Endo Char,02/06/2021,1420.00,Discretionary Grants to School,Discretionary Grants to School,http://opendatacommunities.org/id/county-council/staffordshire  
Staffordshire County Council,Beaconside Innovation Centre,WATER PLUS,02/06/2021,41800.11,Water Charges Metered,Water Charges Metered,http://opendatacommunities.org/id/county-council/staffordshire  
Staffordshire County Council,Live Labs,Western Power Distribution,02/06/2021,2349.68,other services external,other services external,http://opendatacommunities.org/id/county-council/staffordshire  
Staffordshire County Council,Growth Hub SME Restart Prog,WESTON PARK ENTERPRISES LTD,02/06/2021,3000.00,Grants Other,Grants Other,http://opendatacommunities.org/id/county-council/staffordshire  
Staffordshire County Council,Stafford Educational Endowment,WESTON ROAD ACADEMY,02/06/2021,2460.00,Discretionary Grants to School,Discretionary Grants to School,http://opendatacommunities.org/id/county-council/staffordshire  
Staffordshire County Council,Brewood Educational Endowment,Wolgarston High School,02/06/2021,14537.28,Discretionary Grants to School,Discretionary Grants to School,http://opendatacommunities.org/id/county-council/staffordshire  
Staffordshire County Council,Registration Service - Unalloc,Zipporah Ltd,02/06/2021,1020.00,SOFTWARE LICENCES,SOFTWARE LICENCES,http://opendatacommunities.org/id/county-council/staffordshire  
Staffordshire County Council,County,AEBI SCHMIDT UK Limited,03/06/2021,782.72,CFC Purchase of Stock,CFC Purchase of Stock,http://opendatacommunities.org/id/county-council/staffordshire  
Staffordshire County Council,Burton 1,AEROBRIGHTS TAXIS,03/06/2021,1286.40,S17 TRANSPORT,S17 TRANSPORT,http://opendatacommunities.org/id/county-council/staffordshire  
Staffordshire County Council,Newcastle Invoice Led Older Pe,Alpha Home Assist,03/06/2021,1275.25,Practical Care,Practical Care,http://opendatacommunities.org/id/county-council/staffordshire  
Staffordshire County Council,COVID19 - Community Testing,Andrew Smith PHB Social Care,03/06/2021,714.00,OTHER HIRED SERVICES,OTHER HIRED SERVICES,http://opendatacommunities.org/id/county-council/staffordshire  
Staffordshire County Council,Moorlands Invoice Led Phys Dis,AR1 Homecare,03/06/2021,2773.50,Practical Care,Practical Care,http://opendatacommunities.org/id/county-council/staffordshire  
Staffordshire County Council,Rugeley SU14,Atkinson Lewis,03/06/2021,658.80,Case Work,Case Work,http://opendatacommunities.org/id/county-council/staffordshire  
Staffordshire County Council,A513 Chetwynd Bridge Upgrade,Bagshaws,03/06/2021,2581.86,Amey Overheads,Amey Overheads,http://opendatacommunities.org/id/county-council/staffordshire  
Staffordshire County Council,Cardinal Griffin Catholic High,BID Group Ltd,03/06/2021,792.00,Service/Test Controlled Access,Service/Test Controlled Access,http://opendatacommunities.org/id/county-council/staffordshire  
Staffordshire County Council,Further Education Placements,BURTON & SOUTH DERBYSHIRE COLLEGE,03/06/2021,243793.25,Events and Competitions,Events and Competitions,http://opendatacommunities.org/id/county-council/staffordshire  
Staffordshire County Council,S Staffs LD Team,Care Plus (Staffordshire) Ltd,03/06/2021,1023.75,Supported Group Care,Supported Group Care,http://opendatacommunities.org/id/county-council/staffordshire  
Staffordshire County Council,Stafford Invoice Led Older Peo,Care Plus (Staffordshire) Ltd,03/06/2021,1225.00,Practical Care,Practical Care,http://opendatacommunities.org/id/county-council/staffordshire  
Staffordshire County Council,Stafford Invoice Led Older Peo,Care Plus (Staffordshire) Ltd,03/06/2021,857.50,Practical Care,Practical Care,http://opendatacommunities.org/id/county-council/staffordshire  
Staffordshire County Council,Cannock Invoice Led Older Peop,Care Plus (Staffordshire) Ltd,03/06/2021,1592.50,Practical Care,Practical Care,http://opendatacommunities.org/id/county-council/staffordshire  
Staffordshire County Council,Cannock Invoice Led Older Peop,Care Plus (Staffordshire) Ltd,03/06/2021,721.88,Practical Care,Practical Care,http://opendatacommunities.org/id/county-council/staffordshire  
Staffordshire County Council,COVID19 - Community Testing,CHIEF CONSTABLE OF STAFFORDSHIRE POLICE,03/06/2021,41272.00,OTHER HIRED SERVICES,OTHER HIRED SERVICES,http://opendatacommunities.org/id/county-council/staffordshire  
Staffordshire County Council,COVID19 - Community Testing,CHIEF CONSTABLE OF STAFFORDSHIRE POLICE,03/06/2021,3381.00,OTHER HIRED SERVICES,OTHER HIRED SERVICES,http://opendatacommunities.org/id/county-council/staffordshire  
Staffordshire County Council,COVID19 - Community Testing,CHIEF CONSTABLE OF STAFFORDSHIRE POLICE,03/06/2021,40180.00,OTHER HIRED SERVICES,OTHER HIRED SERVICES,http://opendatacommunities.org/id/county-council/staffordshire  
Staffordshire County Council,Newc/Moor Disability Team,CITY CENTRE CENTRAL,03/06/2021,3510.00,S17 TRANSPORT,S17 TRANSPORT,http://opendatacommunities.org/id/county-council/staffordshire  
Staffordshire County Council,Pooled Accom Central Charges,CORONA ENERGY,03/06/2021,40024.16,Gas,Gas,http://opendatacommunities.org/id/county-council/staffordshire  
Staffordshire County Council,COVID19 - Community Testing,DOUGLAS MACMILLAN HOSPICE,03/06/2021,2492.00,OTHER HIRED SERVICES,OTHER HIRED SERVICES,http://opendatacommunities.org/id/county-council/staffordshire  
Staffordshire County Council,COVID19 - Community Testing,DOUGLAS MACMILLAN HOSPICE,03/06/2021,2100.00,OTHER HIRED SERVICES,OTHER HIRED SERVICES,http://opendatacommunities.org/id/county-council/staffordshire  
Staffordshire County Council,South Staffs Coroner,Dr A Hitchcock,03/06/2021,3654.00,INQ EXPS S STAFFS,INQ EXPS S STAFFS,http://opendatacommunities.org/id/county-council/staffordshire  
Staffordshire County Council,MCA / DoLs / AMHP,Dr Jonathon Mayo,03/06/2021,600.00,Medical Fees,Medical Fees,http://opendatacommunities.org/id/county-council/staffordshire  
Staffordshire County Council,COVID19 - Community Testing,Freedom Leisure,03/06/2021,26102.68,OTHER HIRED SERVICES,OTHER HIRED SERVICES,http://opendatacommunities.org/id/county-council/staffordshire  
Staffordshire County Council,Stafford Invoice Led Phys Disa,Freedom Support Limited,03/06/2021,4841.65,Practical Care,Practical Care,http://opendatacommunities.org/id/county-council/staffordshire  
Staffordshire County Council,Stafford Invoice Led Phys Disa,Freedom Support Limited,03/06/2021,3434.40,Practical Care,Practical Care,http://opendatacommunities.org/id/county-council/staffordshire  
Staffordshire County Council,"Planning, P&D Control",H Richards,03/06/2021,1025.40,legal services,legal services,http://opendatacommunities.org/id/county-council/staffordshire  
Staffordshire County Council,Stafford Invoice Led Older Peo,Home Instead Senior Care,03/06/2021,1310.50,Practical Care,Practical Care,http://opendatacommunities.org/id/county-council/staffordshire  
Staffordshire County Council,Highways,Information Security Advice Limited,03/06/2021,651.90,AGENCY STAFF,AGENCY STAFF,http://opendatacommunities.org/id/county-council/staffordshire  
Staffordshire County Council,MCA / DoLs / AMHP,JG Social Care Ltd,03/06/2021,637.50,Independent Investigations,Independent Investigations,http://opendatacommunities.org/id/county-council/staffordshire  
Staffordshire County Council,Newcastle MH Team U65,Jump 2 Independence Ltd,03/06/2021,580.41,Supported Group Care,Supported Group Care,http://opendatacommunities.org/id/county-council/staffordshire  
Staffordshire County Council,Yarlet Hall Farm Yarlet,K & S Installations (Staffs) Ltd,03/06/2021,4800.00,General Equipment Repair/Maint,General Equipment Repair/Maint,http://opendatacommunities.org/id/county-council/staffordshire  
Staffordshire County Council,2 Contraception,K S UPTON & S KAUR,03/06/2021,1187.00,PH LARC claims - GPs,PH LARC claims - GPs,http://opendatacommunities.org/id/county-council/staffordshire  
Staffordshire County Council,S Staffs LD Team,Lifeways Community Care Ltd,03/06/2021,984.88,Practical Care,Practical Care,http://opendatacommunities.org/id/county-council/staffordshire  
Staffordshire County Council,LTC - Reablement,Midlands Part NHS FT,03/06/2021,300484.00,OTHER HIRED SERVICES,OTHER HIRED SERVICES,http://opendatacommunities.org/id/county-council/staffordshire  
Staffordshire County Council,Care Act Implementation,Midlands Part NHS FT,03/06/2021,45000.00,Supp Serv Legal,Supp Serv Legal,http://opendatacommunities.org/id/county-council/staffordshire  
Staffordshire County Council,Stafford LD Team,New Directions Support,03/06/2021,922.00,Day Care,Day Care,http://opendatacommunities.org/id/county-council/staffordshire  
Staffordshire County Council,Nexxus,Nexxus Trading Services (t/a Nexxus Care,03/06/2021,33450.56,OTHER HIRED SERVICES,OTHER HIRED SERVICES,http://opendatacommunities.org/id/county-council/staffordshire  
Staffordshire County Council,Nexxus,Nexxus Trading Services (t/a Nexxus Care,03/06/2021,96351.00,OTHER HIRED SERVICES,OTHER HIRED SERVICES,http://opendatacommunities.org/id/county-council/staffordshire  
Staffordshire County Council,MCA / DoLs / AMHP,NW Social Work Ltd,03/06/2021,720.00,Independent Investigations,Independent Investigations,http://opendatacommunities.org/id/county-council/staffordshire  
Staffordshire County Council,Independent School Fee Special,PEAK PURSUITS LTD,03/06/2021,6480.00,Fees to Independent Schools,Fees to Independent Schools,http://opendatacommunities.org/id/county-council/staffordshire  
Staffordshire County Council,Independent School Fee Special,PEAK PURSUITS LTD,03/06/2021,6480.00,Fees to Independent Schools,Fees to Independent Schools,http://opendatacommunities.org/id/county-council/staffordshire  
Staffordshire County Council,Independent School Fee Special,PEAK PURSUITS LTD,03/06/2021,6480.00,Fees to Independent Schools,Fees to Independent Schools,http://opendatacommunities.org/id/county-council/staffordshire  
Staffordshire County Council,Independent School Fee Special,PEAK PURSUITS LTD,03/06/2021,6480.00,Fees to Independent Schools,Fees to Independent Schools,http://opendatacommunities.org/id/county-council/staffordshire  
Staffordshire County Council,Independent School Fee Special,PEAK PURSUITS LTD,03/06/2021,6480.00,Fees to Independent Schools,Fees to Independent Schools,http://opendatacommunities.org/id/county-council/staffordshire  
Staffordshire County Council,Independent School Fee Special,PEAK PURSUITS LTD,03/06/2021,6480.00,Fees to Independent Schools,Fees to Independent Schools,http://opendatacommunities.org/id/county-council/staffordshire  
Staffordshire County Council,Independent School Fee Special,PEAK PURSUITS LTD,03/06/2021,3600.00,Fees to Independent Schools,Fees to Independent Schools,http://opendatacommunities.org/id/county-council/staffordshire  
Staffordshire County Council,Independent School Fee Special,PEAK PURSUITS LTD,03/06/2021,6372.00,Fees to Independent Schools,Fees to Independent Schools,http://opendatacommunities.org/id/county-council/staffordshire  
Staffordshire County Council,Independent School Fee Special,PEAK PURSUITS LTD,03/06/2021,6372.00,Fees to Independent Schools,Fees to Independent Schools,http://opendatacommunities.org/id/county-council/staffordshire  
Staffordshire County Council,Independent School Fee Special,PEAK PURSUITS LTD,03/06/2021,6372.00,Fees to Independent Schools,Fees to Independent Schools,http://opendatacommunities.org/id/county-council/staffordshire  
Staffordshire County Council,Independent School Fee Special,PEAK PURSUITS LTD,03/06/2021,6372.00,Fees to Independent Schools,Fees to Independent Schools,http://opendatacommunities.org/id/county-council/staffordshire  
Staffordshire County Council,Independent School Fee Special,PEAK PURSUITS LTD,03/06/2021,6372.00,Fees to Independent Schools,Fees to Independent Schools,http://opendatacommunities.org/id/county-council/staffordshire  
Staffordshire County Council,Independent School Fee Special,PEAK PURSUITS LTD,03/06/2021,6372.00,Fees to Independent Schools,Fees to Independent Schools,http://opendatacommunities.org/id/county-council/staffordshire  
Staffordshire County Council,Independent School Fee Special,PEAK PURSUITS LTD,03/06/2021,6372.00,Fees to Independent Schools,Fees to Independent Schools,http://opendatacommunities.org/id/county-council/staffordshire  
Staffordshire County Council,Independent School Fee Special,PEAK PURSUITS LTD,03/06/2021,6372.00,Fees to Independent Schools,Fees to Independent Schools,http://opendatacommunities.org/id/county-council/staffordshire  
Staffordshire County Council,Independent School Fee Special,PEAK PURSUITS LTD,03/06/2021,6372.00,Fees to Independent Schools,Fees to Independent Schools,http://opendatacommunities.org/id/county-council/staffordshire  
Staffordshire County Council,Independent School Fee Special,PEAK PURSUITS LTD,03/06/2021,6372.00,Fees to Independent Schools,Fees to Independent Schools,http://opendatacommunities.org/id/county-council/staffordshire  
Staffordshire County Council,Independent School Fee Special,PEAK PURSUITS LTD,03/06/2021,6372.00,Fees to Independent Schools,Fees to Independent Schools,http://opendatacommunities.org/id/county-council/staffordshire  
Staffordshire County Council,Independent School Fee Special,PEAK PURSUITS LTD,03/06/2021,6372.00,Fees to Independent Schools,Fees to Independent Schools,http://opendatacommunities.org/id/county-council/staffordshire  
Staffordshire County Council,Independent School Fee Special,PEAK PURSUITS LTD,03/06/2021,6372.00,Fees to Independent Schools,Fees to Independent Schools,http://opendatacommunities.org/id/county-council/staffordshire  
Staffordshire County Council,Independent School Fee Special,PEAK PURSUITS LTD,03/06/2021,6480.00,Fees to Independent Schools,Fees to Independent Schools,http://opendatacommunities.org/id/county-council/staffordshire  
Staffordshire County Council,Independent School Fee Special,PEAK PURSUITS LTD,03/06/2021,6372.00,Fees to Independent Schools,Fees to Independent Schools,http://opendatacommunities.org/id/county-council/staffordshire  
Staffordshire County Council,Independent School Fee Special,PEAK PURSUITS LTD,03/06/2021,6480.00,Fees to Independent Schools,Fees to Independent Schools,http://opendatacommunities.org/id/county-council/staffordshire  
Staffordshire County Council,Independent School Fee Special,PEAK PURSUITS LTD,03/06/2021,6372.00,Fees to Independent Schools,Fees to Independent Schools,http://opendatacommunities.org/id/county-council/staffordshire  
Staffordshire County Council,Independent School Fee Special,PEAK PURSUITS LTD,03/06/2021,6372.00,Fees to Independent Schools,Fees to Independent Schools,http://opendatacommunities.org/id/county-council/staffordshire  
Staffordshire County Council,Independent School Fee Special,PEAK PURSUITS LTD,03/06/2021,6480.00,Fees to Independent Schools,Fees to Independent Schools,http://opendatacommunities.org/id/county-council/staffordshire  
Staffordshire County Council,Independent School Fee Special,PEAK PURSUITS LTD,03/06/2021,6480.00,Fees to Independent Schools,Fees to Independent Schools,http://opendatacommunities.org/id/county-council/staffordshire  
Staffordshire County Council,Independent School Fee Special,PEAK PURSUITS LTD,03/06/2021,6372.00,Fees to Independent Schools,Fees to Independent Schools,http://opendatacommunities.org/id/county-council/staffordshire  
Staffordshire County Council,Independent School Fee Special,PEAK PURSUITS LTD,03/06/2021,6480.00,Fees to Independent Schools,Fees to Independent Schools,http://opendatacommunities.org/id/county-council/staffordshire  
Staffordshire County Council,Independent School Fee Special,PEAK PURSUITS LTD,03/06/2021,6480.00,Fees to Independent Schools,Fees to Independent Schools,http://opendatacommunities.org/id/county-council/staffordshire  
Staffordshire County Council,Independent School Fee Special,PEAK PURSUITS LTD,03/06/2021,6480.00,Fees to Independent Schools,Fees to Independent Schools,http://opendatacommunities.org/id/county-council/staffordshire  
Staffordshire County Council,Independent School Fee Special,PEAK PURSUITS LTD,03/06/2021,5400.00,Fees to Independent Schools,Fees to Independent Schools,http://opendatacommunities.org/id/county-council/staffordshire  
Staffordshire County Council,Independent School Fee Special,PEAK PURSUITS LTD,03/06/2021,6480.00,Fees to Independent Schools,Fees to Independent Schools,http://opendatacommunities.org/id/county-council/staffordshire  
Staffordshire County Council,Independent School Fee Special,PEAK PURSUITS LTD,03/06/2021,5400.00,Fees to Independent Schools,Fees to Independent Schools,http://opendatacommunities.org/id/county-council/staffordshire  
Staffordshire County Council,Independent School Fee Special,PEAK PURSUITS LTD,03/06/2021,6480.00,Fees to Independent Schools,Fees to Independent Schools,http://opendatacommunities.org/id/county-council/staffordshire  
Staffordshire County Council,Independent School Fee Special,PEAK PURSUITS LTD,03/06/2021,6480.00,Fees to Independent Schools,Fees to Independent Schools,http://opendatacommunities.org/id/county-council/staffordshire  
Staffordshire County Council,Independent School Fee Special,PEAK PURSUITS LTD,03/06/2021,6480.00,Fees to Independent Schools,Fees to Independent Schools,http://opendatacommunities.org/id/county-council/staffordshire  
Staffordshire County Council,2 Contraception,Peel Medical Practice,03/06/2021,2689.04,PH LARC claims - GPs,PH LARC claims - GPs,http://opendatacommunities.org/id/county-council/staffordshire  
Staffordshire County Council,County,PIRTEK STOKE,03/06/2021,559.18,CFC Purchase of Stock,CFC Purchase of Stock,http://opendatacommunities.org/id/county-council/staffordshire  
Staffordshire County Council,Improvements Contracts,PVT UK Ltd,03/06/2021,4406.40,SOFTWARE LICENCES,SOFTWARE LICENCES,http://opendatacommunities.org/id/county-council/staffordshire  
Staffordshire County Council,DIPS EOTAS,Reflective School Support,03/06/2021,840.00, Alternative Education Schemes, Alternative Education Schemes,http://opendatacommunities.org/id/county-council/staffordshire  
Staffordshire County Council,DIPS EOTAS,Reflective School Support,03/06/2021,720.00, Alternative Education Schemes, Alternative Education Schemes,http://opendatacommunities.org/id/county-council/staffordshire  
Staffordshire County Council,DIPS EOTAS,Remedy Education Ltd,03/06/2021,900.00, Alternative Education Schemes, Alternative Education Schemes,http://opendatacommunities.org/id/county-council/staffordshire  
Staffordshire County Council,MCA / DoLs / AMHP,RKJ Contracts Ltd,03/06/2021,800.00,Independent Investigations,Independent Investigations,http://opendatacommunities.org/id/county-council/staffordshire  
Staffordshire County Council,MCA / DoLs / AMHP,RKJ Contracts Ltd,03/06/2021,800.00,Independent Investigations,Independent Investigations,http://opendatacommunities.org/id/county-council/staffordshire  
Staffordshire County Council,K Info & Intell,Shaw Trust Ltd,03/06/2021,24300.00,Other payments / claims,Other payments / claims,http://opendatacommunities.org/id/county-council/staffordshire  
Staffordshire County Council,Highways Laboratory,SMITHPACK Ltd,03/06/2021,735.78,General Equipment Repair/Maint,General Equipment Repair/Maint,http://opendatacommunities.org/id/county-council/staffordshire  
Staffordshire County Council,COVID19 - Community Testing,SOUTH STAFFS DIST COUNCIL,03/06/2021,4124.00,OTHER HIRED SERVICES,OTHER HIRED SERVICES,http://opendatacommunities.org/id/county-council/staffordshire  
Staffordshire County Council,Independent Sch Fees Mainstr'm,SPORTING STARS COMM INTEREST CO,03/06/2021,7280.00,Fees to Independent Schools,Fees to Independent Schools,http://opendatacommunities.org/id/county-council/staffordshire  
Staffordshire County Council,Independent School Fee Special,Spring Hill High School Ltd,03/06/2021,28902.34,Fees to Independent Schools,Fees to Independent Schools,http://opendatacommunities.org/id/county-council/staffordshire  
Staffordshire County Council,BLT MH Team U65,St Matthews Support Services Limited,03/06/2021,1829.00,Supported Group Care,Supported Group Care,http://opendatacommunities.org/id/county-council/staffordshire  
Staffordshire County Council,BLT MH Team U65,St Matthews Support Services Limited,03/06/2021,1327.50,Supported Group Care,Supported Group Care,http://opendatacommunities.org/id/county-council/staffordshire  
Staffordshire County Council,BLT MH Team U65,St Matthews Support Services Limited,03/06/2021,1770.00,Supported Group Care,Supported Group Care,http://opendatacommunities.org/id/county-council/staffordshire  
Staffordshire County Council,BLT MH Team U65,St Matthews Support Services Limited,03/06/2021,1371.75,Supported Group Care,Supported Group Care,http://opendatacommunities.org/id/county-council/staffordshire  
Staffordshire County Council,Court & Care Plan-Staff/SouthS,ST PETERS PRE SCHOOL,03/06/2021,504.00,S17-NURSERY,S17-NURSERY,http://opendatacommunities.org/id/county-council/staffordshire  
Staffordshire County Council,COVID19 - Community Testing,STAFFORDSHIRE FIRE & RESCUE SERV,03/06/2021,7294.00,OTHER HIRED SERVICES,OTHER HIRED SERVICES,http://opendatacommunities.org/id/county-council/staffordshire  
Staffordshire County Council,COVID19 - Community Testing,STAFFORDSHIRE FIRE & RESCUE SERV,03/06/2021,15435.00,OTHER HIRED SERVICES,OTHER HIRED SERVICES,http://opendatacommunities.org/id/county-council/staffordshire  
Staffordshire County Council,COVID19 - Community Testing,STAFFORDSHIRE FIRE & RESCUE SERV,03/06/2021,7315.00,OTHER HIRED SERVICES,OTHER HIRED SERVICES,http://opendatacommunities.org/id/county-council/staffordshire  
Staffordshire County Council,EStaffs/Tamw Disability Team,TAMWORTH/ATHERSTONE TAXIS & PRIVATE HIRE,03/06/2021,2628.00,S17 TRANSPORT,S17 TRANSPORT,http://opendatacommunities.org/id/county-council/staffordshire  
Staffordshire County Council,Speed Awareness,Willtom Solutions,03/06/2021,1728.00,DRIVING INSTRUCTION,DRIVING INSTRUCTION,http://opendatacommunities.org/id/county-council/staffordshire  
Staffordshire County Council,Specialist Assessment,3PB Barristers (Chambers Account),04/06/2021,1800.00,Prev Supp Legal Costs,Prev Supp Legal Costs,http://opendatacommunities.org/id/county-council/staffordshire  
Staffordshire County Council,Transport,5 TEN CONTRACTS LTD,04/06/2021,30687.24,Transport,Transport,http://opendatacommunities.org/id/county-council/staffordshire  
Staffordshire County Council,Moorlands LD Team,ACCORD HOUSING ASSOCIATION,04/06/2021,1289.10,Supported Group Care,Supported Group Care,http://opendatacommunities.org/id/county-council/staffordshire  
Staffordshire County Council,Moorlands LD Team,ACCORD HOUSING ASSOCIATION,04/06/2021,1289.10,Supported Group Care,Supported Group Care,http://opendatacommunities.org/id/county-council/staffordshire  
Staffordshire County Council,Workshop Overheads,ACP SERVICES LTD,04/06/2021,630.00,Repair and Maintenance,Repair and Maintenance,http://opendatacommunities.org/id/county-council/staffordshire  
Staffordshire County Council,Spot Hire,AFFORD RENT A CAR,04/06/2021,1243.20,CFC Recharge for Vehicles,CFC Recharge for Vehicles,http://opendatacommunities.org/id/county-council/staffordshire  
Staffordshire County Council,Virtual School - Pupil Premium,ALLEYNES ACADEMY,04/06/2021,500.00,OTHER ALLOWANCES,OTHER ALLOWANCES,http://opendatacommunities.org/id/county-council/staffordshire  
Staffordshire County Council,Spot Hire,Arnold Clark,04/06/2021,705.60,CFC Recharge for Vehicles,CFC Recharge for Vehicles,http://opendatacommunities.org/id/county-council/staffordshire  
Staffordshire County Council,Cabinet,ASTON MARINA LTD,04/06/2021,1234.80,Conference Fees,Conference Fees,http://opendatacommunities.org/id/county-council/staffordshire  
Staffordshire County Council,Virtual School - Pupil Premium,Bluebell School Ltd,04/06/2021,1000.00,OTHER ALLOWANCES,OTHER ALLOWANCES,http://opendatacommunities.org/id/county-council/staffordshire  
Staffordshire County Council,County Fleet Care Purchase Of ,BRISTOL STREET MOTORS,04/06/2021,17183.94,Vehicle Purchase,Vehicle Purchase,http://opendatacommunities.org/id/county-council/staffordshire  
Staffordshire County Council,Specialist Assessment,Carter Brown The Expert Service Limited,04/06/2021,3594.24,Prev Supp Legal Costs,Prev Supp Legal Costs,http://opendatacommunities.org/id/county-council/staffordshire  
Staffordshire County Council,Adoption Support Fund,Childrens Choice Therapy Service Ltd,04/06/2021,895.50,PROFESSIONAL FEES,PROFESSIONAL FEES,http://opendatacommunities.org/id/county-council/staffordshire  
Staffordshire County Council,Speech and Language/O Therapy,Childrens Choice Therapy Service Ltd,04/06/2021,529.80,OTHER HIRED SERVICES,OTHER HIRED SERVICES,http://opendatacommunities.org/id/county-council/staffordshire  
Staffordshire County Council,Various,COMENSURA,04/06/2021,120270.47,AGENCY STAFF,AGENCY STAFF,http://opendatacommunities.org/id/county-council/staffordshire  
Staffordshire County Council,E Staffs LD Team,Craegmoor Priory Group,04/06/2021,1831.80,Supported Group Care,Supported Group Care,http://opendatacommunities.org/id/county-council/staffordshire  
Staffordshire County Council,E Staffs LD Team,Craegmoor Priory Group,04/06/2021,1831.80,Supported Group Care,Supported Group Care,http://opendatacommunities.org/id/county-council/staffordshire  
Staffordshire County Council,E Staffs LD Team,Craegmoor Priory Group,04/06/2021,1831.80,Supported Group Care,Supported Group Care,http://opendatacommunities.org/id/county-council/staffordshire  
Staffordshire County Council,E Staffs LD Team,Craegmoor Priory Group,04/06/2021,1831.80,Supported Group Care,Supported Group Care,http://opendatacommunities.org/id/county-council/staffordshire  
Staffordshire County Council,Tamworth LD Team,Creative Choices CIC,04/06/2021,550.00,Day Care,Day Care,http://opendatacommunities.org/id/county-council/staffordshire  
Staffordshire County Council,Tamworth LD Team,Creative Choices CIC,04/06/2021,550.00,Day Care,Day Care,http://opendatacommunities.org/id/county-council/staffordshire  
Staffordshire County Council,Tamworth LD Team,Creative Choices CIC,04/06/2021,550.00,Day Care,Day Care,http://opendatacommunities.org/id/county-council/staffordshire  
Staffordshire County Council,Bikeability,CYCLIST TRAINING LTD,04/06/2021,19160.00,CONSULTANT FEES,CONSULTANT FEES,http://opendatacommunities.org/id/county-council/staffordshire  
Staffordshire County Council,Virtual School - Pupil Premium,De Ferrers Academy,04/06/2021,750.00,OTHER ALLOWANCES,OTHER ALLOWANCES,http://opendatacommunities.org/id/county-council/staffordshire  
Staffordshire County Council,SStaffs Invoice Led Older Peop,ELR Homecare,04/06/2021,511.50,Practical Care,Practical Care,http://opendatacommunities.org/id/county-council/staffordshire  
Staffordshire County Council,SStaffs Invoice Led Older Peop,ELR Homecare,04/06/2021,750.75,Practical Care,Practical Care,http://opendatacommunities.org/id/county-council/staffordshire  
Staffordshire County Council,SStaffs Invoice Led Older Peop,ELR Homecare,04/06/2021,2524.50,Practical Care,Practical Care,http://opendatacommunities.org/id/county-council/staffordshire  
Staffordshire County Council,SStaffs Invoice Led Older Peop,ELR Homecare,04/06/2021,895.13,Practical Care,Practical Care,http://opendatacommunities.org/id/county-council/staffordshire  
Staffordshire County Council,SStaffs Invoice Led Older Peop,ELR Homecare,04/06/2021,2264.63,Practical Care,Practical Care,http://opendatacommunities.org/id/county-council/staffordshire  
Staffordshire County Council,SStaffs Invoice Led Older Peop,ELR Homecare,04/06/2021,639.38,Practical Care,Practical Care,http://opendatacommunities.org/id/county-council/staffordshire  
Staffordshire County Council,Contracts,F A Sawford,04/06/2021,1863.00,AGENCY STAFF,AGENCY STAFF,http://opendatacommunities.org/id/county-council/staffordshire  
Staffordshire County Council,County,Fleet Factors Ltd,04/06/2021,510.82,CFC Purchase of Stock,CFC Purchase of Stock,http://opendatacommunities.org/id/county-council/staffordshire  
Staffordshire County Council,East Staffs Invoice Led Older ,G & C Healthcare Ltd,04/06/2021,1324.64,Practical Care,Practical Care,http://opendatacommunities.org/id/county-council/staffordshire  
Staffordshire County Council,East Staffs Invoice Led Older ,G & C Healthcare Ltd,04/06/2021,1232.02,Practical Care,Practical Care,http://opendatacommunities.org/id/county-council/staffordshire  
Staffordshire County Council,East Staffs Invoice Led Older ,G & C Healthcare Ltd,04/06/2021,1240.18,Practical Care,Practical Care,http://opendatacommunities.org/id/county-council/staffordshire  
Staffordshire County Council,East Staffs Invoice Led Older ,G & C Healthcare Ltd,04/06/2021,547.50,Practical Care,Practical Care,http://opendatacommunities.org/id/county-council/staffordshire  
Staffordshire County Council,East Staffs Invoice Led Phys D,G & C Healthcare Ltd,04/06/2021,1256.80,Practical Care,Practical Care,http://opendatacommunities.org/id/county-council/staffordshire  
Staffordshire County Council,Occupational Health Unit,Gel Ltd T/A Healthwork,04/06/2021,1428.00,CONSULTANT FEES,CONSULTANT FEES,http://opendatacommunities.org/id/county-council/staffordshire  
Staffordshire County Council,Moorlands Invoice Led Older Pe,H I C A,04/06/2021,500.08,Practical Care,Practical Care,http://opendatacommunities.org/id/county-council/staffordshire  
Staffordshire County Council,Moorlands Invoice Led Older Pe,H I C A,04/06/2021,2250.64,Practical Care,Practical Care,http://opendatacommunities.org/id/county-council/staffordshire  
Staffordshire County Council,Moorlands Invoice Led Phys Dis,H I C A,04/06/2021,2009.42,Practical Care,Practical Care,http://opendatacommunities.org/id/county-council/staffordshire  
Staffordshire County Council,Castle House (The Hub),H S L Compliance Ltd,04/06/2021,638.82,Special Water Hygiene Service,Special Water Hygiene Service,http://opendatacommunities.org/id/county-council/staffordshire  
Staffordshire County Council,Speed Awareness,Hafiz Ul-Haq,04/06/2021,2016.00,DRIVING INSTRUCTION,DRIVING INSTRUCTION,http://opendatacommunities.org/id/county-council/staffordshire  
Staffordshire County Council,HR General,Harris Burns Ltd,04/06/2021,3494.00,PROFESSIONAL FEES,PROFESSIONAL FEES,http://opendatacommunities.org/id/county-council/staffordshire  
Staffordshire County Council,HR General,Harris Burns Ltd,04/06/2021,2744.64,PROFESSIONAL FEES,PROFESSIONAL FEES,http://opendatacommunities.org/id/county-council/staffordshire  
Staffordshire County Council,Virtual School - Pupil Premium,Hart School,04/06/2021,700.00,OTHER ALLOWANCES,OTHER ALLOWANCES,http://opendatacommunities.org/id/county-council/staffordshire  
Staffordshire County Council,Virtual School - Pupil Premium,Heath Hayes Academy,04/06/2021,800.00,OTHER ALLOWANCES,OTHER ALLOWANCES,http://opendatacommunities.org/id/county-council/staffordshire  
Staffordshire County Council,Tamworth Invoice Led Older Peo,Hills Angels Homecare,04/06/2021,507.15,Practical Care,Practical Care,http://opendatacommunities.org/id/county-council/staffordshire  
Staffordshire County Council,Fostering North,HUGGIES DAY NURSERY LTD,04/06/2021,651.60,Fostering Equipment on Loans,Fostering Equipment on Loans,http://opendatacommunities.org/id/county-council/staffordshire  
Staffordshire County Council,Virtual School - Pupil Premium,JCB ACADEMY,04/06/2021,600.00,OTHER ALLOWANCES,OTHER ALLOWANCES,http://opendatacommunities.org/id/county-council/staffordshire  
Staffordshire County Council,Virtual School - Pupil Premium,JCB ACADEMY,04/06/2021,600.00,OTHER ALLOWANCES,OTHER ALLOWANCES,http://opendatacommunities.org/id/county-council/staffordshire  
Staffordshire County Council,Newcastle MH Team U65,Jump 2 Independence Ltd,04/06/2021,522.68,Supported Group Care,Supported Group Care,http://opendatacommunities.org/id/county-council/staffordshire  
Staffordshire County Council,Corporate Edge,KCom Group PLC,04/06/2021,128888.12,Computer Equipment purchase,Computer Equipment purchase,http://opendatacommunities.org/id/county-council/staffordshire  
Staffordshire County Council,Virtual School - Pupil Premium,Kingsmead School,04/06/2021,670.00,OTHER ALLOWANCES,OTHER ALLOWANCES,http://opendatacommunities.org/id/county-council/staffordshire  
Staffordshire County Council,Virtual School - Pupil Premium,Lakeside Primary School,04/06/2021,700.00,OTHER ALLOWANCES,OTHER ALLOWANCES,http://opendatacommunities.org/id/county-council/staffordshire  
Staffordshire County Council,Virtual School - Pupil Premium,LANDAU FORTE ACADEMY QEMS,04/06/2021,2265.00,OTHER ALLOWANCES,OTHER ALLOWANCES,http://opendatacommunities.org/id/county-council/staffordshire  
Staffordshire County Council,Stafford Invoice Led Phys Disa,LSC Nursing Care & Services Ltd,04/06/2021,2255.15,Practical Care,Practical Care,http://opendatacommunities.org/id/county-council/staffordshire  
Staffordshire County Council,Virtual School - Pupil Premium,Manor Hall Academy Trust,04/06/2021,600.00,OTHER ALLOWANCES,OTHER ALLOWANCES,http://opendatacommunities.org/id/county-council/staffordshire  
Staffordshire County Council,Virtual School - Pupil Premium,Manor Hall Academy Trust,04/06/2021,765.00,OTHER ALLOWANCES,OTHER ALLOWANCES,http://opendatacommunities.org/id/county-council/staffordshire  
Staffordshire County Council,COVID19 - Community Testing,Martec Training Limited,04/06/2021,721.00,OTHER HIRED SERVICES,OTHER HIRED SERVICES,http://opendatacommunities.org/id/county-council/staffordshire  
Staffordshire County Council,COVID19 - Community Testing,Martec Training Limited,04/06/2021,1260.00,OTHER HIRED SERVICES,OTHER HIRED SERVICES,http://opendatacommunities.org/id/county-council/staffordshire  
Staffordshire County Council,East Staffs Invoice Led Older ,Marvel Home Care Ltd,04/06/2021,1325.25,Practical Care,Practical Care,http://opendatacommunities.org/id/county-council/staffordshire  
Staffordshire County Council,East Staffs Invoice Led Older ,Marvel Home Care Ltd,04/06/2021,553.66,Practical Care,Practical Care,http://opendatacommunities.org/id/county-council/staffordshire  
Staffordshire County Council,Moorlands Invoice Led Older Pe,Marvel Home Care Ltd,04/06/2021,986.77,Practical Care,Practical Care,http://opendatacommunities.org/id/county-council/staffordshire  
Staffordshire County Council,Moorlands Invoice Led Older Pe,Marvel Home Care Ltd,04/06/2021,1325.25,Practical Care,Practical Care,http://opendatacommunities.org/id/county-council/staffordshire  
Staffordshire County Council,Moorlands Invoice Led Older Pe,Marvel Home Care Ltd,04/06/2021,1384.15,Practical Care,Practical Care,http://opendatacommunities.org/id/county-council/staffordshire  
Staffordshire County Council,Moorlands Invoice Led Older Pe,Marvel Home Care Ltd,04/06/2021,2650.50,Practical Care,Practical Care,http://opendatacommunities.org/id/county-council/staffordshire  
Staffordshire County Council,Moorlands Invoice Led Older Pe,Marvel Home Care Ltd,04/06/2021,1178.00,Practical Care,Practical Care,http://opendatacommunities.org/id/county-council/staffordshire  
Staffordshire County Council,MCA / DoLs / AMHP,Midlands Part NHS FT,04/06/2021,5586.13,Independent Investigations,Independent Investigations,http://opendatacommunities.org/id/county-council/staffordshire  
Staffordshire County Council,DIPS EOTAS,NATIONAL TEACHING ADVISORY SERVI,04/06/2021,864.00, Alternative Education Schemes, Alternative Education Schemes,http://opendatacommunities.org/id/county-council/staffordshire  
Staffordshire County Council,Moorlands Invoice Led Older Pe,Nested Support,04/06/2021,1120.00,Practical Care,Practical Care,http://opendatacommunities.org/id/county-council/staffordshire  
Staffordshire County Council,Moorlands Invoice Led Phys Dis,Nested Support,04/06/2021,661.50,Practical Care,Practical Care,http://opendatacommunities.org/id/county-council/staffordshire  
Staffordshire County Council,Virtual School - Pupil Premium,Paulet High School,04/06/2021,500.00,OTHER ALLOWANCES,OTHER ALLOWANCES,http://opendatacommunities.org/id/county-council/staffordshire  
Staffordshire County Council,Independent Sch Fees Mainstr'm,Pear Tree Nursery,04/06/2021,573.70,Fees to Independent Schools,Fees to Independent Schools,http://opendatacommunities.org/id/county-council/staffordshire  
Staffordshire County Council,Education Commissioning,Permanent Futures Ltd,04/06/2021,1704.00,OTHER HIRED SERVICES,OTHER HIRED SERVICES,http://opendatacommunities.org/id/county-council/staffordshire  
Staffordshire County Council,Education Commissioning,Permanent Futures Ltd,04/06/2021,1608.00,OTHER HIRED SERVICES,OTHER HIRED SERVICES,http://opendatacommunities.org/id/county-council/staffordshire  
Staffordshire County Council,Education Commissioning,Permanent Futures Ltd,04/06/2021,1704.00,OTHER HIRED SERVICES,OTHER HIRED SERVICES,http://opendatacommunities.org/id/county-council/staffordshire  
Staffordshire County Council,Education Commissioning,Permanent Futures Ltd,04/06/2021,1704.00,OTHER HIRED SERVICES,OTHER HIRED SERVICES,http://opendatacommunities.org/id/county-council/staffordshire  
Staffordshire County Council,Education Commissioning,Permanent Futures Ltd,04/06/2021,1704.00,OTHER HIRED SERVICES,OTHER HIRED SERVICES,http://opendatacommunities.org/id/county-council/staffordshire  
Staffordshire County Council,Workforce Wellbeing Strategy,Psylutions Ltd,04/06/2021,840.00,CONSULTANT FEES,CONSULTANT FEES,http://opendatacommunities.org/id/county-council/staffordshire  
Staffordshire County Council,Speech and Language/O Therapy,,04/06/2021,535.00,Direct Payments Other,Direct Payments Other,http://opendatacommunities.org/id/county-council/staffordshire  
Staffordshire County Council,Transport,RUMPLAN T/A ROSEVILLE TAXIS & MNBSS,04/06/2021,1693.92,Transport,Transport,http://opendatacommunities.org/id/county-council/staffordshire  
Staffordshire County Council,COVID 19 H&C,SCC Sundry BACS  1 Company,04/06/2021,6000.00,OTHER HIRED SERVICES,OTHER HIRED SERVICES,http://opendatacommunities.org/id/county-council/staffordshire  
Staffordshire County Council,COVID 19 H&C,SCC Sundry BACS  1 Company,04/06/2021,1000.00,OTHER HIRED SERVICES,OTHER HIRED SERVICES,http://opendatacommunities.org/id/county-council/staffordshire  
Staffordshire County Council,OP Well Being - East Staffs,SCC Sundry BACS  1 Company,04/06/2021,9744.44,RCLS Elderly ,RCLS Elderly ,http://opendatacommunities.org/id/county-council/staffordshire  
Staffordshire County Council,East Staffs Invoice Led Older ,SL Assist Ltd TA Bluebird Care E. Staffs,04/06/2021,630.10,Practical Care,Practical Care,http://opendatacommunities.org/id/county-council/staffordshire  
Staffordshire County Council,Growth Hub LEP 2016-2018 BIS,Staffs Chambers Cmmrc & Indstry Ltd,04/06/2021,12013.76,CONSULTANT FEES,CONSULTANT FEES,http://opendatacommunities.org/id/county-council/staffordshire  
Staffordshire County Council,Tamworth LD Team,Steps to Independence Ltd,04/06/2021,1062.00,Supported Group Care,Supported Group Care,http://opendatacommunities.org/id/county-council/staffordshire  
Staffordshire County Council,Climate Change,SUA Trust (John Wheeldon Primary),04/06/2021,1000.00,OTHER HIRED SERVICES,OTHER HIRED SERVICES,http://opendatacommunities.org/id/county-council/staffordshire  
Staffordshire County Council,Virtual School - Pupil Premium,The Oaks Academy,04/06/2021,500.00,OTHER ALLOWANCES,OTHER ALLOWANCES,http://opendatacommunities.org/id/county-council/staffordshire  
Staffordshire County Council,Audit,TIAA Ltd,04/06/2021,14785.20,AGENCY STAFF,AGENCY STAFF,http://opendatacommunities.org/id/county-council/staffordshire  
Staffordshire County Council,Cannock Chase,TOWER GARAGE,04/06/2021,612.36,Petrol & Oil,Petrol & Oil,http://opendatacommunities.org/id/county-council/staffordshire  
Staffordshire County Council,COVID 19 EI&S,TRENT MOTOR TRACTION CO LTD,04/06/2021,1440.00,Home School Contract Vehicles,Home School Contract Vehicles,http://opendatacommunities.org/id/county-council/staffordshire  
Staffordshire County Council,Traffic Signal Refurb 21/22,Western Power Distribution,04/06/2021,2182.72,Construction Works,Construction Works,http://opendatacommunities.org/id/county-council/staffordshire  
Staffordshire County Council,Virtual School - Pupil Premium,Westwood First School,04/06/2021,500.00,OTHER ALLOWANCES,OTHER ALLOWANCES,http://opendatacommunities.org/id/county-council/staffordshire  
Staffordshire County Council,Newcastle Hub,Acutus Programme Managment Ltd,07/06/2021,10038.00,Ext Fees Construction,Ext Fees Construction,http://opendatacommunities.org/id/county-council/staffordshire  
Staffordshire County Council,Moorlands LD Team,Affinity Trust Ltd,07/06/2021,2395.76,Supported Group Care,Supported Group Care,http://opendatacommunities.org/id/county-council/staffordshire  
Staffordshire County Council,Moorlands LD Team,Affinity Trust Ltd,07/06/2021,1932.24,Supported Group Care,Supported Group Care,http://opendatacommunities.org/id/county-council/staffordshire  
Staffordshire County Council,Moorlands LD Team,Affinity Trust Ltd,07/06/2021,4178.82,Supported Group Care,Supported Group Care,http://opendatacommunities.org/id/county-council/staffordshire  
Staffordshire County Council,Moorlands LD Team,Affinity Trust Ltd,07/06/2021,1853.28,Supported Group Care,Supported Group Care,http://opendatacommunities.org/id/county-council/staffordshire  
Staffordshire County Council,Moorlands LD Team,Affinity Trust Ltd,07/06/2021,2642.30,Supported Group Care,Supported Group Care,http://opendatacommunities.org/id/county-council/staffordshire  
Staffordshire County Council,S Staffs LD Team,Affinity Trust Ltd,07/06/2021,2302.78,Supported Group Care,Supported Group Care,http://opendatacommunities.org/id/county-council/staffordshire  
Staffordshire County Council,Cannock Chase LD Team,Affinity Trust Ltd,07/06/2021,3055.06,Supported Group Care,Supported Group Care,http://opendatacommunities.org/id/county-council/staffordshire  
Staffordshire County Council,S Staffs LD Team,Affinity Trust Ltd,07/06/2021,2107.96,Supported Group Care,Supported Group Care,http://opendatacommunities.org/id/county-council/staffordshire  
Staffordshire County Council,S Staffs LD Team,Affinity Trust Ltd,07/06/2021,1843.84,Supported Group Care,Supported Group Care,http://opendatacommunities.org/id/county-council/staffordshire  
Staffordshire County Council,S Staffs LD Team,Affinity Trust Ltd,07/06/2021,2060.88,Supported Group Care,Supported Group Care,http://opendatacommunities.org/id/county-council/staffordshire  
Staffordshire County Council,S Staffs LD Team,Affinity Trust Ltd,07/06/2021,2120.72,Supported Group Care,Supported Group Care,http://opendatacommunities.org/id/county-council/staffordshire  
Staffordshire County Council,Cannock Chase LD Team,Affinity Trust Ltd,07/06/2021,2318.96,Supported Group Care,Supported Group Care,http://opendatacommunities.org/id/county-council/staffordshire  
Staffordshire County Council,Moorlands LD Team,Affinity Trust Ltd,07/06/2021,1461.86,Supported Group Care,Supported Group Care,http://opendatacommunities.org/id/county-council/staffordshire  
Staffordshire County Council,Cannock Chase LD Team,Affinity Trust Ltd,07/06/2021,3246.32,Supported Group Care,Supported Group Care,http://opendatacommunities.org/id/county-council/staffordshire  
Staffordshire County Council,Cannock Chase LD Team,Affinity Trust Ltd,07/06/2021,1524.84,Supported Group Care,Supported Group Care,http://opendatacommunities.org/id/county-council/staffordshire  
Staffordshire County Council,Cannock Chase LD Team,Affinity Trust Ltd,07/06/2021,11648.11,Supported Group Care,Supported Group Care,http://opendatacommunities.org/id/county-council/staffordshire  
Staffordshire County Council,Moorlands LD Team,Affinity Trust Ltd,07/06/2021,1936.96,Supported Group Care,Supported Group Care,http://opendatacommunities.org/id/county-council/staffordshire  
Staffordshire County Council,Cannock Chase LD Team,Affinity Trust Ltd,07/06/2021,2464.00,Supported Group Care,Supported Group Care,http://opendatacommunities.org/id/county-council/staffordshire  
Staffordshire County Council,23 Yarlet New Farm Building,AGGREGATE INDUSTRIES UK LTD,07/06/2021,1444.80,Construction Works,Construction Works,http://opendatacommunities.org/id/county-council/staffordshire  
Staffordshire County Council,Moorlands LD Team,Ambient Support Limited,07/06/2021,2302.88,Supported Group Care,Supported Group Care,http://opendatacommunities.org/id/county-council/staffordshire  
Staffordshire County Council,Newcastle LD Team,Ambient Support Limited,07/06/2021,1643.30,Supported Group Care,Supported Group Care,http://opendatacommunities.org/id/county-council/staffordshire  
Staffordshire County Council,Moorlands LD Team,Ambient Support Limited,07/06/2021,3898.84,Supported Group Care,Supported Group Care,http://opendatacommunities.org/id/county-council/staffordshire  
Staffordshire County Council,Moorlands LD Team,Ambient Support Limited,07/06/2021,2861.48,Supported Group Care,Supported Group Care,http://opendatacommunities.org/id/county-council/staffordshire  
Staffordshire County Council,E Staffs LD Team,Ambient Support Limited,07/06/2021,2504.38,Supported Group Care,Supported Group Care,http://opendatacommunities.org/id/county-council/staffordshire  
Staffordshire County Council,E Staffs LD Team,Ambient Support Limited,07/06/2021,2699.88,Supported Group Care,Supported Group Care,http://opendatacommunities.org/id/county-council/staffordshire  
Staffordshire County Council,E Staffs LD Team,Ambient Support Limited,07/06/2021,3504.46,Supported Group Care,Supported Group Care,http://opendatacommunities.org/id/county-council/staffordshire  
Staffordshire County Council,E Staffs LD Team,Ambient Support Limited,07/06/2021,2130.80,Supported Group Care,Supported Group Care,http://opendatacommunities.org/id/county-council/staffordshire  
Staffordshire County Council,E Staffs LD Team,Ambient Support Limited,07/06/2021,2809.78,Supported Group Care,Supported Group Care,http://opendatacommunities.org/id/county-council/staffordshire  
Staffordshire County Council,Moorlands LD Team,Ambient Support Limited,07/06/2021,1936.68,Supported Group Care,Supported Group Care,http://opendatacommunities.org/id/county-council/staffordshire  
Staffordshire County Council,SWS MH Team U65,Apollo Care ,07/06/2021,3127.60,Supported Group Care,Supported Group Care,http://opendatacommunities.org/id/county-council/staffordshire  
Staffordshire County Council,Printers Staffordshire Place,BANNER GROUP LTD,07/06/2021,1188.00,Stationery General,Stationery General,http://opendatacommunities.org/id/county-council/staffordshire  
Staffordshire County Council,Speed Awareness,BOUNDARY SCHOOL OF MOTORING,07/06/2021,1152.00,DRIVING INSTRUCTION,DRIVING INSTRUCTION,http://opendatacommunities.org/id/county-council/staffordshire  
Staffordshire County Council,Moorlands MH Team U65,Care Tech Community Services Limited,07/06/2021,1439.72,Supported Group Care,Supported Group Care,http://opendatacommunities.org/id/county-council/staffordshire  
Staffordshire County Council,Stafford LD Team,Care Tech Community Services Limited,07/06/2021,2294.18,Supported Group Care,Supported Group Care,http://opendatacommunities.org/id/county-council/staffordshire  
Staffordshire County Council,S Staffs LD Team,Caremax Support Services Ltd,07/06/2021,1482.60,Supported Group Care,Supported Group Care,http://opendatacommunities.org/id/county-council/staffordshire  
Staffordshire County Council,Stafford LD Team,Caretech Community Service Ltd,07/06/2021,3032.64,Supported Group Care,Supported Group Care,http://opendatacommunities.org/id/county-council/staffordshire  
Staffordshire County Council,Stafford LD Team,Caretech Community Service Ltd,07/06/2021,2789.40,Supported Group Care,Supported Group Care,http://opendatacommunities.org/id/county-council/staffordshire  
Staffordshire County Council,Carematch External,Catherine Care,07/06/2021,600.00,OTHER HIRED SERVICES,OTHER HIRED SERVICES,http://opendatacommunities.org/id/county-council/staffordshire  
Staffordshire County Council,S Staffs LD Team,Catherine Care Ltd,07/06/2021,2072.98,Supported Group Care,Supported Group Care,http://opendatacommunities.org/id/county-council/staffordshire  
Staffordshire County Council,Cannock Chase LD Team,Catherine Care Ltd,07/06/2021,2460.00,Supported Group Care,Supported Group Care,http://opendatacommunities.org/id/county-council/staffordshire  
Staffordshire County Council,Sth Staffs PD Team 1,Catherine Care Ltd,07/06/2021,2614.08,Supported Group Care,Supported Group Care,http://opendatacommunities.org/id/county-council/staffordshire  
Staffordshire County Council,Carematch External,Choices Housing Association Ltd,07/06/2021,1050.00,OTHER HIRED SERVICES,OTHER HIRED SERVICES,http://opendatacommunities.org/id/county-council/staffordshire  
Staffordshire County Council,Carematch External,Compassionate Healthcare Ltd,07/06/2021,1800.00,OTHER HIRED SERVICES,OTHER HIRED SERVICES,http://opendatacommunities.org/id/county-council/staffordshire  
Staffordshire County Council,AEN Funding Academy Recoupment,Congleton High School,07/06/2021,2238.69,Grants to third parties,Grants to third parties,http://opendatacommunities.org/id/county-council/staffordshire  
Staffordshire County Council,South Staffs Coroner,Coop Midcounties Funeralcare,07/06/2021,604.99,OTHER HIRED SERVICES,OTHER HIRED SERVICES,http://opendatacommunities.org/id/county-council/staffordshire  
Staffordshire County Council,7283 53 ScotchOrchard,CORONA ENERGY,07/06/2021,972.36,Gas,Gas,http://opendatacommunities.org/id/county-council/staffordshire  
Staffordshire County Council,Great Wyrley Day Centre,CORONA ENERGY,07/06/2021,722.96,Gas,Gas,http://opendatacommunities.org/id/county-council/staffordshire  
Staffordshire County Council,7394 Former Moorgate Pri,CORONA ENERGY,07/06/2021,721.08,Gas,Gas,http://opendatacommunities.org/id/county-council/staffordshire  
Staffordshire County Council,1266 Moorlands Day Serv Buxton,CORONA ENERGY,07/06/2021,1763.98,Gas,Gas,http://opendatacommunities.org/id/county-council/staffordshire  
Staffordshire County Council,1339 Newc Day Service Wilmot D,CORONA ENERGY,07/06/2021,800.02,Gas,Gas,http://opendatacommunities.org/id/county-council/staffordshire  
Staffordshire County Council,1136 Bilbrook House 10Carter A,CORONA ENERGY,07/06/2021,943.90,Gas,Gas,http://opendatacommunities.org/id/county-council/staffordshire  
Staffordshire County Council,1348 Greenfields House ST13 6L,CORONA ENERGY,07/06/2021,644.52,Gas,Gas,http://opendatacommunities.org/id/county-council/staffordshire  
Staffordshire County Council,"1328 The Newlands, Cheadle ST1",CORONA ENERGY,07/06/2021,562.30,Gas,Gas,http://opendatacommunities.org/id/county-council/staffordshire  
Staffordshire County Council,1323 Hawthorn House WS13 6EN,CORONA ENERGY,07/06/2021,1259.28,Gas,Gas,http://opendatacommunities.org/id/county-council/staffordshire  
Staffordshire County Council,3036 Grange SYPS Grange Street,CORONA ENERGY,07/06/2021,671.17,Gas,Gas,http://opendatacommunities.org/id/county-council/staffordshire  
Staffordshire County Council,7325 Court House Tamworth B79 ,CORONA ENERGY,07/06/2021,610.13,Gas,Gas,http://opendatacommunities.org/id/county-council/staffordshire  
Staffordshire County Council,"1236 Seabridge Newcastle, ST5 ",CORONA ENERGY,07/06/2021,2004.95,Gas,Gas,http://opendatacommunities.org/id/county-council/staffordshire  
Staffordshire County Council,"0818 Shire Hall, Market St, ST",CORONA ENERGY,07/06/2021,2333.58,Gas,Gas,http://opendatacommunities.org/id/county-council/staffordshire  
Staffordshire County Council,1331 114 Douglas Rd Newcastle ,CORONA ENERGY,07/06/2021,508.49,Gas,Gas,http://opendatacommunities.org/id/county-council/staffordshire  
Staffordshire County Council,2958 Kingston Centre ST16 3TW,CORONA ENERGY,07/06/2021,1553.84,Gas,Gas,http://opendatacommunities.org/id/county-council/staffordshire  
Staffordshire County Council,Moorlands LD Team,CREATIVE SUPPORT,07/06/2021,12249.90,Supported Group Care,Supported Group Care,http://opendatacommunities.org/id/county-council/staffordshire  
Staffordshire County Council,Moorlands LD Team,Creative Support,07/06/2021,2002.38,Supported Group Care,Supported Group Care,http://opendatacommunities.org/id/county-council/staffordshire  
Staffordshire County Council,Cannock Chase LD Team,Creative Support,07/06/2021,2006.76,Supported Group Care,Supported Group Care,http://opendatacommunities.org/id/county-council/staffordshire  
Staffordshire County Council,S Staffs LD Team,Creative Support,07/06/2021,1374.70,Supported Group Care,Supported Group Care,http://opendatacommunities.org/id/county-council/staffordshire  
Staffordshire County Council,Moorlands LD Team,Creative Support,07/06/2021,1497.94,Supported Group Care,Supported Group Care,http://opendatacommunities.org/id/county-council/staffordshire  
Staffordshire County Council,Moorlands LD Team,Creative Support Ltd,07/06/2021,1476.66,Supported Group Care,Supported Group Care,http://opendatacommunities.org/id/county-council/staffordshire  
Staffordshire County Council,Moorlands LD Team,Creative Support Ltd,07/06/2021,1907.54,Supported Group Care,Supported Group Care,http://opendatacommunities.org/id/county-council/staffordshire  
Staffordshire County Council,Moorlands LD Team,Creative Support Ltd,07/06/2021,5320.42,Supported Group Care,Supported Group Care,http://opendatacommunities.org/id/county-council/staffordshire  
Staffordshire County Council,Cannock Chase LD Team,Creative Support Ltd,07/06/2021,2098.02,Supported Group Care,Supported Group Care,http://opendatacommunities.org/id/county-council/staffordshire  
Staffordshire County Council,Moorlands LD Team,Creative Support Ltd,07/06/2021,1441.92,Supported Group Care,Supported Group Care,http://opendatacommunities.org/id/county-council/staffordshire  
Staffordshire County Council,S Staffs LD Team,Creative Support Ltd,07/06/2021,2938.32,Supported Group Care,Supported Group Care,http://opendatacommunities.org/id/county-council/staffordshire  
Staffordshire County Council,Stafford LD Team,Dimensions UK,07/06/2021,1127.40,Supported Group Care,Supported Group Care,http://opendatacommunities.org/id/county-council/staffordshire  
Staffordshire County Council,Moorlands MH Team U65,East Cheshire Housing Consortium,07/06/2021,1313.26,Supported Group Care,Supported Group Care,http://opendatacommunities.org/id/county-council/staffordshire  
Staffordshire County Council,Carematch External,Enabling Activities Ltd,07/06/2021,2100.00,OTHER HIRED SERVICES,OTHER HIRED SERVICES,http://opendatacommunities.org/id/county-council/staffordshire  
Staffordshire County Council,Poplars Landfill,FCC RECYCLING (UK) LTD,07/06/2021,4337.38,Waste Treatment,Waste Treatment,http://opendatacommunities.org/id/county-council/staffordshire  
Staffordshire County Council,COVID 19 F&C,FGH Security Limited,07/06/2021,1176.58,Premises Services,Premises Services,http://opendatacommunities.org/id/county-council/staffordshire  
Staffordshire County Council,Stafford Invoice Led Phys Disa,Freedom Support Limited,07/06/2021,4854.60,Practical Care,Practical Care,http://opendatacommunities.org/id/county-council/staffordshire  
Staffordshire County Council,Hollies/Staff PRU Relocation,G EVANS (SERVICES) LTD,07/06/2021,781.54,Construction Works,Construction Works,http://opendatacommunities.org/id/county-council/staffordshire  
Staffordshire County Council,0944 Cannock Library Manor Ave,G EVANS (SERVICES) LTD,07/06/2021,6568.80,Planned Floors and Stairs,Planned Floors and Stairs,http://opendatacommunities.org/id/county-council/staffordshire  
Staffordshire County Council,Cannock Chase EC Extension,G EVANS (SERVICES) LTD,07/06/2021,120000.00,Construction Works,Construction Works,http://opendatacommunities.org/id/county-council/staffordshire  
Staffordshire County Council,0937 Stone Library High Street,G EVANS (SERVICES) LTD,07/06/2021,1057.50,Day to Day Roofs,Day to Day Roofs,http://opendatacommunities.org/id/county-council/staffordshire  
Staffordshire County Council,Cannock Invoice Led Older Peop,Geocare Services Ltd,07/06/2021,1570.66,Practical Care,Practical Care,http://opendatacommunities.org/id/county-council/staffordshire  
Staffordshire County Council,SStaffs Invoice Led Older Peop,Geocare Services Ltd,07/06/2021,703.08,Practical Care,Practical Care,http://opendatacommunities.org/id/county-council/staffordshire  
Staffordshire County Council,SStaffs Invoice Led Older Peop,Geocare Services Ltd,07/06/2021,1087.38,Practical Care,Practical Care,http://opendatacommunities.org/id/county-council/staffordshire  
Staffordshire County Council,SStaffs Invoice Led Older Peop,Geocare Services Ltd,07/06/2021,543.69,Practical Care,Practical Care,http://opendatacommunities.org/id/county-council/staffordshire  
Staffordshire County Council,DIPS EOTAS,Haven School Ltd,07/06/2021,1008.00, Alternative Education Schemes, Alternative Education Schemes,http://opendatacommunities.org/id/county-council/staffordshire  
Staffordshire County Council,Carematch External,Helping Angels Ltd,07/06/2021,4500.00,OTHER HIRED SERVICES,OTHER HIRED SERVICES,http://opendatacommunities.org/id/county-council/staffordshire  
Staffordshire County Council,COVID19 - Community Testing,Home Instead Senior Care,07/06/2021,945.00,OTHER HIRED SERVICES,OTHER HIRED SERVICES,http://opendatacommunities.org/id/county-council/staffordshire  
Staffordshire County Council,Carematch External,Home Instead Senior Care (Burton),07/06/2021,1200.00,OTHER HIRED SERVICES,OTHER HIRED SERVICES,http://opendatacommunities.org/id/county-council/staffordshire  
Staffordshire County Council,Stafford LD Team,Home Instead Senior Care (Stone),07/06/2021,976.50,Practical Care,Practical Care,http://opendatacommunities.org/id/county-council/staffordshire  
Staffordshire County Council,S Staffs LD Team,Inception Care and Support Ltd,07/06/2021,2547.38,Supported Group Care,Supported Group Care,http://opendatacommunities.org/id/county-council/staffordshire  
Staffordshire County Council,Tamworth LD Team,Individual Care Services - 11 Wembrook C,07/06/2021,25102.93,Supported Group Care,Supported Group Care,http://opendatacommunities.org/id/county-council/staffordshire  
Staffordshire County Council,Newcastle LD Team,Isabella's Homes Ltd,07/06/2021,1819.30,Supported Group Care,Supported Group Care,http://opendatacommunities.org/id/county-council/staffordshire  
Staffordshire County Council,Moorlands LD Team,Jump 2 Independence Ltd,07/06/2021,670.42,Supported Group Care,Supported Group Care,http://opendatacommunities.org/id/county-council/staffordshire  
Staffordshire County Council,COVID 19 COMF,Lex Leisure,07/06/2021,2000.00,OTHER HIRED SERVICES,OTHER HIRED SERVICES,http://opendatacommunities.org/id/county-council/staffordshire  
Staffordshire County Council,Legal Services Unit,LEXISNEXIS,07/06/2021,589.99,Books,Books,http://opendatacommunities.org/id/county-council/staffordshire  
Staffordshire County Council,Moorlands LD Team,Lifeways Community Care Ltd,07/06/2021,2760.12,Supported Group Care,Supported Group Care,http://opendatacommunities.org/id/county-council/staffordshire  
Staffordshire County Council,Stafford LD Team,Lifeways Community Care Ltd,07/06/2021,48337.69,Supported Group Care,Supported Group Care,http://opendatacommunities.org/id/county-council/staffordshire  
Staffordshire County Council,Stafford LD Team,Lifeways Community Care Ltd,07/06/2021,1973.68,Supported Group Care,Supported Group Care,http://opendatacommunities.org/id/county-council/staffordshire  
Staffordshire County Council,S Staffs LD Team,Lifeways Community Care Ltd,07/06/2021,2439.78,Supported Group Care,Supported Group Care,http://opendatacommunities.org/id/county-council/staffordshire  
Staffordshire County Council,Cannock Chase LD Team,Lifeways Community Care Ltd,07/06/2021,1666.14,Supported Group Care,Supported Group Care,http://opendatacommunities.org/id/county-council/staffordshire  
Staffordshire County Council,Stafford LD Team,Lifeways Community Care Ltd,07/06/2021,1336.92,Supported Group Care,Supported Group Care,http://opendatacommunities.org/id/county-council/staffordshire  
Staffordshire County Council,S Staffs LD Team,Lifeways Community Care Ltd,07/06/2021,52612.72,Supported Group Care,Supported Group Care,http://opendatacommunities.org/id/county-council/staffordshire  
Staffordshire County Council,Moorlands MH Team U65,Lifeways SIL Ltd,07/06/2021,1151.20,Supported Group Care,Supported Group Care,http://opendatacommunities.org/id/county-council/staffordshire  
Staffordshire County Council,SWS MH Team U65,Lifeways SIL Ltd,07/06/2021,1873.92,Supported Group Care,Supported Group Care,http://opendatacommunities.org/id/county-council/staffordshire  
Staffordshire County Council,SWS MH Team U65,Lifeways SIL Ltd,07/06/2021,1873.90,Supported Group Care,Supported Group Care,http://opendatacommunities.org/id/county-council/staffordshire  
Staffordshire County Council,BLT MH Team U65,Lifeways SIL Ltd,07/06/2021,1750.00,Supported Group Care,Supported Group Care,http://opendatacommunities.org/id/county-council/staffordshire  
Staffordshire County Council,BLT MH Team U65,Lifeways SIL Ltd,07/06/2021,1667.40,Supported Group Care,Supported Group Care,http://opendatacommunities.org/id/county-council/staffordshire  
Staffordshire County Council,Moorlands LD Team,Lifeways SIL Ltd,07/06/2021,8031.00,Supported Group Care,Supported Group Care,http://opendatacommunities.org/id/county-council/staffordshire  
Staffordshire County Council,Moorlands MH Team U65,Lifeways SIL Ltd,07/06/2021,1873.90,Supported Group Care,Supported Group Care,http://opendatacommunities.org/id/county-council/staffordshire  
Staffordshire County Council,Street Lighting PFI Scheme,LIGHTING FOR STAFFORDSHIRE LTD,07/06/2021,1367936.44,PFI - Street Lighting,PFI - Street Lighting,http://opendatacommunities.org/id/county-council/staffordshire  
Staffordshire County Council,Stafford LD Team,Linfield Care Ltd,07/06/2021,2303.40,Supported Group Care,Supported Group Care,http://opendatacommunities.org/id/county-council/staffordshire  
Staffordshire County Council,Stafford LD Team,Linfield Care Ltd,07/06/2021,2468.40,Supported Group Care,Supported Group Care,http://opendatacommunities.org/id/county-council/staffordshire  
Staffordshire County Council,Newcastle LD Team,Living Ambitions Limited,07/06/2021,2066.12,Supported Group Care,Supported Group Care,http://opendatacommunities.org/id/county-council/staffordshire  
Staffordshire County Council,Newcastle LD Team,Living Ambitions Limited,07/06/2021,1735.02,Supported Group Care,Supported Group Care,http://opendatacommunities.org/id/county-council/staffordshire  
Staffordshire County Council,S Staffs LD Team,Living Ambitions Limited,07/06/2021,1702.86,Supported Group Care,Supported Group Care,http://opendatacommunities.org/id/county-council/staffordshire  
Staffordshire County Council,S Staffs LD Team,Living Ambitions Limited,07/06/2021,867.20,Supported Group Care,Supported Group Care,http://opendatacommunities.org/id/county-council/staffordshire  
Staffordshire County Council,Cannock Chase LD Team,Living Ambitions Limited,07/06/2021,1320.56,Supported Group Care,Supported Group Care,http://opendatacommunities.org/id/county-council/staffordshire  
Staffordshire County Council,Cannock Chase LD Team,Living Ambitions Limited,07/06/2021,4883.60,Supported Group Care,Supported Group Care,http://opendatacommunities.org/id/county-council/staffordshire  
Staffordshire County Council,Tamworth LD Team,Living Ambitions Limited,07/06/2021,1181.38,Supported Group Care,Supported Group Care,http://opendatacommunities.org/id/county-council/staffordshire  
Staffordshire County Council,Stafford LD Team,Living Ambitions Limited,07/06/2021,1908.89,Supported Group Care,Supported Group Care,http://opendatacommunities.org/id/county-council/staffordshire  
Staffordshire County Council,Newcastle LD Team,Living Ambitions Limited,07/06/2021,2806.70,Supported Group Care,Supported Group Care,http://opendatacommunities.org/id/county-council/staffordshire  
Staffordshire County Council,Newcastle LD Team,Living Ambitions Limited,07/06/2021,1689.96,Supported Group Care,Supported Group Care,http://opendatacommunities.org/id/county-council/staffordshire  
Staffordshire County Council,Newcastle LD Team,Living Ambitions Limited,07/06/2021,2166.50,Supported Group Care,Supported Group Care,http://opendatacommunities.org/id/county-council/staffordshire  
Staffordshire County Council,Stafford LD Team,Living Ambitions Limited,07/06/2021,1664.80,Supported Group Care,Supported Group Care,http://opendatacommunities.org/id/county-council/staffordshire  
Staffordshire County Council,Newcastle LD Team,Living Ambitions Limited,07/06/2021,2427.16,Supported Group Care,Supported Group Care,http://opendatacommunities.org/id/county-council/staffordshire  
Staffordshire County Council,Newcastle LD Team,Living Ambitions Limited,07/06/2021,2334.48,Supported Group Care,Supported Group Care,http://opendatacommunities.org/id/county-council/staffordshire  
Staffordshire County Council,Stafford LD Team,Living Ambitions Limited,07/06/2021,1547.14,Supported Group Care,Supported Group Care,http://opendatacommunities.org/id/county-council/staffordshire  
Staffordshire County Council,Newcastle LD Team,Living Ambitions Limited,07/06/2021,1819.34,Supported Group Care,Supported Group Care,http://opendatacommunities.org/id/county-council/staffordshire  
Staffordshire County Council,Stafford LD Team,Living Ambitions Limited,07/06/2021,2928.70,Supported Group Care,Supported Group Care,http://opendatacommunities.org/id/county-council/staffordshire  
Staffordshire County Council,Stafford LD Team,Living Ambitions Limited,07/06/2021,2876.60,Supported Group Care,Supported Group Care,http://opendatacommunities.org/id/county-council/staffordshire  
Staffordshire County Council,S Staffs LD Team,Living Ambitions Limited,07/06/2021,2842.24,Supported Group Care,Supported Group Care,http://opendatacommunities.org/id/county-council/staffordshire  
Staffordshire County Council,Stafford LD Team,Living Ambitions Limited,07/06/2021,2755.10,Supported Group Care,Supported Group Care,http://opendatacommunities.org/id/county-council/staffordshire  
Staffordshire County Council,Tamworth LD Team,Living Ambitions Limited,07/06/2021,1879.74,Supported Group Care,Supported Group Care,http://opendatacommunities.org/id/county-council/staffordshire  
Staffordshire County Council,Stafford LD Team,Living Ambitions Limited,07/06/2021,2403.20,Supported Group Care,Supported Group Care,http://opendatacommunities.org/id/county-council/staffordshire  
Staffordshire County Council,Newcastle LD Team,Living Ambitions Limited,07/06/2021,2880.90,Supported Group Care,Supported Group Care,http://opendatacommunities.org/id/county-council/staffordshire  
Staffordshire County Council,Third Car Leasing Scheme,LOOKERS LEASING LTD,07/06/2021,1246.61,Car Leasing - Early Term Chg,Car Leasing - Early Term Chg,http://opendatacommunities.org/id/county-council/staffordshire  
Staffordshire County Council,Third Car Leasing Scheme,LOOKERS LEASING LTD,07/06/2021,533.49,Car Leasing - Charges Misc,Car Leasing - Charges Misc,http://opendatacommunities.org/id/county-council/staffordshire  
Staffordshire County Council,Third Car Leasing Scheme,LOOKERS LEASING LTD,07/06/2021,720.00,Car Leasing - Charges Misc,Car Leasing - Charges Misc,http://opendatacommunities.org/id/county-council/staffordshire  
Staffordshire County Council,Third Car Leasing Scheme,LOOKERS LEASING LTD,07/06/2021,4716.00,Staff Car Leasing Recharge,Staff Car Leasing Recharge,http://opendatacommunities.org/id/county-council/staffordshire  
Staffordshire County Council,COVID19 - Community Testing,LSC Nursing and Care Services Ltd,07/06/2021,1862.00,OTHER HIRED SERVICES,OTHER HIRED SERVICES,http://opendatacommunities.org/id/county-council/staffordshire  
Staffordshire County Council,S Staffs LD Team,Mencap - Central,07/06/2021,3959.52,Supported Group Care,Supported Group Care,http://opendatacommunities.org/id/county-council/staffordshire  
Staffordshire County Council,Asset Renewal,MITIE TECH FACILITIES MGMNT LTD,07/06/2021,2918.40,Construction Works,Construction Works,http://opendatacommunities.org/id/county-council/staffordshire  
Staffordshire County Council,RK24 Security-Server Support,N T A Monitor Ltd,07/06/2021,1305.60,PROFESSIONAL FEES,PROFESSIONAL FEES,http://opendatacommunities.org/id/county-council/staffordshire  
Staffordshire County Council,Resource Management,N T A Monitor Ltd,07/06/2021,2610.00,Computer Support Charges,Computer Support Charges,http://opendatacommunities.org/id/county-council/staffordshire  
Staffordshire County Council,DIPS EOTAS,NATIONAL TEACHING ADVISORY SERVI,07/06/2021,720.00, Alternative Education Schemes, Alternative Education Schemes,http://opendatacommunities.org/id/county-council/staffordshire  
Staffordshire County Council,DIPS EOTAS,NATIONAL TEACHING ADVISORY SERVI,07/06/2021,792.00, Alternative Education Schemes, Alternative Education Schemes,http://opendatacommunities.org/id/county-council/staffordshire  
Staffordshire County Council,DIPS EOTAS,NATIONAL TEACHING ADVISORY SERVI,07/06/2021,1008.00, Alternative Education Schemes, Alternative Education Schemes,http://opendatacommunities.org/id/county-council/staffordshire  
Staffordshire County Council,A513 Chetwynd Bridge Upgrade,Nigel Davis Solicitors,07/06/2021,2406.00,Land Acquistion,Land Acquistion,http://opendatacommunities.org/id/county-council/staffordshire  
Staffordshire County Council,Central,NORTH STAFFS COM HCARE NHS TRUST,07/06/2021,740.00,Purch of Equipment Bud Only,Purch of Equipment Bud Only,http://opendatacommunities.org/id/county-council/staffordshire  
Staffordshire County Council,Independent School Fee Special,PACE EDUCATION,07/06/2021,108263.30,Fees to Independent Schools,Fees to Independent Schools,http://opendatacommunities.org/id/county-council/staffordshire  
Staffordshire County Council,Independent School Fee Special,PACE EDUCATION,07/06/2021,18803.60,Fees to Independent Schools,Fees to Independent Schools,http://opendatacommunities.org/id/county-council/staffordshire  
Staffordshire County Council,Marketing & Comms,Pretend Lovers,07/06/2021,1950.00,Marketing,Marketing,http://opendatacommunities.org/id/county-council/staffordshire  
Staffordshire County Council,S Staffs LD Team,Progress Adult Living Services,07/06/2021,2344.62,Supported Group Care,Supported Group Care,http://opendatacommunities.org/id/county-council/staffordshire  
Staffordshire County Council,Cannock Chase LD Team,RADIS COMMUNITY CARE,07/06/2021,977.30,Supported Group Care,Supported Group Care,http://opendatacommunities.org/id/county-council/staffordshire  
Staffordshire County Council,Stafford LD Team,RADIS COMMUNITY CARE,07/06/2021,1203.92,Supported Group Care,Supported Group Care,http://opendatacommunities.org/id/county-council/staffordshire  
Staffordshire County Council,Moorlands LD Team,RADIS COMMUNITY CARE,07/06/2021,2009.68,Supported Group Care,Supported Group Care,http://opendatacommunities.org/id/county-council/staffordshire  
Staffordshire County Council,DIPS EOTAS,Reflective School Support,07/06/2021,600.00, Alternative Education Schemes, Alternative Education Schemes,http://opendatacommunities.org/id/county-council/staffordshire  
Staffordshire County Council,Stafford LD Team,Sanctuary Ltd,07/06/2021,2200.00,Supported Group Care,Supported Group Care,http://opendatacommunities.org/id/county-council/staffordshire  
Staffordshire County Council,East Staffs Invoice Led Older ,SL Assist Ltd TA Bluebird Care E. Staffs,07/06/2021,3208.50,Practical Care,Practical Care,http://opendatacommunities.org/id/county-council/staffordshire  
Staffordshire County Council,Winter Maintenance,S-O-T Mobile Link Ltd,07/06/2021,670.00,Radios,Radios,http://opendatacommunities.org/id/county-council/staffordshire  
Staffordshire County Council,Bikeability,Source Design Ltd,07/06/2021,708.00,General Equipment Purchase,General Equipment Purchase,http://opendatacommunities.org/id/county-council/staffordshire  
Staffordshire County Council,Climate Change,SPARK Burntwood CIO,07/06/2021,1000.00,OTHER HIRED SERVICES,OTHER HIRED SERVICES,http://opendatacommunities.org/id/county-council/staffordshire  
Staffordshire County Council,DIPS EOTAS,SPORTING STARS COMM INTEREST CO,07/06/2021,540.00, Alternative Education Schemes, Alternative Education Schemes,http://opendatacommunities.org/id/county-council/staffordshire  
Staffordshire County Council,Carematch External,ST GILES HOSPICE LTD,07/06/2021,1200.00,OTHER HIRED SERVICES,OTHER HIRED SERVICES,http://opendatacommunities.org/id/county-council/staffordshire  
Staffordshire County Council,Tamworth LD Team,St MatthewsSupport Services Ltd,07/06/2021,870.38,Supported Group Care,Supported Group Care,http://opendatacommunities.org/id/county-council/staffordshire  
Staffordshire County Council,Cannock MH Team U65,St MatthewsSupport Services Ltd,07/06/2021,1102.50,Supported Group Care,Supported Group Care,http://opendatacommunities.org/id/county-council/staffordshire  
Staffordshire County Council,Vacant Farm Buildings- Cost Of,St Philips Chambers,07/06/2021,2400.00,Construction Works,Construction Works,http://opendatacommunities.org/id/county-council/staffordshire  
Staffordshire County Council,Tamworth LD Team,Steps to Independence Limited,07/06/2021,8348.50,Supported Group Care,Supported Group Care,http://opendatacommunities.org/id/county-council/staffordshire  
Staffordshire County Council,Moorlands MH Team U65,Supported Homes Ltd (Newark),07/06/2021,2277.00,Supported Group Care,Supported Group Care,http://opendatacommunities.org/id/county-council/staffordshire  
Staffordshire County Council,Moorlands MH Team U65,Supported Homes Ltd (Newark),07/06/2021,2277.00,Supported Group Care,Supported Group Care,http://opendatacommunities.org/id/county-council/staffordshire  
Staffordshire County Council,E Staffs LD Team,The Regard Partnership Limited,07/06/2021,1356.64,Supported Group Care,Supported Group Care,http://opendatacommunities.org/id/county-council/staffordshire  
Staffordshire County Council,Cannock Chase LD Team,Turning Point,07/06/2021,4449.38,Supported Group Care,Supported Group Care,http://opendatacommunities.org/id/county-council/staffordshire  
Staffordshire County Council,Stafford LD Team,Turning Point,07/06/2021,4041.76,Supported Group Care,Supported Group Care,http://opendatacommunities.org/id/county-council/staffordshire  
Staffordshire County Council,Stafford LD Team,Turning Point Service Limited,07/06/2021,2453.86,Supported Group Care,Supported Group Care,http://opendatacommunities.org/id/county-council/staffordshire  
Staffordshire County Council,Newcastle LD Team,Turning Point Service Limited,07/06/2021,3064.30,Supported Group Care,Supported Group Care,http://opendatacommunities.org/id/county-council/staffordshire  
Staffordshire County Council,Newcastle LD Team,Turning Point Service Limited,07/06/2021,3346.86,Supported Group Care,Supported Group Care,http://opendatacommunities.org/id/county-council/staffordshire  
Staffordshire County Council,Stafford LD Team,Turning Point Service Limited,07/06/2021,3576.92,Supported Group Care,Supported Group Care,http://opendatacommunities.org/id/county-council/staffordshire  
Staffordshire County Council,Stafford LD Team,Turning Point Service Limited,07/06/2021,3126.96,Supported Group Care,Supported Group Care,http://opendatacommunities.org/id/county-council/staffordshire  
Staffordshire County Council,Stafford LD Team,Turning Point Service Limited,07/06/2021,3475.38,Supported Group Care,Supported Group Care,http://opendatacommunities.org/id/county-council/staffordshire  
Staffordshire County Council,Newcastle LD Team,Turning Point Service Limited,07/06/2021,3500.48,Supported Group Care,Supported Group Care,http://opendatacommunities.org/id/county-council/staffordshire  
Staffordshire County Council,Cannock Chase LD Team,Turning Point Service Limited,07/06/2021,3034.14,Supported Group Care,Supported Group Care,http://opendatacommunities.org/id/county-council/staffordshire  
Staffordshire County Council,Stafford LD Team,Turning Point Service Limited,07/06/2021,2623.08,Supported Group Care,Supported Group Care,http://opendatacommunities.org/id/county-council/staffordshire  
Staffordshire County Council,Stafford LD Team,Turning Point Service Limited,07/06/2021,2875.22,Supported Group Care,Supported Group Care,http://opendatacommunities.org/id/county-council/staffordshire  
Staffordshire County Council,Stafford LD Team,Turning Point Service Limited,07/06/2021,3706.10,Supported Group Care,Supported Group Care,http://opendatacommunities.org/id/county-council/staffordshire  
Staffordshire County Council,ME ENERGY PARTNERSHIP,Vivid Economics Ltd,07/06/2021,8901.60,CONSULTANT FEES,CONSULTANT FEES,http://opendatacommunities.org/id/county-council/staffordshire  
Staffordshire County Council,S Staffs LD Team,Voyage Care Ltd,07/06/2021,1629.88,Supported Group Care,Supported Group Care,http://opendatacommunities.org/id/county-council/staffordshire  
Staffordshire County Council,Cannock Chase LD Team,Voyage Care Ltd,07/06/2021,2201.86,Supported Group Care,Supported Group Care,http://opendatacommunities.org/id/county-council/staffordshire  
Staffordshire County Council,E Staffs LD Team,Voyage Ltd,07/06/2021,2369.98,Supported Group Care,Supported Group Care,http://opendatacommunities.org/id/county-council/staffordshire  
Staffordshire County Council,S Staffs LD Team,Voyage Ltd,07/06/2021,1450.22,Supported Group Care,Supported Group Care,http://opendatacommunities.org/id/county-council/staffordshire  
Staffordshire County Council,S Staffs LD Team,Voyage Ltd,07/06/2021,1662.64,Supported Group Care,Supported Group Care,http://opendatacommunities.org/id/county-council/staffordshire  
Staffordshire County Council,Newc PD - South,Voyage Ltd,07/06/2021,2716.28,Supported Group Care,Supported Group Care,http://opendatacommunities.org/id/county-council/staffordshire  
Staffordshire County Council,Cannock Invoice Led Phys Disab,Voyage Ltd,07/06/2021,13575.52,Supported Group Care,Supported Group Care,http://opendatacommunities.org/id/county-council/staffordshire  
Staffordshire County Council,1 STI Test & Treat,WALSALL HEALTHCARE NHS TRUST,07/06/2021,4923.49,other services internal,other services internal,http://opendatacommunities.org/id/county-council/staffordshire  
Staffordshire County Council,1 STI Test & Treat,WALSALL HEALTHCARE NHS TRUST,07/06/2021,7187.07,other services internal,other services internal,http://opendatacommunities.org/id/county-council/staffordshire  
Staffordshire County Council,1 STI Test & Treat,WALSALL HEALTHCARE NHS TRUST,07/06/2021,6588.36,other services internal,other services internal,http://opendatacommunities.org/id/county-council/staffordshire  
Staffordshire County Council,COVID 19 COMF,Walton Community Centre,07/06/2021,1228.00,OTHER HIRED SERVICES,OTHER HIRED SERVICES,http://opendatacommunities.org/id/county-council/staffordshire  
Staffordshire County Council,Independent Sch Fees Mainstr'm,WISE OWL PRIVATE DAY NURSERY,07/06/2021,1603.80,Fees to Independent Schools,Fees to Independent Schools,http://opendatacommunities.org/id/county-council/staffordshire  
Staffordshire County Council,Carematch External,WOODFORD HOUSE NURSING HOME,07/06/2021,2580.00,OTHER HIRED SERVICES,OTHER HIRED SERVICES,http://opendatacommunities.org/id/county-council/staffordshire  
Staffordshire County Council,Independent Sch Nursery 3&4yr,ACADEMY EARLY YEARS CHILDCARE LTD,08/06/2021,1780.66,Grants to third parties,Grants to third parties,http://opendatacommunities.org/id/county-council/staffordshire  
Staffordshire County Council,Stafford Invoice Led Phys Disa,Action Deafness,08/06/2021,900.00,Practical Care,Practical Care,http://opendatacommunities.org/id/county-council/staffordshire  
Staffordshire County Council,Independent Sch Nursery 3&4yr,All Saints' CE (A) First Sch,08/06/2021,1424.53,Grants to third parties,Grants to third parties,http://opendatacommunities.org/id/county-council/staffordshire  
Staffordshire County Council,Specialist Assessment,Atkinson Lewis,08/06/2021,2724.00,Prev Supp Legal Costs,Prev Supp Legal Costs,http://opendatacommunities.org/id/county-council/staffordshire  
Staffordshire County Council,TPECG / TPG,Bailey Street AP Academy,08/06/2021,29700.00,Grants to third parties,Grants to third parties,http://opendatacommunities.org/id/county-council/staffordshire  
Staffordshire County Council,Independent Sch Nursery 3&4yr,BAMBINO'S PRIVATE DAY NURSERY LTD,08/06/2021,1780.66,Grants to third parties,Grants to third parties,http://opendatacommunities.org/id/county-council/staffordshire  
Staffordshire County Council,Independent Sch Nursery 3&4yr,BILBROOK PLAYGROUP,08/06/2021,1780.66,Grants to third parties,Grants to third parties,http://opendatacommunities.org/id/county-council/staffordshire  
Staffordshire County Council,TPECG / TPG,BLACKFRIARS ACADEMY,08/06/2021,67980.00,Grants to third parties,Grants to third parties,http://opendatacommunities.org/id/county-council/staffordshire  
Staffordshire County Council,Cannock Chase LD Team,Bluebird Care (Mid Staffs),08/06/2021,699.60,Practical Care,Practical Care,http://opendatacommunities.org/id/county-council/staffordshire  
Staffordshire County Council,Childcare,Brian Morton,08/06/2021,600.00,Legal Costs and Stamp Duty,Legal Costs and Stamp Duty,http://opendatacommunities.org/id/county-council/staffordshire  
Staffordshire County Council,Independent Sch Fees Mainstr'm,Bursley Academy,08/06/2021,1016.50,Fees to Independent Schools,Fees to Independent Schools,http://opendatacommunities.org/id/county-council/staffordshire  
Staffordshire County Council,Think 2 Project,Busy Bees Day Nursery Limited,08/06/2021,854.70,Awards Funded Childcare Places,Awards Funded Childcare Places,http://opendatacommunities.org/id/county-council/staffordshire  
Staffordshire County Council,Independent Sch Nursery 3&4yr,Busy Bees Day Nursery Limited,08/06/2021,820.66,Grants to third parties,Grants to third parties,http://opendatacommunities.org/id/county-council/staffordshire  
Staffordshire County Council,Independent Sch Nursery 3&4yr,CARVER ROAD PLAYGROUP,08/06/2021,1780.66,Grants to third parties,Grants to third parties,http://opendatacommunities.org/id/county-council/staffordshire  
Staffordshire County Council,TPECG / TPG,Chaselea Alternate Provision Academy,08/06/2021,30360.00,Grants to third parties,Grants to third parties,http://opendatacommunities.org/id/county-council/staffordshire  
Staffordshire County Council,Independent Sch Nursery 3&4yr,CHEEKY MONKEYS DAY NURSERY,08/06/2021,1780.66,Grants to third parties,Grants to third parties,http://opendatacommunities.org/id/county-council/staffordshire  
Staffordshire County Council,Independent Sch Nursery 3&4yr,CHEEKY MONKEYS DAY NURSERY,08/06/2021,2967.77,Grants to third parties,Grants to third parties,http://opendatacommunities.org/id/county-council/staffordshire  
Staffordshire County Council,TPECG / TPG,Cherry Trees School,08/06/2021,31680.00,Grants to third parties,Grants to third parties,http://opendatacommunities.org/id/county-council/staffordshire  
Staffordshire County Council,Transport,COASTAL LINER LTD,08/06/2021,1665.80,Transport,Transport,http://opendatacommunities.org/id/county-council/staffordshire  
Staffordshire County Council,TPECG / TPG,COPPICE ACADEMY,08/06/2021,57420.00,Grants to third parties,Grants to third parties,http://opendatacommunities.org/id/county-council/staffordshire  
Staffordshire County Council,S Staffs LD Team,Craegmoor Priory Group,08/06/2021,5628.71,Supported Group Care,Supported Group Care,http://opendatacommunities.org/id/county-council/staffordshire  
Staffordshire County Council,S Staffs LD Team,Craegmoor Priory Group,08/06/2021,4185.00,Supported Group Care,Supported Group Care,http://opendatacommunities.org/id/county-council/staffordshire  
Staffordshire County Council,S Staffs LD Team,Craegmoor Priory Group,08/06/2021,5049.55,Supported Group Care,Supported Group Care,http://opendatacommunities.org/id/county-council/staffordshire  
Staffordshire County Council,Troubled Families EA,Department for Work & Pensions,08/06/2021,11464.36,Payments to other Authorities,Payments to other Authorities,http://opendatacommunities.org/id/county-council/staffordshire  
Staffordshire County Council,Independent Sch Nursery 3&4yr,Dosthill Nursery and Care Club,08/06/2021,890.33,Grants to third parties,Grants to third parties,http://opendatacommunities.org/id/county-council/staffordshire  
Staffordshire County Council,COVID19 - Community Testing,DOUGLAS MACMILLAN HOSPICE,08/06/2021,2100.00,OTHER HIRED SERVICES,OTHER HIRED SERVICES,http://opendatacommunities.org/id/county-council/staffordshire  
Staffordshire County Council,Stafford Invoice Led Older Peo,Embrace Quality Care,08/06/2021,2841.36,Practical Care,Practical Care,http://opendatacommunities.org/id/county-council/staffordshire  
Staffordshire County Council,Virtual School - Pupil Premium,Emotion Coaching UK Ltd,08/06/2021,15000.00,CAT1 COURSE FEES,CAT1 COURSE FEES,http://opendatacommunities.org/id/county-council/staffordshire  
Staffordshire County Council,Cannock Invoice Led Older Peop,Executive Care Agency Midlands Ltd,08/06/2021,707.66,Practical Care,Practical Care,http://opendatacommunities.org/id/county-council/staffordshire  
Staffordshire County Council,Cannock Invoice Led Older Peop,Executive Care Agency Midlands Ltd,08/06/2021,513.52,Practical Care,Practical Care,http://opendatacommunities.org/id/county-council/staffordshire  
Staffordshire County Council,Cannock Invoice Led Older Peop,Executive Care Agency Midlands Ltd,08/06/2021,543.76,Practical Care,Practical Care,http://opendatacommunities.org/id/county-council/staffordshire  
Staffordshire County Council,Moorlands LD Team,Freespirits Day Care Ltd,08/06/2021,3126.90,Day Care,Day Care,http://opendatacommunities.org/id/county-council/staffordshire  
Staffordshire County Council,Specialist Assessment,GATEWAY PSYCHOLOGY LTD,08/06/2021,5028.75,Prev Supp Legal Costs,Prev Supp Legal Costs,http://opendatacommunities.org/id/county-council/staffordshire  
Staffordshire County Council,Independent Sch Nursery 3&4yr,Happy Hours @ Biddulph,08/06/2021,1780.66,Grants to third parties,Grants to third parties,http://opendatacommunities.org/id/county-council/staffordshire  
Staffordshire County Council,Rugeley Educational Endowments,Hart School,08/06/2021,5040.00,Educational Equipment Purchase,Educational Equipment Purchase,http://opendatacommunities.org/id/county-council/staffordshire  
Staffordshire County Council,Moorlands LD Team,HAYFIELD,08/06/2021,3032.07,Supported Group Care,Supported Group Care,http://opendatacommunities.org/id/county-council/staffordshire  
Staffordshire County Council,SStaffs Invoice Led Older Peop,Health and Alliance Home Care LTD,08/06/2021,1450.12,Practical Care,Practical Care,http://opendatacommunities.org/id/county-council/staffordshire  
Staffordshire County Council,Adoption Support Fund,Help 4 Psychology Services Ltd,08/06/2021,2500.00,PROFESSIONAL FEES,PROFESSIONAL FEES,http://opendatacommunities.org/id/county-council/staffordshire  
Staffordshire County Council,Independent Sch Nursery 3&4yr,HEY DIDDLE DIDDLE,08/06/2021,1780.66,Grants to third parties,Grants to third parties,http://opendatacommunities.org/id/county-council/staffordshire  
Staffordshire County Council,Independent Sch Nursery 3&4yr,HONEY POTS DAY NURSERY LTD,08/06/2021,1780.66,Grants to third parties,Grants to third parties,http://opendatacommunities.org/id/county-council/staffordshire  
Staffordshire County Council,Independent Sch Nursery 3&4yr,HORN END NURSERY SCHOOL,08/06/2021,1780.66,Grants to third parties,Grants to third parties,http://opendatacommunities.org/id/county-council/staffordshire  
Staffordshire County Council,Independent Sch Nursery 3&4yr,HUGGIES DAY NURSERY LTD,08/06/2021,1780.66,Grants to third parties,Grants to third parties,http://opendatacommunities.org/id/county-council/staffordshire  
Staffordshire County Council,Highways Laboratory,I2 Analytical Ltd,08/06/2021,1393.20,CONSULTANT FEES,CONSULTANT FEES,http://opendatacommunities.org/id/county-council/staffordshire  
Staffordshire County Council,Independent Sch Nursery 3&4yr,J B 's Tots,08/06/2021,1780.66,Grants to third parties,Grants to third parties,http://opendatacommunities.org/id/county-council/staffordshire  
Staffordshire County Council,Selling Service,James Cleary,08/06/2021,840.00,legal services,legal services,http://opendatacommunities.org/id/county-council/staffordshire  
Staffordshire County Council,Independent Sch Nursery 3&4yr,KEELE UNIVERSITY DAY NURSERY,08/06/2021,738.60,Grants to third parties,Grants to third parties,http://opendatacommunities.org/id/county-council/staffordshire  
Staffordshire County Council,Independent Sch Nursery 3&4yr,KEELE UNIVERSITY DAY NURSERY,08/06/2021,1780.66,Grants to third parties,Grants to third parties,http://opendatacommunities.org/id/county-council/staffordshire  
Staffordshire County Council,Independent Sch Nursery 3&4yr,KINGSLEY KINGFISHERS PRE SCH PLYGRP,08/06/2021,1780.66,Grants to third parties,Grants to third parties,http://opendatacommunities.org/id/county-council/staffordshire  
Staffordshire County Council,COVID19 - Community Testing,Lex Leisure,08/06/2021,5180.00,OTHER HIRED SERVICES,OTHER HIRED SERVICES,http://opendatacommunities.org/id/county-council/staffordshire  
Staffordshire County Council,COVID 19 CEV Individuals,LICHFIELD & DIST LIVE AT HOME SCHM,08/06/2021,7850.00,OTHER HIRED SERVICES,OTHER HIRED SERVICES,http://opendatacommunities.org/id/county-council/staffordshire  
Staffordshire County Council,Specialist Assessment,Lindsay Cunningham Limited,08/06/2021,1500.18,Prev Supp Legal Costs,Prev Supp Legal Costs,http://opendatacommunities.org/id/county-council/staffordshire  
Staffordshire County Council,Lichfield LD Team,LINFIELD CARE LIMITED,08/06/2021,5806.92,Supported Group Care,Supported Group Care,http://opendatacommunities.org/id/county-council/staffordshire  
Staffordshire County Council,Independent Sch Nursery 3&4yr,LITTLE EXPLORERS PRESCHOOL,08/06/2021,890.33,Grants to third parties,Grants to third parties,http://opendatacommunities.org/id/county-council/staffordshire  
Staffordshire County Council,Independent Sch Nursery 3&4yr,Little Stars Nursery,08/06/2021,711.24,Grants to third parties,Grants to third parties,http://opendatacommunities.org/id/county-council/staffordshire  
Staffordshire County Council,"S278 Eagle Drive, Tamworth",M & J Evans Construction Ltd,08/06/2021,45724.03,Construction Works,Construction Works,http://opendatacommunities.org/id/county-council/staffordshire  
Staffordshire County Council,TPECG / TPG,Manor Hall Academy Trust,08/06/2021,33000.00,Grants to third parties,Grants to third parties,http://opendatacommunities.org/id/county-council/staffordshire  
Staffordshire County Council,TPECG / TPG,Manor Hall Academy Trust,08/06/2021,63360.00,Grants to third parties,Grants to third parties,http://opendatacommunities.org/id/county-council/staffordshire  
Staffordshire County Council,TPECG / TPG,Manor Hall Academy Trust,08/06/2021,82500.00,Grants to third parties,Grants to third parties,http://opendatacommunities.org/id/county-council/staffordshire  
Staffordshire County Council,TPECG / TPG,Meadows School,08/06/2021,75900.00,Grants to third parties,Grants to third parties,http://opendatacommunities.org/id/county-council/staffordshire  
Staffordshire County Council,TPECG / TPG,Merryfields School,08/06/2021,66000.00,Grants to third parties,Grants to third parties,http://opendatacommunities.org/id/county-council/staffordshire  
Staffordshire County Council,Estates,Michael Page International Recruitment,08/06/2021,1056.00,AGENCY STAFF,AGENCY STAFF,http://opendatacommunities.org/id/county-council/staffordshire  
Staffordshire County Council,Cannock Chase LD Team,Midway Support Services,08/06/2021,23697.95,Supported Group Care,Supported Group Care,http://opendatacommunities.org/id/county-council/staffordshire  
Staffordshire County Council,Lichfield LD Team,Midway Support Services,08/06/2021,13922.10,Supported Group Care,Supported Group Care,http://opendatacommunities.org/id/county-council/staffordshire  
Staffordshire County Council,Newcastle MH Team U65,Midway Support Services,08/06/2021,4429.50,Supported Group Care,Supported Group Care,http://opendatacommunities.org/id/county-council/staffordshire  
Staffordshire County Council,Newcastle MH Team U65,Midway Support Services,08/06/2021,4577.15,Supported Group Care,Supported Group Care,http://opendatacommunities.org/id/county-council/staffordshire  
Staffordshire County Council,SEN Direct Payments,,08/06/2021,1235.00,Direct Payments Other,Direct Payments Other,http://opendatacommunities.org/id/county-council/staffordshire  
Staffordshire County Council,Independent Sch Nursery 3&4yr,MUMBLES DAY NURSERY,08/06/2021,1424.53,Grants to third parties,Grants to third parties,http://opendatacommunities.org/id/county-council/staffordshire  
Staffordshire County Council,Independent Sch Nursery 3&4yr,N HINTON,08/06/2021,1780.66,Grants to third parties,Grants to third parties,http://opendatacommunities.org/id/county-council/staffordshire  
Staffordshire County Council,Independent Sch Nursery 3&4yr,N HINTON,08/06/2021,1780.66,Grants to third parties,Grants to third parties,http://opendatacommunities.org/id/county-council/staffordshire  
Staffordshire County Council,DIPS EOTAS,NATIONAL TEACHING ADVISORY SERVI,08/06/2021,1584.00, Alternative Education Schemes, Alternative Education Schemes,http://opendatacommunities.org/id/county-council/staffordshire  
Staffordshire County Council,Destination Management Partner,New Mind,08/06/2021,28806.00,OTHER HIRED SERVICES,OTHER HIRED SERVICES,http://opendatacommunities.org/id/county-council/staffordshire  
Staffordshire County Council,E Staffs LD Team,NH Care,08/06/2021,19065.00,RCLS Learning Disability,RCLS Learning Disability,http://opendatacommunities.org/id/county-council/staffordshire  
Staffordshire County Council,Home to school transport-main,,08/06/2021,954.20,Home School Direct Payment,Home School Direct Payment,http://opendatacommunities.org/id/county-council/staffordshire  
Staffordshire County Council,DIPS EOTAS,NISAI VIRTUAL ACADEMY LTD,08/06/2021,20000.00, Alternative Education Schemes, Alternative Education Schemes,http://opendatacommunities.org/id/county-council/staffordshire  
Staffordshire County Council,Independent School Fee Special,PEAK PURSUITS LTD,08/06/2021,5400.00,Fees to Independent Schools,Fees to Independent Schools,http://opendatacommunities.org/id/county-council/staffordshire  
Staffordshire County Council,Independent School Fee Special,PEAK PURSUITS LTD,08/06/2021,5400.00,Fees to Independent Schools,Fees to Independent Schools,http://opendatacommunities.org/id/county-council/staffordshire  
Staffordshire County Council,Independent School Fee Special,PEAK PURSUITS LTD,08/06/2021,3600.00,Fees to Independent Schools,Fees to Independent Schools,http://opendatacommunities.org/id/county-council/staffordshire  
Staffordshire County Council,Independent School Fee Special,PEAK PURSUITS LTD,08/06/2021,3600.00,Fees to Independent Schools,Fees to Independent Schools,http://opendatacommunities.org/id/county-council/staffordshire  
Staffordshire County Council,Independent School Fee Special,PEAK PURSUITS LTD,08/06/2021,8280.00,Fees to Independent Schools,Fees to Independent Schools,http://opendatacommunities.org/id/county-council/staffordshire  
Staffordshire County Council,Independent School Fee Special,PEAK PURSUITS LTD,08/06/2021,8280.00,Fees to Independent Schools,Fees to Independent Schools,http://opendatacommunities.org/id/county-council/staffordshire  
Staffordshire County Council,Independent School Fee Special,PEAK PURSUITS LTD,08/06/2021,6840.00,Fees to Independent Schools,Fees to Independent Schools,http://opendatacommunities.org/id/county-council/staffordshire  
Staffordshire County Council,Independent School Fee Special,PEAK PURSUITS LTD,08/06/2021,6840.00,Fees to Independent Schools,Fees to Independent Schools,http://opendatacommunities.org/id/county-council/staffordshire  
Staffordshire County Council,Independent School Fee Special,PEAK PURSUITS LTD,08/06/2021,6480.00,Fees to Independent Schools,Fees to Independent Schools,http://opendatacommunities.org/id/county-council/staffordshire  
Staffordshire County Council,Independent School Fee Special,PEAK PURSUITS LTD,08/06/2021,6480.00,Fees to Independent Schools,Fees to Independent Schools,http://opendatacommunities.org/id/county-council/staffordshire  
Staffordshire County Council,E Staffs LD Team,PROGRESS CHILDREN'S SERVICES LTD,08/06/2021,14233.34,Supported Group Care,Supported Group Care,http://opendatacommunities.org/id/county-council/staffordshire  
Staffordshire County Council,TPECG / TPG,Queens Croft High School,08/06/2021,145200.00,Grants to third parties,Grants to third parties,http://opendatacommunities.org/id/county-council/staffordshire  
Staffordshire County Council,DIPS EOTAS,Reflective School Support,08/06/2021,960.00, Alternative Education Schemes, Alternative Education Schemes,http://opendatacommunities.org/id/county-council/staffordshire  
Staffordshire County Council,DIPS EOTAS,Reflective School Support,08/06/2021,840.00, Alternative Education Schemes, Alternative Education Schemes,http://opendatacommunities.org/id/county-council/staffordshire  
Staffordshire County Council,DIPS EOTAS,Reflective School Support,08/06/2021,806.40, Alternative Education Schemes, Alternative Education Schemes,http://opendatacommunities.org/id/county-council/staffordshire  
Staffordshire County Council,St Giles St Georges Pool Dam,ROY BEECH CONTRACTORS LTD,08/06/2021,37299.24,Construction Works,Construction Works,http://opendatacommunities.org/id/county-council/staffordshire  
Staffordshire County Council,Stafford LD Team,Sandwell Community Caring Trust,08/06/2021,6728.79,Supported Group Care,Supported Group Care,http://opendatacommunities.org/id/county-council/staffordshire  
Staffordshire County Council,TPECG / TPG,SAXON HILL ACADEMY,08/06/2021,69300.00,Grants to third parties,Grants to third parties,http://opendatacommunities.org/id/county-council/staffordshire  
Staffordshire County Council,Moor OP - North,SCC Sundry BACS  1 Company,08/06/2021,542.10,NCLS Elderly incl Phys Disab,NCLS Elderly incl Phys Disab,http://opendatacommunities.org/id/county-council/staffordshire  
Staffordshire County Council,Independent Sch Nursery 3&4yr,Sheepwash Farm Day Nursery,08/06/2021,712.27,Grants to third parties,Grants to third parties,http://opendatacommunities.org/id/county-council/staffordshire  
Staffordshire County Council,Independent Sch Fees Mainstr'm,SPORTING STARS COMM INTEREST CO,08/06/2021,7564.00,Fees to Independent Schools,Fees to Independent Schools,http://opendatacommunities.org/id/county-council/staffordshire  
Staffordshire County Council,Independent Sch Fees Mainstr'm,SPORTING STARS COMM INTEREST CO,08/06/2021,3654.00,Fees to Independent Schools,Fees to Independent Schools,http://opendatacommunities.org/id/county-council/staffordshire  
Staffordshire County Council,Refugee Support,Spring Housing Association,08/06/2021,714.98,Other Agency Contributions,Other Agency Contributions,http://opendatacommunities.org/id/county-council/staffordshire  
Staffordshire County Council,TPECG / TPG,Springfield School,08/06/2021,39600.00,Grants to third parties,Grants to third parties,http://opendatacommunities.org/id/county-council/staffordshire  
Staffordshire County Council,Independent Sch Nursery 3&4yr,St John's CofE First School,08/06/2021,1068.40,Grants to third parties,Grants to third parties,http://opendatacommunities.org/id/county-council/staffordshire  
Staffordshire County Council,Beaconside Innovation Centre,STAFFORD BOROUGH COUNCIL,08/06/2021,4491.00,Business Rates,Business Rates,http://opendatacommunities.org/id/county-council/staffordshire  
Staffordshire County Council,Beaconside Innovation Centre,STAFFORD BOROUGH COUNCIL,08/06/2021,4198.40,Business Rates,Business Rates,http://opendatacommunities.org/id/county-council/staffordshire  
Staffordshire County Council,Land & Property in Advance,STAFFORD BOROUGH COUNCIL,08/06/2021,3650.30,Council Tax,Council Tax,http://opendatacommunities.org/id/county-council/staffordshire  
Staffordshire County Council,Land & Property in Advance,STAFFORD BOROUGH COUNCIL,08/06/2021,4907.40,Council Tax,Council Tax,http://opendatacommunities.org/id/county-council/staffordshire  
Staffordshire County Council,Land & Property in Advance,STAFFORD BOROUGH COUNCIL,08/06/2021,3680.55,Council Tax,Council Tax,http://opendatacommunities.org/id/county-council/staffordshire  
Staffordshire County Council,Day Services Lichfield Unalloc,Staffordshire University Acad Trust,08/06/2021,1591.45,OTHER HIRED SERVICES,OTHER HIRED SERVICES,http://opendatacommunities.org/id/county-council/staffordshire  
Staffordshire County Council,Day Services Lichfield Unalloc,Staffordshire University Acad Trust,08/06/2021,1591.45,OTHER HIRED SERVICES,OTHER HIRED SERVICES,http://opendatacommunities.org/id/county-council/staffordshire  
Staffordshire County Council,DIPS EOTAS,Targeted Provision Ltd,08/06/2021,840.00, Alternative Education Schemes, Alternative Education Schemes,http://opendatacommunities.org/id/county-council/staffordshire  
Staffordshire County Council,Transport,Tauseef Ahmed T/A 43 Cabs,08/06/2021,14304.74,Transport,Transport,http://opendatacommunities.org/id/county-council/staffordshire  
Staffordshire County Council,Independent Sch Fees Mainstr'm,The Education Development Service Ltd,08/06/2021,9500.00,Fees to Independent Schools,Fees to Independent Schools,http://opendatacommunities.org/id/county-council/staffordshire  
Staffordshire County Council,TPECG / TPG,The Fountains High School,08/06/2021,122100.00,Grants to third parties,Grants to third parties,http://opendatacommunities.org/id/county-council/staffordshire  
Staffordshire County Council,TPECG / TPG,The Fountains Primary School,08/06/2021,102300.00,Grants to third parties,Grants to third parties,http://opendatacommunities.org/id/county-council/staffordshire  
Staffordshire County Council,Independent Sch Nursery 3&4yr,THE LYME NURSERY SCHOOL,08/06/2021,890.33,Grants to third parties,Grants to third parties,http://opendatacommunities.org/id/county-council/staffordshire  
Staffordshire County Council,Independent Sch Nursery 3&4yr,TINY TOEZ@EAST STAFFS,08/06/2021,1780.66,Grants to third parties,Grants to third parties,http://opendatacommunities.org/id/county-council/staffordshire  
Staffordshire County Council,Transport,Total Travel Transport UK Ltd,08/06/2021,970.20,Transport,Transport,http://opendatacommunities.org/id/county-council/staffordshire  
Staffordshire County Council,Pre-Sale And Planning Costs,Travis Baker Geo-Environmental Limited,08/06/2021,6143.16,Ext Fees Construction,Ext Fees Construction,http://opendatacommunities.org/id/county-council/staffordshire  
Staffordshire County Council,Transport,Trent Travel Ltd,08/06/2021,3742.70,Transport,Transport,http://opendatacommunities.org/id/county-council/staffordshire  
Staffordshire County Council,TPECG / TPG,Two Rivers High School,08/06/2021,116160.00,Grants to third parties,Grants to third parties,http://opendatacommunities.org/id/county-council/staffordshire  
Staffordshire County Council,TPECG / TPG,Two Rivers Primary School,08/06/2021,80520.00,Grants to third parties,Grants to third parties,http://opendatacommunities.org/id/county-council/staffordshire  
Staffordshire County Council,Independent Sch Nursery 3&4yr,Tynsel Parkes CofE First School,08/06/2021,820.66,Grants to third parties,Grants to third parties,http://opendatacommunities.org/id/county-council/staffordshire  
Staffordshire County Council,COVID19 - Community Testing,Unitech Engineering Ltd,08/06/2021,756.00,OTHER HIRED SERVICES,OTHER HIRED SERVICES,http://opendatacommunities.org/id/county-council/staffordshire  
Staffordshire County Council,COVID19 - Community Testing,Unitech Engineering Ltd,08/06/2021,1673.00,OTHER HIRED SERVICES,OTHER HIRED SERVICES,http://opendatacommunities.org/id/county-council/staffordshire  
Staffordshire County Council,COVID19 - Community Testing,Unitech Engineering Ltd,08/06/2021,1596.00,OTHER HIRED SERVICES,OTHER HIRED SERVICES,http://opendatacommunities.org/id/county-council/staffordshire  
Staffordshire County Council,COVID19 - Community Testing,Unitech Engineering Ltd,08/06/2021,1477.00,OTHER HIRED SERVICES,OTHER HIRED SERVICES,http://opendatacommunities.org/id/county-council/staffordshire  
Staffordshire County Council,South Staffs Coroner,Univ Hospitals of North Mids NHS Trust,08/06/2021,1440.00,INQ EXPS S STAFFS,INQ EXPS S STAFFS,http://opendatacommunities.org/id/county-council/staffordshire  
Staffordshire County Council,TPECG / TPG,WALTON HALL ACADEMY,08/06/2021,99000.00,Grants to third parties,Grants to third parties,http://opendatacommunities.org/id/county-council/staffordshire  
Staffordshire County Council,Stafford LD Team,WESTSIDE (STAFFORD) LTD,08/06/2021,663.60,Rental of Vehicles,Rental of Vehicles,http://opendatacommunities.org/id/county-council/staffordshire  
Staffordshire County Council,Stafford LD Team,WESTSIDE (STAFFORD) LTD,08/06/2021,1248.00,Rental of Vehicles,Rental of Vehicles,http://opendatacommunities.org/id/county-council/staffordshire  
Staffordshire County Council,TPECG / TPG,Wightwick Hall School,08/06/2021,50820.00,Grants to third parties,Grants to third parties,http://opendatacommunities.org/id/county-council/staffordshire  
Staffordshire County Council,Independent Sch Nursery 3&4yr,Winshill Childminding,08/06/2021,1780.66,Grants to third parties,Grants to third parties,http://opendatacommunities.org/id/county-council/staffordshire  
Staffordshire County Council,DIPS EOTAS,1st Staff Ltd,09/06/2021,1200.00, Alternative Education Schemes, Alternative Education Schemes,http://opendatacommunities.org/id/county-council/staffordshire  
Staffordshire County Council,Fuel,ALLSTAR BUSINESS SOLUTIONS LTD,09/06/2021,3994.57,Petrol & Oil,Petrol & Oil,http://opendatacommunities.org/id/county-council/staffordshire  
Staffordshire County Council,HR General,ANTHONY COLLINS SOLICITORS,09/06/2021,3840.00,Legal Costs and Stamp Duty,Legal Costs and Stamp Duty,http://opendatacommunities.org/id/county-council/staffordshire  
Staffordshire County Council,Core Services,Archives West Midlands,09/06/2021,500.00,Subscriptions General,Subscriptions General,http://opendatacommunities.org/id/county-council/staffordshire  
Staffordshire County Council,Spot Hire,Arnold Clark,09/06/2021,705.60,CFC Recharge for Vehicles,CFC Recharge for Vehicles,http://opendatacommunities.org/id/county-council/staffordshire  
Staffordshire County Council,COVID 19 H&C,ARROW COUNTY SUPPLIES,09/06/2021,781.04,PROTECTIVE CLOTHING,PROTECTIVE CLOTHING,http://opendatacommunities.org/id/county-council/staffordshire  
Staffordshire County Council,Specialist Assessment,Atkinson Lewis,09/06/2021,553.60,Prev Supp Legal Costs,Prev Supp Legal Costs,http://opendatacommunities.org/id/county-council/staffordshire  
Staffordshire County Council,Cannock Chase LD Team,Bluebird Care (Mid Staffs),09/06/2021,4012.80,Practical Care,Practical Care,http://opendatacommunities.org/id/county-council/staffordshire  
Staffordshire County Council,Security Print,CANON (UK) LTD,09/06/2021,985.60,General Equipment Repair/Maint,General Equipment Repair/Maint,http://opendatacommunities.org/id/county-council/staffordshire  
Staffordshire County Council,Safeguarding Board - Admin,CHIEF CONSTABLE OF STAFFORDSHIRE POLICE,09/06/2021,10874.28,AGENCY STAFF,AGENCY STAFF,http://opendatacommunities.org/id/county-council/staffordshire  
Staffordshire County Council,2 Contraception,Colliery Practice,09/06/2021,5042.40,PH LARC claims - GPs,PH LARC claims - GPs,http://opendatacommunities.org/id/county-council/staffordshire  
Staffordshire County Council,P16 top up for Indep Specialis,Craegmoor Strathmore College,09/06/2021,3866.00,Events and Competitions,Events and Competitions,http://opendatacommunities.org/id/county-council/staffordshire  
Staffordshire County Council,P16 top up for Indep Specialis,Craegmoor Strathmore College,09/06/2021,16710.33,Events and Competitions,Events and Competitions,http://opendatacommunities.org/id/county-council/staffordshire  
Staffordshire County Council,P16 top up for Indep Specialis,Craegmoor Strathmore College,09/06/2021,17248.00,Events and Competitions,Events and Competitions,http://opendatacommunities.org/id/county-council/staffordshire  
Staffordshire County Council,P16 top up for Indep Specialis,Craegmoor Strathmore College,09/06/2021,18349.00,Events and Competitions,Events and Competitions,http://opendatacommunities.org/id/county-council/staffordshire  
Staffordshire County Council,P16 top up for Indep Specialis,Craegmoor Strathmore College,09/06/2021,8469.67,Events and Competitions,Events and Competitions,http://opendatacommunities.org/id/county-council/staffordshire  
Staffordshire County Council,P16 top up for Indep Specialis,Craegmoor Strathmore College,09/06/2021,11221.33,Events and Competitions,Events and Competitions,http://opendatacommunities.org/id/county-council/staffordshire  
Staffordshire County Council,K Info & Intell,Do It Life Social Enterprise Ltd,09/06/2021,36000.00,Other payments / claims,Other payments / claims,http://opendatacommunities.org/id/county-council/staffordshire  
Staffordshire County Council,MCA / DoLs / AMHP,Dr Jonathon Mayo,09/06/2021,600.00,Medical Fees,Medical Fees,http://opendatacommunities.org/id/county-council/staffordshire  
Staffordshire County Council,Tamworth LD Team,Eden Futures,09/06/2021,2145.64,Supported Group Care,Supported Group Care,http://opendatacommunities.org/id/county-council/staffordshire  
Staffordshire County Council,Tamworth LD Team,Eden Futures,09/06/2021,2145.64,Supported Group Care,Supported Group Care,http://opendatacommunities.org/id/county-council/staffordshire  
Staffordshire County Council,Lichfield Invoice Led Older Pe,Executive Care Agency Midlands Ltd,09/06/2021,1346.44,Practical Care,Practical Care,http://opendatacommunities.org/id/county-council/staffordshire  
Staffordshire County Council,Lichfield Invoice Led Older Pe,Executive Care Agency Midlands Ltd,09/06/2021,1087.52,Practical Care,Practical Care,http://opendatacommunities.org/id/county-council/staffordshire  
Staffordshire County Council,Lichfield Invoice Led Older Pe,Executive Care Agency Midlands Ltd,09/06/2021,595.47,Practical Care,Practical Care,http://opendatacommunities.org/id/county-council/staffordshire  
Staffordshire County Council,Lichfield Invoice Led Older Pe,Executive Care Agency Midlands Ltd,09/06/2021,526.43,Practical Care,Practical Care,http://opendatacommunities.org/id/county-council/staffordshire  
Staffordshire County Council,Lichfield Invoice Led Older Pe,Executive Care Agency Midlands Ltd,09/06/2021,1065.94,Practical Care,Practical Care,http://opendatacommunities.org/id/county-council/staffordshire  
Staffordshire County Council,Childcare,Fergal Allen,09/06/2021,780.00,Legal Costs and Stamp Duty,Legal Costs and Stamp Duty,http://opendatacommunities.org/id/county-council/staffordshire  
Staffordshire County Council,DIPS EOTAS,G T COLLETT PROPERTIES,09/06/2021,2160.00,Rent / Lease Of Premises,Rent / Lease Of Premises,http://opendatacommunities.org/id/county-council/staffordshire  
Staffordshire County Council,Stafford Invoice Led Phys Disa,HEADWAY SOUTH STAFFORDSHIRE,09/06/2021,504.24,Practical Care,Practical Care,http://opendatacommunities.org/id/county-council/staffordshire  
Staffordshire County Council,MCA / DoLs / AMHP,ID Medical Group Ltd,09/06/2021,1149.89,Medical Fees,Medical Fees,http://opendatacommunities.org/id/county-council/staffordshire  
Staffordshire County Council,Older People & Physical Disabi,IGPP Limited,09/06/2021,566.40,Conference Fees,Conference Fees,http://opendatacommunities.org/id/county-council/staffordshire  
Staffordshire County Council,7115 Unit Qa Beacon Business P,ISE Estates Ltd,09/06/2021,2983.02,Electricity,Electricity,http://opendatacommunities.org/id/county-council/staffordshire  
Staffordshire County Council,"7232 Unit QB, Beaconside ST18 ",ISE Estates Ltd,09/06/2021,1297.75,Electricity,Electricity,http://opendatacommunities.org/id/county-council/staffordshire  
Staffordshire County Council,7115 Unit Qa Beacon Business P,ISE Estates Ltd,09/06/2021,1272.80,Electricity,Electricity,http://opendatacommunities.org/id/county-council/staffordshire  
Staffordshire County Council,Newcastle MH Team U65,Jump 2 Independence Ltd,09/06/2021,580.41,Supported Group Care,Supported Group Care,http://opendatacommunities.org/id/county-council/staffordshire  
Staffordshire County Council,0927 Burton Library Riverside ,LANTERN FIRE & SECURITY LTD,09/06/2021,546.00,Service/Test Fire Alarms,Service/Test Fire Alarms,http://opendatacommunities.org/id/county-council/staffordshire  
Staffordshire County Council,Bilbrook CE(C) Middle School,LANTERN FIRE & SECURITY LTD,09/06/2021,546.00,Service/Test Fire Alarms,Service/Test Fire Alarms,http://opendatacommunities.org/id/county-council/staffordshire  
Staffordshire County Council,Walton Priory Middle School,LANTERN FIRE & SECURITY LTD,09/06/2021,546.00,Service/Test Fire Alarms,Service/Test Fire Alarms,http://opendatacommunities.org/id/county-council/staffordshire  
Staffordshire County Council,Cannock Enterprise Centre,LANTERN FIRE & SECURITY LTD,09/06/2021,1050.00,Service/Test Fire Alarms,Service/Test Fire Alarms,http://opendatacommunities.org/id/county-council/staffordshire  
Staffordshire County Council,Highway Maintenance,LICHFIELD DISTRICT COUNCIL,09/06/2021,1320.00,Maintenance - Weed Control,Maintenance - Weed Control,http://opendatacommunities.org/id/county-council/staffordshire  
Staffordshire County Council,Lichfield LD Team,LINFIELD CARE LIMITED,09/06/2021,5806.92,Supported Group Care,Supported Group Care,http://opendatacommunities.org/id/county-council/staffordshire  
Staffordshire County Council,Stafford LD Team,LINFIELD CARE LIMITED,09/06/2021,4492.68,Supported Group Care,Supported Group Care,http://opendatacommunities.org/id/county-council/staffordshire  
Staffordshire County Council,Stafford LD Team,LINFIELD CARE LIMITED,09/06/2021,5827.98,Supported Group Care,Supported Group Care,http://opendatacommunities.org/id/county-council/staffordshire  
Staffordshire County Council,Central Cash,Local Government Association,09/06/2021,3240.00,Training / Seminars,Training / Seminars,http://opendatacommunities.org/id/county-council/staffordshire  
Staffordshire County Council,Responding To Accommodation Ch,M W CRIPWELL LTD,09/06/2021,3293.82,Int Fees Construction,Int Fees Construction,http://opendatacommunities.org/id/county-council/staffordshire  
Staffordshire County Council,Highways Laboratory,Major Diamond Supplies Ltd,09/06/2021,544.20,General Equipment Repair/Maint,General Equipment Repair/Maint,http://opendatacommunities.org/id/county-council/staffordshire  
Staffordshire County Council,Adoption Support Fund,Mott MacDonald,09/06/2021,12848.58,PROFESSIONAL FEES,PROFESSIONAL FEES,http://opendatacommunities.org/id/county-council/staffordshire  
Staffordshire County Council,Adoption Support Fund,Mott MacDonald,09/06/2021,1255.13,PROFESSIONAL FEES,PROFESSIONAL FEES,http://opendatacommunities.org/id/county-council/staffordshire  
Staffordshire County Council,Cannock Chase AONB Core,National Association for AONB,09/06/2021,500.00,Subscriptions General,Subscriptions General,http://opendatacommunities.org/id/county-council/staffordshire  
Staffordshire County Council,DIPS EOTAS,NATIONAL TEACHING ADVISORY SERVI,09/06/2021,1560.00, Alternative Education Schemes, Alternative Education Schemes,http://opendatacommunities.org/id/county-council/staffordshire  
Staffordshire County Council,DIPS EOTAS,NATIONAL TEACHING ADVISORY SERVI,09/06/2021,720.00, Alternative Education Schemes, Alternative Education Schemes,http://opendatacommunities.org/id/county-council/staffordshire  
Staffordshire County Council,Lichfield Invoice Led Physi Di,Nexus Care Services,09/06/2021,1014.72,Practical Care,Practical Care,http://opendatacommunities.org/id/county-council/staffordshire  
Staffordshire County Council,MCA / DoLs / AMHP,NW Social Work Ltd,09/06/2021,1200.00,Independent Investigations,Independent Investigations,http://opendatacommunities.org/id/county-council/staffordshire  
Staffordshire County Council,"Planning, P&D Control",Penna Plc,09/06/2021,556.94,Advertising,Advertising,http://opendatacommunities.org/id/county-council/staffordshire  
Staffordshire County Council,Temporary Traffic Regulations,Penna Plc,09/06/2021,967.71,Advertising,Advertising,http://opendatacommunities.org/id/county-council/staffordshire  
Staffordshire County Council,Rights Of Way,Penna Plc,09/06/2021,654.97,Advertising,Advertising,http://opendatacommunities.org/id/county-council/staffordshire  
Staffordshire County Council,Temporary Traffic Regulations,Penna Plc,09/06/2021,554.25,Advertising,Advertising,http://opendatacommunities.org/id/county-council/staffordshire  
Staffordshire County Council,Temporary Traffic Regulations,Penna Plc,09/06/2021,785.48,Advertising,Advertising,http://opendatacommunities.org/id/county-council/staffordshire  
Staffordshire County Council,IF-I.S.P.,Percy Hedley Foundation,09/06/2021,8352.96,Specialist Childs Res Services,Specialist Childs Res Services,http://opendatacommunities.org/id/county-council/staffordshire  
Staffordshire County Council,E Staffs LD Team,PROGRESS CHILDREN'S SERVICES LTD,09/06/2021,13774.20,Supported Group Care,Supported Group Care,http://opendatacommunities.org/id/county-council/staffordshire  
Staffordshire County Council,"0818 Shire Hall, Market St, ST",PTSG ELECTRICAL SERVICES LTD,09/06/2021,8231.54,Day to Day Electrical Services,Day to Day Electrical Services,http://opendatacommunities.org/id/county-council/staffordshire  
Staffordshire County Council,Lot A SIR Contract,RETHINK FINANCES,09/06/2021,21111.00,Day Care,Day Care,http://opendatacommunities.org/id/county-council/staffordshire  
Staffordshire County Council,The Old House,Royal Mail Group Ltd,09/06/2021,944.40,Postages,Postages,http://opendatacommunities.org/id/county-council/staffordshire  
Staffordshire County Council,Disability Occup TherapistTeam,SCC Sundry BACS  1 Company,09/06/2021,563.28,S17 FAMILY SUPPORT,S17 FAMILY SUPPORT,http://opendatacommunities.org/id/county-council/staffordshire  
Staffordshire County Council,Sth Staffs OP Team 1,SCC Sundry BACS  1 Company,09/06/2021,19426.59,NCLS Elderly incl Phys Disab,NCLS Elderly incl Phys Disab,http://opendatacommunities.org/id/county-council/staffordshire  
Staffordshire County Council,Specialist Assessment,Sea Change Psychotherapy Limited,09/06/2021,3600.00,Prev Supp Legal Costs,Prev Supp Legal Costs,http://opendatacommunities.org/id/county-council/staffordshire  
Staffordshire County Council,ASET,Serjeants' Inn Central Fees,09/06/2021,1800.00,Legal Costs and Stamp Duty,Legal Costs and Stamp Duty,http://opendatacommunities.org/id/county-council/staffordshire  
Staffordshire County Council,12 Drug Misuse - A,Solutions Action Management (SAM),09/06/2021,1872.00,Other payments / claims,Other payments / claims,http://opendatacommunities.org/id/county-council/staffordshire  
Staffordshire County Council,Data Centre Network Refresh,Specialist Computer Centres Ltd,09/06/2021,1066.68,Ext Fees Construction,Ext Fees Construction,http://opendatacommunities.org/id/county-council/staffordshire  
Staffordshire County Council,Beaconside Innovation Centre,STAFFORD BOROUGH COUNCIL,09/06/2021,2245.50,Business Rates,Business Rates,http://opendatacommunities.org/id/county-council/staffordshire  
Staffordshire County Council,Growth Hub LEP 2016-2018 BIS,STOKE CITY COUNCIL (ALL ACCS),09/06/2021,7598.40,Subscriptions General,Subscriptions General,http://opendatacommunities.org/id/county-council/staffordshire  
Staffordshire County Council,Transport,TAMWORTH/ATHERSTONE TAXIS & PRIVATE HIRE,09/06/2021,12973.84,Transport,Transport,http://opendatacommunities.org/id/county-council/staffordshire  
Staffordshire County Council,DIPS EOTAS,Targeted Provision Ltd,09/06/2021,720.00, Alternative Education Schemes, Alternative Education Schemes,http://opendatacommunities.org/id/county-council/staffordshire  
Staffordshire County Council,5438 Staffs Place 1&2Tipping S,Taybar Limited,09/06/2021,7967.70,Premises Services,Premises Services,http://opendatacommunities.org/id/county-council/staffordshire  
Staffordshire County Council,SEN Direct Payments,,09/06/2021,3980.00,Direct Payments Other,Direct Payments Other,http://opendatacommunities.org/id/county-council/staffordshire  
Staffordshire County Council,"S111 Pye Green Road, Hednesfor",VALUATION OFFICE AGENCY,09/06/2021,1161.60,Ext Fees Construction,Ext Fees Construction,http://opendatacommunities.org/id/county-council/staffordshire  
Staffordshire County Council,Museums,Vertigo Creative Studio Limited,09/06/2021,9600.00,Project Activities,Project Activities,http://opendatacommunities.org/id/county-council/staffordshire  
Staffordshire County Council,Occupational Health Unit,VISION EXPRESS STAFFORD LTD,09/06/2021,705.00,CONSULTANT FEES,CONSULTANT FEES,http://opendatacommunities.org/id/county-council/staffordshire  
Staffordshire County Council,COVID 19 COMF,Vivid Resourcing,09/06/2021,2048.88,OTHER HIRED SERVICES,OTHER HIRED SERVICES,http://opendatacommunities.org/id/county-council/staffordshire  
Staffordshire County Council,E Staffs LD Team,Voyage Care Ltd,09/06/2021,3011.88,Supported Group Care,Supported Group Care,http://opendatacommunities.org/id/county-council/staffordshire  
Staffordshire County Council,E Staffs LD Team,Voyage Care Ltd,09/06/2021,3008.75,Supported Group Care,Supported Group Care,http://opendatacommunities.org/id/county-council/staffordshire  
Staffordshire County Council,Through Care -Stafford/SStaffs,WALSALL COUNCIL,09/06/2021,5310.00,S17 TRANSPORT,S17 TRANSPORT,http://opendatacommunities.org/id/county-council/staffordshire  
Staffordshire County Council,Cannock Enterprise Centre,WATER PLUS,09/06/2021,828.08,Water & Sewerage,Water & Sewerage,http://opendatacommunities.org/id/county-council/staffordshire  
Staffordshire County Council, Tamworth SSU2,Westbury Health Ltd,09/06/2021,710.40,Case Work,Case Work,http://opendatacommunities.org/id/county-council/staffordshire  
Staffordshire County Council, Tamworth SSU2,Westbury Health Ltd,09/06/2021,710.40,Case Work,Case Work,http://opendatacommunities.org/id/county-council/staffordshire  
Staffordshire County Council,Family and Friends Team,Westhill House day Nursery,09/06/2021,880.00,Fostering Discretionary Paymts,Fostering Discretionary Paymts,http://opendatacommunities.org/id/county-council/staffordshire  
Staffordshire County Council,Family and Friends Team,Westhill House day Nursery,09/06/2021,1040.00,Fostering Discretionary Paymts,Fostering Discretionary Paymts,http://opendatacommunities.org/id/county-council/staffordshire  
Staffordshire County Council,Stafford LD Team,Wrekin Housing Group Ltd,09/06/2021,891.86,Supported Group Care,Supported Group Care,http://opendatacommunities.org/id/county-council/staffordshire  
Staffordshire County Council,Stafford LD Team,Wrekin Housing Group Ltd,09/06/2021,902.36,Supported Group Care,Supported Group Care,http://opendatacommunities.org/id/county-council/staffordshire  
Staffordshire County Council,Stafford LD Team,Wrekin Housing Group Ltd,09/06/2021,902.36,Supported Group Care,Supported Group Care,http://opendatacommunities.org/id/county-council/staffordshire  
Staffordshire County Council,Through Care Team - Burton/Tam,ABC COUNTDOWN CARS,10/06/2021,792.00,Home School Contract Vehicles,Home School Contract Vehicles,http://opendatacommunities.org/id/county-council/staffordshire  
Staffordshire County Council,Transport,Abdul AL Mawery TA Central Taxi,10/06/2021,1730.00,Transport,Transport,http://opendatacommunities.org/id/county-council/staffordshire  
Staffordshire County Council,Hollies Short Stay School,Abdul AL Mawery TA Central Taxi,10/06/2021,748.00,Home School Contract Vehicles,Home School Contract Vehicles,http://opendatacommunities.org/id/county-council/staffordshire  
Staffordshire County Council,Marketing & Comms,Adams Shaw Ltd,10/06/2021,1100.00,CONSULTANT FEES,CONSULTANT FEES,http://opendatacommunities.org/id/county-council/staffordshire  
Staffordshire County Council,Stafford Invoice Led Older Peo,AGE CONCERN STAFFORD & DIST,10/06/2021,2190.00,Rental of Vehicles,Rental of Vehicles,http://opendatacommunities.org/id/county-council/staffordshire  
Staffordshire County Council,2 Contraception,ALDERGATE MEDICAL PRACTICE,10/06/2021,2119.44,PH LARC claims - GPs,PH LARC claims - GPs,http://opendatacommunities.org/id/county-council/staffordshire  
Staffordshire County Council,Hugo Meynell Primary,AMP Clean Energy,10/06/2021,1231.91,Wood Chip,Wood Chip,http://opendatacommunities.org/id/county-council/staffordshire  
Staffordshire County Council,S.S. Adults Safeguard P'ship,Apollo Eagle Consulting Ltd,10/06/2021,2000.00,CONSULTANT FEES,CONSULTANT FEES,http://opendatacommunities.org/id/county-council/staffordshire  
Staffordshire County Council,COVID 19 Infection Control,Bagnall Heights Domiciliary Ltd,10/06/2021,876.00,Comm Care Other Services,Comm Care Other Services,http://opendatacommunities.org/id/county-council/staffordshire  
Staffordshire County Council,Transport,CORKYS CARS MIDLANDS LTD,10/06/2021,9330.86,Transport,Transport,http://opendatacommunities.org/id/county-council/staffordshire  
Staffordshire County Council,Improvements Contracts,DOLPHIN COMPUTER ACCESS LTD,10/06/2021,4944.00,SOFTWARE LICENCES,SOFTWARE LICENCES,http://opendatacommunities.org/id/county-council/staffordshire  
Staffordshire County Council,2 Contraception,Dove River Practice,10/06/2021,2400.76,other services external,other services external,http://opendatacommunities.org/id/county-council/staffordshire  
Staffordshire County Council,Specialist Assessment,Dr Dawn E Saunders,10/06/2021,2608.80,Prev Supp Legal Costs,Prev Supp Legal Costs,http://opendatacommunities.org/id/county-council/staffordshire  
Staffordshire County Council,2 Contraception,Dr Sellens & Partners,10/06/2021,1482.60,PH LARC claims - GPs,PH LARC claims - GPs,http://opendatacommunities.org/id/county-council/staffordshire  
Staffordshire County Council,Staffordshire Warmer Homes,E ON ENERGY SOLUTIONS ( METERING SERV ),10/06/2021,89870.64,INWARD PORTABILITY,INWARD PORTABILITY,http://opendatacommunities.org/id/county-council/staffordshire  
Staffordshire County Council,Staffordshire Wood Fuel,GELLATLY STAFFORD LTD,10/06/2021,720.00,Equipment Rent and Hire,Equipment Rent and Hire,http://opendatacommunities.org/id/county-council/staffordshire  
Staffordshire County Council,Highways Laboratory,I2 Analytical Ltd,10/06/2021,840.00,CONSULTANT FEES,CONSULTANT FEES,http://opendatacommunities.org/id/county-council/staffordshire  
Staffordshire County Council,Moorlands LD Team,Jump 2 Independence Ltd,10/06/2021,1446.32,Supported Group Care,Supported Group Care,http://opendatacommunities.org/id/county-council/staffordshire  
Staffordshire County Council,Moorlands LD Team,Jump 2 Independence Ltd,10/06/2021,1763.26,Supported Group Care,Supported Group Care,http://opendatacommunities.org/id/county-council/staffordshire  
Staffordshire County Council,Newcastle LD Team,Jump 2 Independence Ltd,10/06/2021,2239.18,Supported Group Care,Supported Group Care,http://opendatacommunities.org/id/county-council/staffordshire  
Staffordshire County Council,Newcastle LD Team,Jump 2 Independence Ltd,10/06/2021,1442.36,Supported Group Care,Supported Group Care,http://opendatacommunities.org/id/county-council/staffordshire  
Staffordshire County Council,Newcastle LD Team,Jump 2 Independence Ltd,10/06/2021,1160.66,Supported Group Care,Supported Group Care,http://opendatacommunities.org/id/county-council/staffordshire  
Staffordshire County Council,Newcastle LD Team,Jump 2 Independence Ltd,10/06/2021,1183.83,Supported Group Care,Supported Group Care,http://opendatacommunities.org/id/county-council/staffordshire  
Staffordshire County Council,Newcastle LD Team,Jump 2 Independence Ltd,10/06/2021,1779.88,Supported Group Care,Supported Group Care,http://opendatacommunities.org/id/county-council/staffordshire  
Staffordshire County Council,Newcastle LD Team,Jump 2 Independence Ltd,10/06/2021,1465.52,Supported Group Care,Supported Group Care,http://opendatacommunities.org/id/county-council/staffordshire  
Staffordshire County Council,Transport,L A TRAVEL,10/06/2021,7627.50,Transport,Transport,http://opendatacommunities.org/id/county-council/staffordshire  
Staffordshire County Council,Asset Renewal,LANTERN FIRE & SECURITY LTD,10/06/2021,7702.76,Construction Works,Construction Works,http://opendatacommunities.org/id/county-council/staffordshire  
Staffordshire County Council,Lichfield Tipping Away,LICHFIELD DISTRICT COUNCIL,10/06/2021,2106.00,WASTE TRANSPORT,WASTE TRANSPORT,http://opendatacommunities.org/id/county-council/staffordshire  
Staffordshire County Council,EStaffs/Tamw Disability Team,MedGen Ltd,10/06/2021,565.63,S17 FAMILY SUPPORT,S17 FAMILY SUPPORT,http://opendatacommunities.org/id/county-council/staffordshire  
Staffordshire County Council,Specialist Assessment,Medlaw Ltd,10/06/2021,761.08,Prev Supp Legal Costs,Prev Supp Legal Costs,http://opendatacommunities.org/id/county-council/staffordshire  
Staffordshire County Council,Specialist Assessment,Medlaw Ltd,10/06/2021,6377.31,Prev Supp Legal Costs,Prev Supp Legal Costs,http://opendatacommunities.org/id/county-council/staffordshire  
Staffordshire County Council,SEN Direct Payments,,10/06/2021,6933.50,Direct Payments Other,Direct Payments Other,http://opendatacommunities.org/id/county-council/staffordshire  
Staffordshire County Council,LTC - Reablement,Midlands Part NHS FT,10/06/2021,315381.28,OTHER HIRED SERVICES,OTHER HIRED SERVICES,http://opendatacommunities.org/id/county-council/staffordshire  
Staffordshire County Council,Leaving Care Team - Central,Mike Hand Training Ltd,10/06/2021,1250.00,Courses,Courses,http://opendatacommunities.org/id/county-council/staffordshire  
Staffordshire County Council,ME REGIONAL SUPPLY CHAINS,MTC Operations limited,10/06/2021,18000.00,CONSULTANT FEES,CONSULTANT FEES,http://opendatacommunities.org/id/county-council/staffordshire  
Staffordshire County Council,Further Education Placements,National Star College,10/06/2021,91857.71,Events and Competitions,Events and Competitions,http://opendatacommunities.org/id/county-council/staffordshire  
Staffordshire County Council,Specialist Supp Serv HI Cent,PHONAK UK LTD,10/06/2021,19692.00,Social Aids Sensory Impairment,Social Aids Sensory Impairment,http://opendatacommunities.org/id/county-council/staffordshire  
Staffordshire County Council,ERDF Low Carbon Bus Evol Prog,Pro Enviro Ltd,10/06/2021,794.40,CONSULTANT FEES,CONSULTANT FEES,http://opendatacommunities.org/id/county-council/staffordshire  
Staffordshire County Council,Specials Unallocated,PUWERTEC SPECIALIST EQUIP CNSLTNTS,10/06/2021,2514.00,General Equipment Purchase,General Equipment Purchase,http://opendatacommunities.org/id/county-council/staffordshire  
Staffordshire County Council,COVID19 - Community Testing,R Jackson Support,10/06/2021,602.00,OTHER HIRED SERVICES,OTHER HIRED SERVICES,http://opendatacommunities.org/id/county-council/staffordshire  
Staffordshire County Council,COVID19 - Community Testing,R Jackson Support,10/06/2021,560.00,OTHER HIRED SERVICES,OTHER HIRED SERVICES,http://opendatacommunities.org/id/county-council/staffordshire  
Staffordshire County Council,COVID19 - Community Testing,R Jackson Support,10/06/2021,623.00,OTHER HIRED SERVICES,OTHER HIRED SERVICES,http://opendatacommunities.org/id/county-council/staffordshire  
Staffordshire County Council,COVID19 - Community Testing,R Jackson Support,10/06/2021,511.00,OTHER HIRED SERVICES,OTHER HIRED SERVICES,http://opendatacommunities.org/id/county-council/staffordshire  
Staffordshire County Council,COVID19 - Community Testing,R Jackson Support,10/06/2021,525.00,OTHER HIRED SERVICES,OTHER HIRED SERVICES,http://opendatacommunities.org/id/county-council/staffordshire  
Staffordshire County Council,COVID19 - Community Testing,R Jackson Support,10/06/2021,539.00,OTHER HIRED SERVICES,OTHER HIRED SERVICES,http://opendatacommunities.org/id/county-council/staffordshire  
Staffordshire County Council,COVID19 - Community Testing,R Jackson Support,10/06/2021,546.00,OTHER HIRED SERVICES,OTHER HIRED SERVICES,http://opendatacommunities.org/id/county-council/staffordshire  
Staffordshire County Council,COVID19 - Community Testing,R Jackson Support,10/06/2021,525.00,OTHER HIRED SERVICES,OTHER HIRED SERVICES,http://opendatacommunities.org/id/county-council/staffordshire  
Staffordshire County Council,Cannock Chase LD Team,ROCKSPUR LTD,10/06/2021,520.00,Day Care,Day Care,http://opendatacommunities.org/id/county-council/staffordshire  
Staffordshire County Council,COVID19 - Community Testing,Ruth Beck,10/06/2021,510.00,OTHER HIRED SERVICES,OTHER HIRED SERVICES,http://opendatacommunities.org/id/county-council/staffordshire  
Staffordshire County Council,Childcare,Sasha Watkinson,10/06/2021,1020.00,Legal Costs and Stamp Duty,Legal Costs and Stamp Duty,http://opendatacommunities.org/id/county-council/staffordshire  
Staffordshire County Council,COVID19 - Community Testing,Secret Potions,10/06/2021,2695.00,OTHER HIRED SERVICES,OTHER HIRED SERVICES,http://opendatacommunities.org/id/county-council/staffordshire  
Staffordshire County Council,COVID19 - Community Testing,Secret Potions,10/06/2021,2618.00,OTHER HIRED SERVICES,OTHER HIRED SERVICES,http://opendatacommunities.org/id/county-council/staffordshire  
Staffordshire County Council,COVID19 - Community Testing,Secret Potions,10/06/2021,2450.00,OTHER HIRED SERVICES,OTHER HIRED SERVICES,http://opendatacommunities.org/id/county-council/staffordshire  
Staffordshire County Council,COVID19 - Community Testing,Secret Potions,10/06/2021,2492.00,OTHER HIRED SERVICES,OTHER HIRED SERVICES,http://opendatacommunities.org/id/county-council/staffordshire  
Staffordshire County Council,COVID19 - Community Testing,Secret Potions,10/06/2021,2814.00,OTHER HIRED SERVICES,OTHER HIRED SERVICES,http://opendatacommunities.org/id/county-council/staffordshire  
Staffordshire County Council,COVID19 - Community Testing,Secret Potions,10/06/2021,2674.00,OTHER HIRED SERVICES,OTHER HIRED SERVICES,http://opendatacommunities.org/id/county-council/staffordshire  
Staffordshire County Council,P16 top up for Indep Specialis,SHELTON CARE LTD,10/06/2021,121840.24,Events and Competitions,Events and Competitions,http://opendatacommunities.org/id/county-council/staffordshire  
Staffordshire County Council,COVID19 - Community Testing,Sherratts Wood C I C,10/06/2021,504.00,OTHER HIRED SERVICES,OTHER HIRED SERVICES,http://opendatacommunities.org/id/county-council/staffordshire  
Staffordshire County Council,KCOM - Core Network,Specialist Computer Centres Ltd,10/06/2021,1600.02,OTHER HIRED SERVICES,OTHER HIRED SERVICES,http://opendatacommunities.org/id/county-council/staffordshire  
Staffordshire County Council,Data Centre Network Refresh,Specialist Computer Centres Ltd,10/06/2021,2133.36,Ext Fees Construction,Ext Fees Construction,http://opendatacommunities.org/id/county-council/staffordshire  
Staffordshire County Council,"0805 14 Tipping St, Stafford, ",STAFFORD BOROUGH COUNCIL,10/06/2021,2445.10,Business Rates,Business Rates,http://opendatacommunities.org/id/county-council/staffordshire  
Staffordshire County Council,COVID19 - Community Testing,Unitech Engineering Ltd,10/06/2021,1701.00,OTHER HIRED SERVICES,OTHER HIRED SERVICES,http://opendatacommunities.org/id/county-council/staffordshire  
Staffordshire County Council,COVID19 - Community Testing,Unitech Engineering Ltd,10/06/2021,1750.00,OTHER HIRED SERVICES,OTHER HIRED SERVICES,http://opendatacommunities.org/id/county-council/staffordshire  
Staffordshire County Council,COVID19 - Community Testing,Unitech Engineering Ltd,10/06/2021,1687.00,OTHER HIRED SERVICES,OTHER HIRED SERVICES,http://opendatacommunities.org/id/county-council/staffordshire  
Staffordshire County Council,COVID19 - Community Testing,Unitech Engineering Ltd,10/06/2021,1379.00,OTHER HIRED SERVICES,OTHER HIRED SERVICES,http://opendatacommunities.org/id/county-council/staffordshire  
Staffordshire County Council,COVID19 - Community Testing,Unitech Engineering Ltd,10/06/2021,882.00,OTHER HIRED SERVICES,OTHER HIRED SERVICES,http://opendatacommunities.org/id/county-council/staffordshire  
Staffordshire County Council,Stat-OOC transport,WALSALL MET BOROUGH COUNCIL,10/06/2021,2155.20,Extra District Charges Other,Extra District Charges Other,http://opendatacommunities.org/id/county-council/staffordshire  
Staffordshire County Council,Stat-OOC transport,WALSALL MET BOROUGH COUNCIL,10/06/2021,2170.80,Extra District Charges Other,Extra District Charges Other,http://opendatacommunities.org/id/county-council/staffordshire  
Staffordshire County Council,Stat-OOC transport,WALSALL MET BOROUGH COUNCIL,10/06/2021,4926.60,Extra District Charges Other,Extra District Charges Other,http://opendatacommunities.org/id/county-council/staffordshire  
Staffordshire County Council,MCA / DoLs / AMHP,Xenofon Sgouros,10/06/2021,720.00,Medical Fees,Medical Fees,http://opendatacommunities.org/id/county-council/staffordshire  
Staffordshire County Council,Registration Service - Unalloc,Zipporah Ltd,10/06/2021,4590.00,other services external,other services external,http://opendatacommunities.org/id/county-council/staffordshire  
Staffordshire County Council,Hillfield OPH,ACCORD HOUSING ASSOCIATION,11/06/2021,141343.07,OTHER HIRED SERVICES,OTHER HIRED SERVICES,http://opendatacommunities.org/id/county-council/staffordshire  
Staffordshire County Council,Specialist Assessment,ADVANCED CHILD CARE ASSESSMENTS LTD,11/06/2021,2834.40,Prev Supp Legal Costs,Prev Supp Legal Costs,http://opendatacommunities.org/id/county-council/staffordshire  
Staffordshire County Council,Stafford Invoice Led Older Peo,AGE CONCERN STAFFORD & DIST,11/06/2021,16000.00,Day Care,Day Care,http://opendatacommunities.org/id/county-council/staffordshire  
Staffordshire County Council,Home to school transport-main,BENNETTS TRAVEL (CRANBERRY) LTD,11/06/2021,20001.11,Home School Contract Vehicles,Home School Contract Vehicles,http://opendatacommunities.org/id/county-council/staffordshire  
Staffordshire County Council,Transport,BENNETTS TRAVEL (CRANBERRY) LTD,11/06/2021,14077.18,Transport,Transport,http://opendatacommunities.org/id/county-council/staffordshire  
Staffordshire County Council,COVID 19 EI&S,BENNETTS TRAVEL (CRANBERRY) LTD,11/06/2021,13883.07,Home School Contract Vehicles,Home School Contract Vehicles,http://opendatacommunities.org/id/county-council/staffordshire  
Staffordshire County Council,KCOM - Wholesale Line Rental,BT Plc,11/06/2021,710.20,CALL CHARGES,CALL CHARGES,http://opendatacommunities.org/id/county-council/staffordshire  
Staffordshire County Council,HRSSC,Busy Bees Benefits Ltd,11/06/2021,22928.80,Extra District Charges Other,Extra District Charges Other,http://opendatacommunities.org/id/county-council/staffordshire  
Staffordshire County Council,COVID19 - Community Testing,CANNOCK CHASE COUNCIL,11/06/2021,1760.00,OTHER HIRED SERVICES,OTHER HIRED SERVICES,http://opendatacommunities.org/id/county-council/staffordshire  
Staffordshire County Council,COVID19 - Community Testing,Central Health Solutions Limited,11/06/2021,40117.20,OTHER HIRED SERVICES,OTHER HIRED SERVICES,http://opendatacommunities.org/id/county-council/staffordshire  
Staffordshire County Council,Occupational Health Unit,CIVICA UK Ltd,11/06/2021,5760.00,SOFTWARE LICENCES,SOFTWARE LICENCES,http://opendatacommunities.org/id/county-council/staffordshire  
Staffordshire County Council,Various,COMENSURA,11/06/2021,123626.69,AGENCY STAFF,AGENCY STAFF,http://opendatacommunities.org/id/county-council/staffordshire  
Staffordshire County Council,Stafford Invoice Led Phys Disa,Complete Care Holdings Ltd,11/06/2021,5731.20,Practical Care,Practical Care,http://opendatacommunities.org/id/county-council/staffordshire  
Staffordshire County Council,Stafford Invoice Led Phys Disa,Complete Care Holdings Ltd,11/06/2021,9212.86,Practical Care,Practical Care,http://opendatacommunities.org/id/county-council/staffordshire  
Staffordshire County Council,Specialist Assessment,DNA Legal Ltd,11/06/2021,3346.80,Prev Supp Legal Costs,Prev Supp Legal Costs,http://opendatacommunities.org/id/county-council/staffordshire  
Staffordshire County Council,Chasewater Innovation Centre,Eden Springs UK Ltd,11/06/2021,569.52,CORPORATE CATERING,CORPORATE CATERING,http://opendatacommunities.org/id/county-council/staffordshire  
Staffordshire County Council,COVID 19 EI&S,FIRST POTTERIES LTD,11/06/2021,6528.00,Home School Contract Vehicles,Home School Contract Vehicles,http://opendatacommunities.org/id/county-council/staffordshire  
Staffordshire County Council,COVID 19 EI&S,FIRST POTTERIES LTD,11/06/2021,19856.00,Home School Contract Vehicles,Home School Contract Vehicles,http://opendatacommunities.org/id/county-council/staffordshire  
Staffordshire County Council,County,Fleet Factors Ltd,11/06/2021,3989.27,CFC Purchase of Stock,CFC Purchase of Stock,http://opendatacommunities.org/id/county-council/staffordshire  
Staffordshire County Council,County,Fleet Factors Ltd,11/06/2021,892.80,CFC Purchase of Stock,CFC Purchase of Stock,http://opendatacommunities.org/id/county-council/staffordshire  
Staffordshire County Council,Adoption Support Fund,GATEWAY PSYCHOLOGY LTD,11/06/2021,2076.00,PROFESSIONAL FEES,PROFESSIONAL FEES,http://opendatacommunities.org/id/county-council/staffordshire  
Staffordshire County Council,Adoption Support Fund,GATEWAY PSYCHOLOGY LTD,11/06/2021,1038.00,PROFESSIONAL FEES,PROFESSIONAL FEES,http://opendatacommunities.org/id/county-council/staffordshire  
Staffordshire County Council,Adoption Support Fund,GATEWAY PSYCHOLOGY LTD,11/06/2021,2076.00,PROFESSIONAL FEES,PROFESSIONAL FEES,http://opendatacommunities.org/id/county-council/staffordshire  
Staffordshire County Council,Adoption Support Fund,GATEWAY PSYCHOLOGY LTD,11/06/2021,960.00,PROFESSIONAL FEES,PROFESSIONAL FEES,http://opendatacommunities.org/id/county-council/staffordshire  
Staffordshire County Council,Central Non Delegated,Gnosall St Lawrence C of E Academy,11/06/2021,755.09,Hire Other Educ Facilities,Hire Other Educ Facilities,http://opendatacommunities.org/id/county-council/staffordshire  
Staffordshire County Council,Early Outcomes Fund,Granicus LLC,11/06/2021,1216.00,LICENCES,LICENCES,http://opendatacommunities.org/id/county-council/staffordshire  
Staffordshire County Council,MCA / DoLs / AMHP,JG Social Care Ltd,11/06/2021,625.00,Independent Investigations,Independent Investigations,http://opendatacommunities.org/id/county-council/staffordshire  
Staffordshire County Council,Childcare,Julie Slater,11/06/2021,8520.00,Legal Costs and Stamp Duty,Legal Costs and Stamp Duty,http://opendatacommunities.org/id/county-council/staffordshire  
Staffordshire County Council,Green Lane Whitgreave,K & S Installations (Staffs) Ltd,11/06/2021,2460.00,General Equipment Repair/Maint,General Equipment Repair/Maint,http://opendatacommunities.org/id/county-council/staffordshire  
Staffordshire County Council,ASYE,KIRWIN MACLEAN ASSOCIATES LTD,11/06/2021,1380.00,Courses,Courses,http://opendatacommunities.org/id/county-council/staffordshire  
Staffordshire County Council,Workforce Wellbeing Strategy,Lichfield Counselling & Psychotherapy,11/06/2021,675.00,CONSULTANT FEES,CONSULTANT FEES,http://opendatacommunities.org/id/county-council/staffordshire  
Staffordshire County Council,BLT MH Team U65,Living Ambitions Ltd,11/06/2021,2227.64,Supported Group Care,Supported Group Care,http://opendatacommunities.org/id/county-council/staffordshire  
Staffordshire County Council,Third Car Leasing Scheme,LOOKERS LEASING LTD,11/06/2021,747.25,Car Leasing - Early Term Chg,Car Leasing - Early Term Chg,http://opendatacommunities.org/id/county-council/staffordshire  
Staffordshire County Council,Third Car Leasing Scheme,LOOKERS LEASING LTD,11/06/2021,631.26,Car Leasing - Charges Misc,Car Leasing - Charges Misc,http://opendatacommunities.org/id/county-council/staffordshire  
Staffordshire County Council,Stafford Invoice Led Phys Disa,LSC Nursing Care & Services Ltd,11/06/2021,2577.13,Practical Care,Practical Care,http://opendatacommunities.org/id/county-council/staffordshire  
Staffordshire County Council,"All Saints, Standon sewage wor",Mayglothling Waste Ltd,11/06/2021,5795.78,Construction Works,Construction Works,http://opendatacommunities.org/id/county-council/staffordshire  
Staffordshire County Council,COVID19 - Community Testing,Nexxus Trading Services (t/a Nexxus Care,11/06/2021,39333.16,OTHER HIRED SERVICES,OTHER HIRED SERVICES,http://opendatacommunities.org/id/county-council/staffordshire  
Staffordshire County Council,COVID19 - Community Testing,Nexxus Trading Services (t/a Nexxus Care,11/06/2021,37375.40,OTHER HIRED SERVICES,OTHER HIRED SERVICES,http://opendatacommunities.org/id/county-council/staffordshire  
Staffordshire County Council,Education Commissioning,Permanent Futures Ltd,11/06/2021,2130.00,OTHER HIRED SERVICES,OTHER HIRED SERVICES,http://opendatacommunities.org/id/county-council/staffordshire  
Staffordshire County Council,Education Commissioning,Permanent Futures Ltd,11/06/2021,2010.00,OTHER HIRED SERVICES,OTHER HIRED SERVICES,http://opendatacommunities.org/id/county-council/staffordshire  
Staffordshire County Council,Education Commissioning,Permanent Futures Ltd,11/06/2021,2130.00,OTHER HIRED SERVICES,OTHER HIRED SERVICES,http://opendatacommunities.org/id/county-council/staffordshire  
Staffordshire County Council,Education Commissioning,Permanent Futures Ltd,11/06/2021,3408.00,OTHER HIRED SERVICES,OTHER HIRED SERVICES,http://opendatacommunities.org/id/county-council/staffordshire  
Staffordshire County Council,County,POST OFFICE LTD,11/06/2021,1875.00,Excise Licence,Excise Licence,http://opendatacommunities.org/id/county-council/staffordshire  
Staffordshire County Council,Community Learning Trust,Pulse for Music Staffordshire CIC,11/06/2021,4692.82,OTHER HIRED SERVICES,OTHER HIRED SERVICES,http://opendatacommunities.org/id/county-council/staffordshire  
Staffordshire County Council,"Springvale, Cannock",Quadient UK Ltd- Credifon,11/06/2021,500.00,Postages,Postages,http://opendatacommunities.org/id/county-council/staffordshire  
Staffordshire County Council,AEN Funding Academy Recoupment,Queen Elizabeth's Grammar school,11/06/2021,7230.92,Grants to third parties,Grants to third parties,http://opendatacommunities.org/id/county-council/staffordshire  
Staffordshire County Council,Independent School Fee Special,RUGELEY HORIZON PRIORY,11/06/2021,26264.41,Fees to Independent Schools,Fees to Independent Schools,http://opendatacommunities.org/id/county-council/staffordshire  
Staffordshire County Council,Cann OP Team 1,SCC Sundry BACS  1 Company,11/06/2021,1356.07,CC Domiciliary Care,CC Domiciliary Care,http://opendatacommunities.org/id/county-council/staffordshire  
Staffordshire County Council,Small Business To Thrive,SCC Sundry BACS  1 Company,11/06/2021,5000.00,Grants to third parties,Grants to third parties,http://opendatacommunities.org/id/county-council/staffordshire  
Staffordshire County Council,Small Business To Thrive,SCC Sundry BACS  1 Company,11/06/2021,3891.67,Grants to third parties,Grants to third parties,http://opendatacommunities.org/id/county-council/staffordshire  
Staffordshire County Council,Small Business To Thrive,SCC Sundry BACS  1 Company,11/06/2021,3547.76,Grants to third parties,Grants to third parties,http://opendatacommunities.org/id/county-council/staffordshire  
Staffordshire County Council,COVID 19 COMF,St John's Community Church,11/06/2021,1820.00,OTHER HIRED SERVICES,OTHER HIRED SERVICES,http://opendatacommunities.org/id/county-council/staffordshire  
Staffordshire County Council,Specialist Assessment,St Philips Chambers,11/06/2021,28260.00,Prev Supp Legal Costs,Prev Supp Legal Costs,http://opendatacommunities.org/id/county-council/staffordshire  
Staffordshire County Council,"0816 County building,Martin St",STAFFORD BOROUGH COUNCIL,11/06/2021,47616.00,Business Rates,Business Rates,http://opendatacommunities.org/id/county-council/staffordshire  
Staffordshire County Council,0817 Eastgate House 79/79a ST1,STAFFORD BOROUGH COUNCIL,11/06/2021,20459.00,Business Rates,Business Rates,http://opendatacommunities.org/id/county-council/staffordshire  
Staffordshire County Council,"0818 Shire Hall, Market St, ST",STAFFORD BOROUGH COUNCIL,11/06/2021,27648.00,Business Rates,Business Rates,http://opendatacommunities.org/id/county-council/staffordshire  
Staffordshire County Council,2958 Kingston Centre ST16 3TW,STAFFORD BOROUGH COUNCIL,11/06/2021,60416.00,Business Rates,Business Rates,http://opendatacommunities.org/id/county-council/staffordshire  
Staffordshire County Council,KCOM - MAN & Tipping St,STAFFORD BOROUGH COUNCIL,11/06/2021,2894.20,Business Rates,Business Rates,http://opendatacommunities.org/id/county-council/staffordshire  
Staffordshire County Council,7195 Building G Beacon Bus Par,STAFFORD BOROUGH COUNCIL,11/06/2021,18587.75,Business Rates,Business Rates,http://opendatacommunities.org/id/county-council/staffordshire  
Staffordshire County Council,"7232 Unit QB, Beaconside ST18 ",STAFFORD BOROUGH COUNCIL,11/06/2021,40704.00,Business Rates,Business Rates,http://opendatacommunities.org/id/county-council/staffordshire  
Staffordshire County Council,7417 Unit V Bus Park,STAFFORD BOROUGH COUNCIL,11/06/2021,13847.25,Business Rates,Business Rates,http://opendatacommunities.org/id/county-council/staffordshire  
Staffordshire County Council,"0820 56 Eastgate St, ST16 2LY",STAFFORD BOROUGH COUNCIL,11/06/2021,11477.00,Business Rates,Business Rates,http://opendatacommunities.org/id/county-council/staffordshire  
Staffordshire County Council,"0821 17 Eastgate St, Stafford,",STAFFORD BOROUGH COUNCIL,11/06/2021,33024.00,Business Rates,Business Rates,http://opendatacommunities.org/id/county-council/staffordshire  
Staffordshire County Council,0822 County Records Eastgate S,STAFFORD BOROUGH COUNCIL,11/06/2021,40192.00,Business Rates,Business Rates,http://opendatacommunities.org/id/county-council/staffordshire  
Staffordshire County Council,"0827 14 Martin St, Stafford, S",STAFFORD BOROUGH COUNCIL,11/06/2021,45056.00,Business Rates,Business Rates,http://opendatacommunities.org/id/county-council/staffordshire  
Staffordshire County Council,1446 51a Sandyford St Stafford,STAFFORD BOROUGH COUNCIL,11/06/2021,10603.75,Business Rates,Business Rates,http://opendatacommunities.org/id/county-council/staffordshire  
Staffordshire County Council,1641 Stone Hway Depot,STAFFORD BOROUGH COUNCIL,11/06/2021,19585.75,Business Rates,Business Rates,http://opendatacommunities.org/id/county-council/staffordshire  
Staffordshire County Council,5438 Stafford Lib SP1 unit 3&4,STAFFORD BOROUGH COUNCIL,11/06/2021,40192.00,Business Rates,Business Rates,http://opendatacommunities.org/id/county-council/staffordshire  
Staffordshire County Council,7115 Unit Qa Beacon Business P,STAFFORD BOROUGH COUNCIL,11/06/2021,26112.00,Business Rates,Business Rates,http://opendatacommunities.org/id/county-council/staffordshire  
Staffordshire County Council,7171 4 Astonfields ST16 3DX,STAFFORD BOROUGH COUNCIL,11/06/2021,17215.50,Business Rates,Business Rates,http://opendatacommunities.org/id/county-council/staffordshire  
Staffordshire County Council,ITBEP,Staffs Chambers Cmmrc & Indstry Ltd,11/06/2021,6871.66,PROFESSIONAL FEES,PROFESSIONAL FEES,http://opendatacommunities.org/id/county-council/staffordshire  
Staffordshire County Council,ITBEP,Staffs Chambers Cmmrc & Indstry Ltd,11/06/2021,8589.57,PROFESSIONAL FEES,PROFESSIONAL FEES,http://opendatacommunities.org/id/county-council/staffordshire  
Staffordshire County Council,SWS MH Team U65,Supported Homes Ltd,11/06/2021,2941.12,Supported Group Care,Supported Group Care,http://opendatacommunities.org/id/county-council/staffordshire  
Staffordshire County Council,SWS MH Team U65,Supported Homes Ltd,11/06/2021,2604.00,Supported Group Care,Supported Group Care,http://opendatacommunities.org/id/county-council/staffordshire  
Staffordshire County Council,SWS MH Team U65,Supported Homes Ltd,11/06/2021,3905.99,Supported Group Care,Supported Group Care,http://opendatacommunities.org/id/county-council/staffordshire  
Staffordshire County Council,Newcastle MH Team U65,Supported Homes Ltd,11/06/2021,4580.72,Supported Group Care,Supported Group Care,http://opendatacommunities.org/id/county-council/staffordshire  
Staffordshire County Council,Transport,TELE TAXIS,11/06/2021,3422.26,Transport,Transport,http://opendatacommunities.org/id/county-council/staffordshire  
Staffordshire County Council,Transport,TELE TAXIS,11/06/2021,7781.20,Transport,Transport,http://opendatacommunities.org/id/county-council/staffordshire  
Staffordshire County Council,Transport,The Ashbourne Little Bus Company Ltd,11/06/2021,1797.65,Transport,Transport,http://opendatacommunities.org/id/county-council/staffordshire  
Staffordshire County Council,SBEN,The Environmental Quality Mark CIC,11/06/2021,7140.00,CONSULTANT FEES,CONSULTANT FEES,http://opendatacommunities.org/id/county-council/staffordshire  
Staffordshire County Council,Through Care Team - Burton/Tam,Turning Point,11/06/2021,20223.21,S17 TRANSPORT,S17 TRANSPORT,http://opendatacommunities.org/id/county-council/staffordshire  
Staffordshire County Council,Lichfield Invoice Led Physi Di,Voyage Ltd,11/06/2021,6787.76,Supported Group Care,Supported Group Care,http://opendatacommunities.org/id/county-council/staffordshire  
Staffordshire County Council,1 STI Test & Treat,WALSALL HEALTHCARE NHS TRUST,11/06/2021,6863.19,other services internal,other services internal,http://opendatacommunities.org/id/county-council/staffordshire  
Staffordshire County Council,SCC Digital,ZENGENTI LTD,11/06/2021,4794.00,SOFTWARE LICENCES,SOFTWARE LICENCES,http://opendatacommunities.org/id/county-council/staffordshire  
Staffordshire County Council,Excluded pupils,3PB Barristers (Chambers Account),14/06/2021,600.00,Legal Costs and Stamp Duty,Legal Costs and Stamp Duty,http://opendatacommunities.org/id/county-council/staffordshire  
Staffordshire County Council,MCA / DoLs / AMHP,AAB Care Services,14/06/2021,600.00,Independent Investigations,Independent Investigations,http://opendatacommunities.org/id/county-council/staffordshire  
Staffordshire County Council,Newcastle LD Team,Above N Beyond Limited,14/06/2021,1069.20,Practical Care,Practical Care,http://opendatacommunities.org/id/county-council/staffordshire  
Staffordshire County Council,Meadowyrthe OPH,ACCORD HOUSING ASSOCIATION,14/06/2021,132727.19,OTHER HIRED SERVICES,OTHER HIRED SERVICES,http://opendatacommunities.org/id/county-council/staffordshire  
Staffordshire County Council,Moorlands Invoice Led Older Pe,AMG NURSING & CARE SERVICES,14/06/2021,974.96,Practical Care,Practical Care,http://opendatacommunities.org/id/county-council/staffordshire  
Staffordshire County Council,Moorlands Invoice Led Older Pe,AMG NURSING & CARE SERVICES,14/06/2021,974.96,Practical Care,Practical Care,http://opendatacommunities.org/id/county-council/staffordshire  
Staffordshire County Council,Newcastle Invoice Led Older Pe,AMG NURSING & CARE SERVICES,14/06/2021,974.96,Practical Care,Practical Care,http://opendatacommunities.org/id/county-council/staffordshire  
Staffordshire County Council,Newcastle Invoice Led Older Pe,AMG NURSING & CARE SERVICES,14/06/2021,974.96,Practical Care,Practical Care,http://opendatacommunities.org/id/county-council/staffordshire  
Staffordshire County Council,Action Projects,Arbor Vitae Environmental,14/06/2021,2880.00,CONSULTANT FEES,CONSULTANT FEES,http://opendatacommunities.org/id/county-council/staffordshire  
Staffordshire County Council,Specialist Assessment,Atkinson Lewis,14/06/2021,1440.00,Prev Supp Legal Costs,Prev Supp Legal Costs,http://opendatacommunities.org/id/county-council/staffordshire  
Staffordshire County Council,Concessionary Fare Schemes,B P BROWN TRAVEL LTD,14/06/2021,33773.00,Payments to Bus Operators,Payments to Bus Operators,http://opendatacommunities.org/id/county-council/staffordshire  
Staffordshire County Council,Knutton Enterprise Centre,BID Group Ltd,14/06/2021,684.00,Service/Test Controlled Access,Service/Test Controlled Access,http://opendatacommunities.org/id/county-council/staffordshire  
Staffordshire County Council,Winter Maintenance,C M ROWLINSON LTD,14/06/2021,8750.40,Winter Maint - Prec Salting,Winter Maint - Prec Salting,http://opendatacommunities.org/id/county-council/staffordshire  
Staffordshire County Council,Winter Maintenance,C M ROWLINSON LTD,14/06/2021,7821.60,Winter Maint - Prec Salting,Winter Maint - Prec Salting,http://opendatacommunities.org/id/county-council/staffordshire  
Staffordshire County Council,Childrens Serv Man Admin - HQ,CAREWORKS LTD,14/06/2021,2546.25,IT SUPPORT CHARGES,IT SUPPORT CHARGES,http://opendatacommunities.org/id/county-council/staffordshire  
Staffordshire County Council,Specialist Assessment,Carter Brown The Expert Service Limited,14/06/2021,4523.16,Prev Supp Legal Costs,Prev Supp Legal Costs,http://opendatacommunities.org/id/county-council/staffordshire  
Staffordshire County Council,DIPS EOTAS,CAULDON COLL REGISTRATION FUND,14/06/2021,510.00, Alternative Education Schemes, Alternative Education Schemes,http://opendatacommunities.org/id/county-council/staffordshire  
Staffordshire County Council,DIPS EOTAS,CAULDON COLL REGISTRATION FUND,14/06/2021,552.50, Alternative Education Schemes, Alternative Education Schemes,http://opendatacommunities.org/id/county-council/staffordshire  
Staffordshire County Council,Asset Strategy,CIPFA,14/06/2021,1134.00,Training & Resources Income,Training & Resources Income,http://opendatacommunities.org/id/county-council/staffordshire  
Staffordshire County Council,Occupational Health Unit,CTC PHYSIOTHERAPY,14/06/2021,2110.00,CONSULTANT FEES,CONSULTANT FEES,http://opendatacommunities.org/id/county-council/staffordshire  
Staffordshire County Council,Lichfield Invoice Led Physi Di,Deafblind Uk,14/06/2021,1389.60,Practical Care,Practical Care,http://opendatacommunities.org/id/county-council/staffordshire  
Staffordshire County Council,Cannock Invoice Led Phys Disab,Deafblind Uk,14/06/2021,926.40,INTERPRETERS SERVICE,INTERPRETERS SERVICE,http://opendatacommunities.org/id/county-council/staffordshire  
Staffordshire County Council,Newcastle Invoice Led Older Pe,Deafblind Uk,14/06/2021,2131.92,INTERPRETERS SERVICE,INTERPRETERS SERVICE,http://opendatacommunities.org/id/county-council/staffordshire  
Staffordshire County Council,Newcastle Invoice Led Physical,Deafblind Uk,14/06/2021,926.40,INTERPRETERS SERVICE,INTERPRETERS SERVICE,http://opendatacommunities.org/id/county-council/staffordshire  
Staffordshire County Council,Newcastle Invoice Led Physical,Deafblind Uk,14/06/2021,772.00,INTERPRETERS SERVICE,INTERPRETERS SERVICE,http://opendatacommunities.org/id/county-council/staffordshire  
Staffordshire County Council,SAP Archiving & Other Costs,Deloitte LLP,14/06/2021,3644.57,SOFTWARE LICENCES,SOFTWARE LICENCES,http://opendatacommunities.org/id/county-council/staffordshire  
Staffordshire County Council,SAP Archiving & Other Costs,Deloitte LLP,14/06/2021,2178.90,SOFTWARE LICENCES,SOFTWARE LICENCES,http://opendatacommunities.org/id/county-council/staffordshire  
Staffordshire County Council,Independent Sch Fees Mainstr'm,Denstone College,14/06/2021,5978.00,Fees to Independent Schools,Fees to Independent Schools,http://opendatacommunities.org/id/county-council/staffordshire  
Staffordshire County Council,Concessionary Fare Schemes,Diamond Bus Ltd,14/06/2021,8360.00,Payments to Bus Operators,Payments to Bus Operators,http://opendatacommunities.org/id/county-council/staffordshire  
Staffordshire County Council,AEN Funding Maintained Recoupm,DUDLEY METROPOLITAN BOROUGH COUNCIL,14/06/2021,12154.13,Payments to other Authorities,Payments to other Authorities,http://opendatacommunities.org/id/county-council/staffordshire  
